{"text_format":"1","workbook":"xlsx","n_sheets":28,"sheets":["General data","XBRL Errors","Index","Show","Hierarchies","T01.01","T01.02","T01.03","T01.04","T02.01","T02.02","T02.03","T03.01","T04.01","T04.02","T05.01","T05.02","T05.03","T06.01","T06.02","T06.03","T07.01","T07.02","T08.01","T08.02","T09.01","T09.02","T09.03"],"not_rendered":{"charts":0,"images":3,"macros":1,"external_links":0,"defined_names":41,"comments":0,"pivot_tables":0},"unopened":[],"bounds":{"document_bytes":16777216,"sheet_cells":100000,"rows_first":2000,"rows_last":500,"rows_between":2000,"halvings":0,"cell_chars":16384,"cell_head_chars":4096},"cells_cut":0,"cells_raw":0,"read":"whole","date_system":"1900"}

{"sheet":"General data","index":0,"n_rows":247,"n_cols":23,"rows_kept":247,"cut":false,"hidden":false,"merged":[[0,6,2,6],[3,0,5,9]]}
[null,null,null,null,null,null,null,"Version:",null,"2.0.0.1",null,null,null,null,null,null,"Not applicable/All geographical areas","http://standards.iso.org/iso/17442","Module with all tables","PAY-ALL","01","EUR","NL PAY 2.0.0"]
[null,null,null,null,null,null,null,null,null,null,null,null,null,null,null,null,"AFGHANISTAN","http://standards.iso.org/iso/17442","Payments Statistics - Core half-yearly","PAY-CH","12","AED"]
[null,null,null,null,null,null,null," ",null,null,null,null,null,null,null,null,"ALBANIA","http://standards.iso.org/iso/17442","Payment Statistics - Core quarterly","PAY-CQ","13","AFN"]
[null,null,null,null,null,null,null,null,null,null,null,null,null,null,null,null,"ALGERIA","http://standards.iso.org/iso/17442","Payments Statistics - Derogation","PAY-D","14","ALL"]
[null,null,null,null,null,null,null,null,null,null,null,null,null,null,null,null,"AMERICAN SAMOA","http://standards.iso.org/iso/17442","Payments Statistics - LVPS","PAY-PSO-L","15","AMD"]
[null,null,null,null,null,null,null,null,null,null,null,null,null,null,null,null,"ANDORRA","http://standards.iso.org/iso/17442","Payments Statistics - RPS","PAY-PSO-R","16","ANG"]
[null,null,null,null,null,null,null,null,null,null,null,null,null,null,null,null,"ANGOLA","http://standards.iso.org/iso/17442","Payments Statistics - TARGET2/NCB","PAY-T2-NCB","17","AOA"]
[null,"General Data",null,null,null,null,null,null,null,null,null,"/General data label{B}","/General data value{E}",null,null,null,"ANGUILLA","http://standards.iso.org/iso/17442",null,null,"18","ARS"]
[null,null,null,null,null,null,null,null,null,null,null,null,null,null,null,null,"ANTARCTICA","http://standards.iso.org/iso/17442",null,null,"19","AUD"]
["*","Identifier",":","LEGALIDENTIFIER20POS",{"$f":"\"\"&D10","v":"LEGALIDENTIFIER20POS"},{"$f":"IF(D10=\"\",1,0)","v":0},null,null,null,null,null,null,null,null,null,null,"ANTIGUA AND BARBUDA","http://standards.iso.org/iso/17442",null,null,"20","AWG"]
[null,null,null,null,null,null,null,null,null,null,null,null,null,null,null,null,"ARGENTINA","http://standards.iso.org/iso/17442",null,null,"All","AZN"]
["*","Period start date",":","2020-01-01",{"$f":"D12","v":"2020-01-01"},{"$f":"IF(D12=\"\",1,0)","v":0},null,null,null,null,null,null,null,null,null,null,"ARMENIA","http://standards.iso.org/iso/17442",null,null,"All","BAM"]
[null,null,null,null,null,null,null,null,null,null,null,null,null,null,null,null,"ARUBA","http://standards.iso.org/iso/17442",null,null,null,"BBD"]
["*","Period end date",":","2020-12-31",{"$f":"D14","v":"2020-12-31"},{"$f":"IF(D14=\"\",1,0)","v":0},null,null,null,null,null,null,null,null,null,null,"AUSTRALIA","http://standards.iso.org/iso/17442",null,null,null,"BDT"]
[null,null,null,null,null,null,null,null,null,null,null,null,null,null,null,null,"AUSTRIA","http://standards.iso.org/iso/17442",null,null,null,"BGN"]
[null,"Country",":","Not applicable/All geographical areas",null,null,null,null,null,null,null,null,null,null,null,null,"AZERBAIJAN","http://standards.iso.org/iso/17442",null,null,null,"BHD"]
[null,null,null,null,null,null,null,null,null,null,null,null,null,null,null,null,"BAHAMAS","http://standards.iso.org/iso/17442",null,null,null,"BIF"]
["*","Filing Currency",":","EUR",{"$f":"\"\"&D18","v":"EUR"},{"$f":"IF(D18=\"\",1,0)","v":0},null,null,null,null,null,null,null,null,null,null,"BAHRAIN","http://standards.iso.org/iso/17442",null,null,null,"BMD"]
[null,null,null,null,null,null,null,null,null,null,null,null,null,null,null,null,"BANGLADESH","http://standards.iso.org/iso/17442",null,null,null,"BND"]
["*","Taxonomy",":","NL PAY 2.0.0",null,{"$f":"IF(D20=\"\",1,0)","v":0},null,null,null,null,null,null,null,null,null,null,"BARBADOS","http://standards.iso.org/iso/17442",null,null,null,"BOB"]
[null,null,null,null,null,null,null,null,null,null,null,null,null,null,null,null,"BELARUS","http://standards.iso.org/iso/17442",null,null,null,"BRL"]
["*","Module",":","Module with all tables",{"$f":"IFERROR(VLOOKUP(D22,S:T,2,FALSE),\"\")","v":"PAY-ALL"},{"$f":"IF(D22=\"\",1,0)","v":0},null,null,null,null,null,null,null,null,null,null,"BELGIUM","http://www.swift.com",null,null,null,"BSD"]
[null,null,null,null,null,null,null,null,null,null,null,null,null,null,null,null,"BELIZE","http://standards.iso.org/iso/17442",null,null,null,"BTN"]
[null,null,null,null,null,null,null,null,null,null,null,null,null,null,null,null,"BENIN","http://standards.iso.org/iso/17442",null,null,null,"BWP"]
[null,"Advanced Requirements",null,null,null,null,null,null,null,null,null,null,null,null,null,null,"BERMUDA","http://standards.iso.org/iso/17442",null,null,null,"BYN"]
[null,null,null,null,null,null,null,null,null,null,null,null,null,null,null,null,"BHUTAN","http://standards.iso.org/iso/17442",null,null,null,"BZD"]
[null,"Identifier scheme",":",{"$f":"IFERROR(VLOOKUP(D16,Q:R,2,FALSE),R1)","v":"http://standards.iso.org/iso/17442"},{"$f":"D27","v":"http://standards.iso.org/iso/17442"},null,null,null,null,null,null,null,null,null,null,null,"BOLIVIA, PLURINATIONAL STATE OF","http://standards.iso.org/iso/17442",null,null,null,"CAD"]
[null,null,null,null,null,null,null,null,null,null,null,null,null,null,null,null,"BRAZIL","http://standards.iso.org/iso/17442",null,null,null,"COP"]
[null,"Monetary decimals",":",null,null,null,null,null,null,null,null,null,null,null,null,null,"BRITISH INDIAN OCEAN TERRITORY","http://standards.iso.org/iso/17442",null,null,null,"CRC"]
[null,null,null,null,null,null,null,null,null,null,null,null,null,null,null,null,"BRUNEI DARUSSALAM","http://standards.iso.org/iso/17442",null,null,null,"CUC"]
[null,"Monetary precision",":",-3,null,{"$f":" 0.5 * 10^(-1 * PP_MonetaryPrecision)","v":500},null,null,null,null,null,null,null,null,null,null,"BULGARIA","http://standards.iso.org/iso/17442",null,null,null,"CUP"]
[null,null,null,null,null,null,null,null,null,null,null,null,null,null,null,null,"BURKINA FASO","http://standards.iso.org/iso/17442",null,null,null,"CVE"]
[null,"Pure decimals",":",4,null,{"$f":" 0.5 * 10^(-1 * PP_DecimalPrecision)","v":5.0000000000000002E-5},null,null,null,null,null,null,null,null,null,null,"BURUNDI","http://standards.iso.org/iso/17442",null,null,null,"CZK"]
[null,null,null,null,null,null,null,null,null,null,null,null,null,null,null,null,"CAMBODIA","http://standards.iso.org/iso/17442",null,null,null,"DJF"]
[null,"Pure precision",":",4,null,null,null,"#XBRL made simple!",null,null,null,null,null,null,null,null,"CAMEROON","http://standards.iso.org/iso/17442",null,null,null,"DKK"]
[null,null,null,null,null,null,null,null,null,null,null,null,null,null,null,null,"CANADA","http://standards.iso.org/iso/17442",null,null,null,"DOP"]
[null,"Concatenate Errors",":",false,null,null,null,null,null,null,null,null,null,null,null,null,"CAPE VERDE","http://standards.iso.org/iso/17442",null,null,null,"DZD"]
[null,"Additional Requirements (Country specific)",null,null,null,null,null,null,null,null,null,null,null,null,null,null,"CAYMAN ISLANDS","http://standards.iso.org/iso/17442",null,null,null,"EGP"]
["BELGIUM",null,null,null,null,null,null,null,null,null,null,null,null,null,null,null,"CENTRAL AFRICAN REPUBLIC","http://standards.iso.org/iso/17442",null,null,null,"ERN"]
["BELGIUM","Post Parsing features",":",null,null,{"$f":"IF(AND(A40=PP_Country,D40=\"\"),1,0)","v":0},null,null,null,null,null,null,null,null,null,null,"CHAD","http://standards.iso.org/iso/17442",null,null,null,"ETB"]
["BELGIUM",null,null,null,null,null,null,null,null,null,null,null,null,null,null,null,"CHILE","http://standards.iso.org/iso/17442",null,null,null,"EUR"]
["BELGIUM","Reporter e-mail",":",null,null,null,null,null,null,null,null,null,null,null,null,null,"CHINA","http://standards.iso.org/iso/17442",null,null,null,"FJD"]
["BELGIUM",null,null,null,null,null,null,null,null,null,null,null,null,null,null,null,"CHRISTMAS ISLAND","http://standards.iso.org/iso/17442",null,null,null,"FKP"]
["BELGIUM","Declarer Type",":",null,{"$f":"\"\"&D44","v":""},{"$f":"IF(AND(A44=PP_Country,D44=\"\"),1,0)","v":0},null,null,null,null,null,null,null,null,null,null,"COCOS (KEELING) ISLANDS","http://standards.iso.org/iso/17442",null,null,null,"GBP"]
["BELGIUM",null,null,null,null,null,null,null,null,null,null,null,null,null,null,null,"COLOMBIA","http://standards.iso.org/iso/17442",null,null,null,"GEL"]
["BELGIUM","Domain",":",null,{"$f":"\"\"&D46","v":""},{"$f":"IF(AND(A46=PP_Country,D46=\"\"),1,0)","v":0},null,null,null,null,null,null,null,null,null,null,"COMOROS","http://standards.iso.org/iso/17442",null,null,null,"GGP"]
["BELGIUM",null,null,null,null,null,null,null,null,null,null,null,null,null,null,null,"CONGO","http://standards.iso.org/iso/17442",null,null,null,"GHS"]
[null,"ParsePort-specific parameters:",null,"SII_",null,null,null,null,null,null,null,null,null,null,null,null,"CONGO, THE DEMOCRATIC REPUBLIC OF THE","http://standards.iso.org/iso/17442",null,null,null,"GIP"]
[null,"Compress contexts",null,true,null,null,null,null,null,null,null,null,null,null,null,null,"COOK ISLANDS","http://standards.iso.org/iso/17442",null,null,null,"GMD"]
[null,"Language",null,"EN",null,null,null,null,null,null,null,null,null,null,null,null,"COSTA RICA","http://standards.iso.org/iso/17442",null,null,null,"GNF"]
[null,"Debug mode",null,false,null,null,null,null,null,null,null,null,null,null,null,null,"CÔTE D'IVOIRE","http://standards.iso.org/iso/17442",null,null,null,"GTQ"]
[null,"LookupValue fallback",null,false,null,null,null,null,null,null,null,null,null,null,null,null,"CROATIA","http://standards.iso.org/iso/17442",null,null,null,"GYD"]
[null,null,null,null,null,null,null,null,null,null,null,"//General data label{B}","//General data value{E}",null,null,null,"CUBA","http://standards.iso.org/iso/17442",null,null,null,"HKD"]
["BELGIUM",null,null,null,null,null,null,null,null,null,null,null,null,null,null,null,"CURAÇAO","http://standards.iso.org/iso/17442",null,null,null,"HNL"]
["BELGIUM",null,null,null,null,null,null,null,null,null,null,null,null,null,null,null,"CYPRUS","http://standards.iso.org/iso/17442",null,null,null,"HRK"]
[null,null,null,null,null,null,null,null,null,null,null,null,null,null,null,null,"CZECH REPUBLIC","http://standards.iso.org/iso/17442",null,null,null,"HTG"]
[null,null,null,null,null,null,null,null,null,null,null,null,null,null,null,null,"DENMARK","http://standards.iso.org/iso/17442",null,null,null,"HUF"]
[null,null,null,null,null,null,null,null,null,null,null,null,null,null,null,null,"DJIBOUTI","http://standards.iso.org/iso/17442",null,null,null,"IDR"]
[null,null,null,null,null,null,null,null,null,null,null,null,null,null,null,null,"DOMINICA","http://standards.iso.org/iso/17442",null,null,null,"ILS"]
[null,null,null,null,null,null,null,null,null,null,null,null,null,null,null,null,"DOMINICAN REPUBLIC","http://standards.iso.org/iso/17442",null,null,null,"IMP"]
[null,null,null,null,null,null,null,null,null,null,null,null,null,null,null,null,"ECUADOR","http://standards.iso.org/iso/17442",null,null,null,"INR"]
[null,null,null,null,null,null,null,null,null,null,null,null,null,null,null,null,"EGYPT","http://standards.iso.org/iso/17442",null,null,null,"IQD"]
[null,null,null,null,null,null,null,null,null,null,null,null,null,null,null,null,"EL SALVADOR","http://standards.iso.org/iso/17442",null,null,null,"IRR"]
[null,null,null,null,null,null,null,null,null,null,null,null,null,null,null,null,"EQUATORIAL GUINEA","http://standards.iso.org/iso/17442",null,null,null,"ISK"]
[null,null,null,null,null,null,null,null,null,null,null,null,null,null,null,null,"ERITREA","http://standards.iso.org/iso/17442",null,null,null,"JEP"]
[null,null,null,null,null,null,null,null,null,null,null,null,null,null,null,null,"ESTONIA","http://standards.iso.org/iso/17442",null,null,null,"JMD"]
[null,null,null,null,null,null,null,null,null,null,null,null,null,null,null,null,"ETHIOPIA","http://standards.iso.org/iso/17442",null,null,null,"JOD"]
[null,null,null,null,null,null,null,null,null,null,null,null,null,null,null,null,"FALKLAND ISLANDS (MALVINAS)","http://standards.iso.org/iso/17442",null,null,null,"JPY"]
[null,null,null,null,null,null,null,null,null,null,null,null,null,null,null,null,"FAROE ISLANDS","http://standards.iso.org/iso/17442",null,null,null,"KES"]
[null,null,null,null,null,null,null,null,null,null,null,null,null,null,null,null,"FIJI","http://standards.iso.org/iso/17442",null,null,null,"KGS"]
[null,null,null,null,null,null,null,null,null,null,null,null,null,null,null,null,"FINLAND","http://standards.iso.org/iso/17442",null,null,null,"KHR"]
[null,null,null,null,null,null,null,null,null,null,null,null,null,null,null,null,"FRANCE","http://standards.iso.org/iso/17442",null,null,null,"KMF"]
[null,null,null,null,null,null,null,null,null,null,null,null,null,null,null,null,"FRENCH GUIANA","http://standards.iso.org/iso/17442",null,null,null,"KPW"]
[null,null,null,null,null,null,null,null,null,null,null,null,null,null,null,null,"FRENCH POLYNESIA","http://standards.iso.org/iso/17442",null,null,null,"KRW"]
[null,null,null,null,null,null,null,null,null,null,null,null,null,null,null,null,"FRENCH SOUTHERN TERRITORIES","http://standards.iso.org/iso/17442",null,null,null,"KWD"]
[null,null,null,null,null,null,null,null,null,null,null,null,null,null,null,null,"GABON","http://standards.iso.org/iso/17442",null,null,null,"KYD"]
[null,null,null,null,null,null,null,null,null,null,null,null,null,null,null,null,"GAMBIA","http://standards.iso.org/iso/17442",null,null,null,"KZT"]
[null,null,null,null,null,null,null,null,null,null,null,null,null,null,null,null,"GEORGIA","http://standards.iso.org/iso/17442",null,null,null,"LAK"]
[null,null,null,null,null,null,null,null,null,null,null,null,null,null,null,null,"GERMANY","http://standards.iso.org/iso/17442",null,null,null,"LBP"]
[null,null,null,null,null,null,null,null,null,null,null,null,null,null,null,null,"GHANA","http://standards.iso.org/iso/17442",null,null,null,"LKR"]
[null,null,null,null,null,null,null,null,null,null,null,null,null,null,null,null,"GIBRALTAR","http://standards.iso.org/iso/17442",null,null,null,"LRD"]
[null,null,null,null,null,null,null,null,null,null,null,null,null,null,null,null,"GREECE","http://standards.iso.org/iso/17442",null,null,null,"LSL"]
[null,null,null,null,null,null,null,null,null,null,null,null,null,null,null,null,"GREENLAND","http://standards.iso.org/iso/17442",null,null,null,"LYD"]
[null,null,null,null,null,null,null,null,null,null,null,null,null,null,null,null,"GRENADA","http://standards.iso.org/iso/17442",null,null,null,"MAD"]
[null,null,null,null,null,null,null,null,null,null,null,null,null,null,null,null,"GUADELOUPE","http://standards.iso.org/iso/17442",null,null,null,"MDL"]
[null,null,null,null,null,null,null,null,null,null,null,null,null,null,null,null,"GUAM","http://standards.iso.org/iso/17442",null,null,null,"MGA"]
[null,null,null,null,null,null,null,null,null,null,null,null,null,null,null,null,"GUATEMALA","http://standards.iso.org/iso/17442",null,null,null,"MKD"]
[null,null,null,null,null,null,null,null,null,null,null,null,null,null,null,null,"GUERNSEY","http://standards.iso.org/iso/17442",null,null,null,"MMK"]
[null,null,null,null,null,null,null,null,null,null,null,null,null,null,null,null,"GUINEA","http://standards.iso.org/iso/17442",null,null,null,"MNT"]
[null,null,null,null,null,null,null,null,null,null,null,null,null,null,null,null,"GUINEA-BISSAU","http://standards.iso.org/iso/17442",null,null,null,"MOP"]
[null,null,null,null,null,null,null,null,null,null,null,null,null,null,null,null,"GUYANA","http://standards.iso.org/iso/17442",null,null,null,"MRO"]
[null,null,null,null,null,null,null,null,null,null,null,null,null,null,null,null,"HAITI","http://standards.iso.org/iso/17442",null,null,null,"MUR"]
[null,null,null,null,null,null,null,null,null,null,null,null,null,null,null,null,"HEARD ISLAND AND MCDONALD ISLANDS","http://standards.iso.org/iso/17442",null,null,null,"MVR"]
[null,null,null,null,null,null,null,null,null,null,null,null,null,null,null,null,"HOLY SEE (VATICAN CITY STATE)","http://standards.iso.org/iso/17442",null,null,null,"MWK"]
[null,null,null,null,null,null,null,null,null,null,null,null,null,null,null,null,"HONDURAS","http://standards.iso.org/iso/17442",null,null,null,"MXN"]
[null,null,null,null,null,null,null,null,null,null,null,null,null,null,null,null,"HONG KONG","http://standards.iso.org/iso/17442",null,null,null,"MYR"]
[null,null,null,null,null,null,null,null,null,null,null,null,null,null,null,null,"HUNGARY","http://standards.iso.org/iso/17442",null,null,null,"MZN"]
[null,null,null,null,null,null,null,null,null,null,null,null,null,null,null,null,"ICELAND","http://standards.iso.org/iso/17442",null,null,null,"NAD"]
[null,null,null,null,null,null,null,null,null,null,null,null,null,null,null,null,"INDIA","http://standards.iso.org/iso/17442",null,null,null,"NGN"]
[null,null,null,null,null,null,null,null,null,null,null,null,null,null,null,null,"INDONESIA","http://standards.iso.org/iso/17442",null,null,null,"NIO"]
[null,null,null,null,null,null,null,null,null,null,null,null,null,null,null,null,"IRAN, ISLAMIC REPUBLIC OF","http://standards.iso.org/iso/17442",null,null,null,"NOK"]
[null,null,null,null,null,null,null,null,null,null,null,null,null,null,null,null,"IRAQ","http://standards.iso.org/iso/17442",null,null,null,"NPR"]
[null,null,null,null,null,null,null,null,null,null,null,null,null,null,null,null,"IRELAND","http://standards.iso.org/iso/17442",null,null,null,"NZD"]
[null,null,null,null,null,null,null,null,null,null,null,null,null,null,null,null,"ISLE OF MAN","http://standards.iso.org/iso/17442",null,null,null,"OMR"]
[null,null,null,null,null,null,null,null,null,null,null,null,null,null,null,null,"ISRAEL","http://standards.iso.org/iso/17442",null,null,null,"PAB"]
[null,null,null,null,null,null,null,null,null,null,null,null,null,null,null,null,"ITALY","http://standards.iso.org/iso/17442",null,null,null,"PEN"]
[null,null,null,null,null,null,null,null,null,null,null,null,null,null,null,null,"JAMAICA","http://standards.iso.org/iso/17442",null,null,null,"PGK"]
[null,null,null,null,null,null,null,null,null,null,null,null,null,null,null,null,"JAPAN","http://standards.iso.org/iso/17442",null,null,null,"PHP"]
[null,null,null,null,null,null,null,null,null,null,null,null,null,null,null,null,"JERSEY","http://standards.iso.org/iso/17442",null,null,null,"PKR"]
[null,null,null,null,null,null,null,null,null,null,null,null,null,null,null,null,"JORDAN","http://standards.iso.org/iso/17442",null,null,null,"PLN"]
[null,null,null,null,null,null,null,null,null,null,null,null,null,null,null,null,"KAZAKHSTAN","http://standards.iso.org/iso/17442",null,null,null,"PYG"]
[null,null,null,null,null,null,null,null,null,null,null,null,null,null,null,null,"KENYA","http://standards.iso.org/iso/17442",null,null,null,"QAR"]
[null,null,null,null,null,null,null,null,null,null,null,null,null,null,null,null,"KIRIBATI","http://standards.iso.org/iso/17442",null,null,null,"RON"]
[null,null,null,null,null,null,null,null,null,null,null,null,null,null,null,null,"KOREA, DEMOCRATIC PEOPLE'S REPUBLIC OF","http://standards.iso.org/iso/17442",null,null,null,"RSD"]
[null,null,null,null,null,null,null,null,null,null,null,null,null,null,null,null,"KOREA, REPUBLIC OF","http://standards.iso.org/iso/17442",null,null,null,"RUB"]
[null,null,null,null,null,null,null,null,null,null,null,null,null,null,null,null,"KUWAIT","http://standards.iso.org/iso/17442",null,null,null,"RWF"]
[null,null,null,null,null,null,null,null,null,null,null,null,null,null,null,null,"KYRGYZSTAN","http://standards.iso.org/iso/17442",null,null,null,"SAR"]
[null,null,null,null,null,null,null,null,null,null,null,null,null,null,null,null,"LAO PEOPLE'S DEMOCRATIC REPUBLIC","http://standards.iso.org/iso/17442",null,null,null,"SBD"]
[null,null,null,null,null,null,null,null,null,null,null,null,null,null,null,null,"LATVIA","http://standards.iso.org/iso/17442",null,null,null,"SCR"]
[null,null,null,null,null,null,null,null,null,null,null,null,null,null,null,null,"LEBANON","http://standards.iso.org/iso/17442",null,null,null,"SDG"]
[null,null,null,null,null,null,null,null,null,null,null,null,null,null,null,null,"LESOTHO","http://standards.iso.org/iso/17442",null,null,null,"SEK"]
[null,null,null,null,null,null,null,null,null,null,null,null,null,null,null,null,"LIBERIA","http://standards.iso.org/iso/17442",null,null,null,"SGD"]
[null,null,null,null,null,null,null,null,null,null,null,null,null,null,null,null,"LIBYA","http://standards.iso.org/iso/17442",null,null,null,"SHP"]
[null,null,null,null,null,null,null,null,null,null,null,null,null,null,null,null,"LIECHTENSTEIN","http://standards.iso.org/iso/17442",null,null,null,"SLL"]
[null,null,null,null,null,null,null,null,null,null,null,null,null,null,null,null,"LITHUANIA","http://standards.iso.org/iso/17442",null,null,null,"SOS"]
[null,null,null,null,null,null,null,null,null,null,null,null,null,null,null,null,"LUXEMBOURG","http://www.cssf.lu",null,null,null,"SPL"]
[null,null,null,null,null,null,null,null,null,null,null,null,null,null,null,null,"MACAO","http://standards.iso.org/iso/17442",null,null,null,"SRD"]
[null,null,null,null,null,null,null,null,null,null,null,null,null,null,null,null,"MACEDONIA, THE FORMER YUGOSLAV REPUBLIC OF","http://standards.iso.org/iso/17442",null,null,null,"STD"]
[null,null,null,null,null,null,null,null,null,null,null,null,null,null,null,null,"MADAGASCAR","http://standards.iso.org/iso/17442",null,null,null,"SVC"]
[null,null,null,null,null,null,null,null,null,null,null,null,null,null,null,null,"MALAWI","http://standards.iso.org/iso/17442",null,null,null,"SYP"]
[null,null,null,null,null,null,null,null,null,null,null,null,null,null,null,null,"MALAYSIA","http://standards.iso.org/iso/17442",null,null,null,"SZL"]
[null,null,null,null,null,null,null,null,null,null,null,null,null,null,null,null,"MALDIVES","http://standards.iso.org/iso/17442",null,null,null,"THB"]
[null,null,null,null,null,null,null,null,null,null,null,null,null,null,null,null,"MALI","http://standards.iso.org/iso/17442",null,null,null,"TJS"]
[null,null,null,null,null,null,null,null,null,null,null,null,null,null,null,null,"MALTA","http://standards.iso.org/iso/17442",null,null,null,"TMT"]
[null,null,null,null,null,null,null,null,null,null,null,null,null,null,null,null,"MARSHALL ISLANDS","http://standards.iso.org/iso/17442",null,null,null,"TND"]
[null,null,null,null,null,null,null,null,null,null,null,null,null,null,null,null,"MARTINIQUE","http://standards.iso.org/iso/17442",null,null,null,"TOP"]
[null,null,null,null,null,null,null,null,null,null,null,null,null,null,null,null,"MAURITANIA","http://standards.iso.org/iso/17442",null,null,null,"TRY"]
[null,null,null,null,null,null,null,null,null,null,null,null,null,null,null,null,"MAURITIUS","http://standards.iso.org/iso/17442",null,null,null,"TTD"]
[null,null,null,null,null,null,null,null,null,null,null,null,null,null,null,null,"MAYOTTE","http://standards.iso.org/iso/17442",null,null,null,"TVD"]
[null,null,null,null,null,null,null,null,null,null,null,null,null,null,null,null,"MEXICO","http://standards.iso.org/iso/17442",null,null,null,"TWD"]
[null,null,null,null,null,null,null,null,null,null,null,null,null,null,null,null,"MICRONESIA, FEDERATED STATES OF","http://standards.iso.org/iso/17442",null,null,null,"TZS"]
[null,null,null,null,null,null,null,null,null,null,null,null,null,null,null,null,"MOLDOVA, REPUBLIC OF","http://standards.iso.org/iso/17442",null,null,null,"UAH"]
[null,null,null,null,null,null,null,null,null,null,null,null,null,null,null,null,"MONACO","http://standards.iso.org/iso/17442",null,null,null,"UGX"]
[null,null,null,null,null,null,null,null,null,null,null,null,null,null,null,null,"MONGOLIA","http://standards.iso.org/iso/17442",null,null,null,"USD"]
[null,null,null,null,null,null,null,null,null,null,null,null,null,null,null,null,"MONTENEGRO","http://standards.iso.org/iso/17442",null,null,null,"UYU"]
[null,null,null,null,null,null,null,null,null,null,null,null,null,null,null,null,"MONTSERRAT","http://standards.iso.org/iso/17442",null,null,null,"UZS"]
[null,null,null,null,null,null,null,null,null,null,null,null,null,null,null,null,"MOROCCO","http://standards.iso.org/iso/17442",null,null,null,"VEF"]
[null,null,null,null,null,null,null,null,null,null,null,null,null,null,null,null,"MOZAMBIQUE","http://standards.iso.org/iso/17442",null,null,null,"VND"]
[null,null,null,null,null,null,null,null,null,null,null,null,null,null,null,null,"MYANMAR","http://standards.iso.org/iso/17442",null,null,null,"VUV"]
[null,null,null,null,null,null,null,null,null,null,null,null,null,null,null,null,"NAMIBIA","http://standards.iso.org/iso/17442",null,null,null,"WST"]
[null,null,null,null,null,null,null,null,null,null,null,null,null,null,null,null,"NAURU","http://standards.iso.org/iso/17442",null,null,null,"XAF"]
[null,null,null,null,null,null,null,null,null,null,null,null,null,null,null,null,"NEPAL","http://standards.iso.org/iso/17442",null,null,null,"XCD"]
[null,null,null,null,null,null,null,null,null,null,null,null,null,null,null,null,"NETHERLANDS","http://standards.iso.org/iso/17442",null,null,null,"XDR"]
[null,null,null,null,null,null,null,null,null,null,null,null,null,null,null,null,"NEW CALEDONIA","http://standards.iso.org/iso/17442",null,null,null,"XOF"]
[null,null,null,null,null,null,null,null,null,null,null,null,null,null,null,null,"NEW ZEALAND","http://standards.iso.org/iso/17442",null,null,null,"XPF"]
[null,null,null,null,null,null,null,null,null,null,null,null,null,null,null,null,"NICARAGUA","http://standards.iso.org/iso/17442",null,null,null,"YER"]
[null,null,null,null,null,null,null,null,null,null,null,null,null,null,null,null,"NIGER","http://standards.iso.org/iso/17442",null,null,null,"ZAR"]
[null,null,null,null,null,null,null,null,null,null,null,null,null,null,null,null,"NIGERIA","http://standards.iso.org/iso/17442",null,null,null,"ZMW"]
[null,null,null,null,null,null,null,null,null,null,null,null,null,null,null,null,"NIUE","http://standards.iso.org/iso/17442",null,null,null,"ZWD"]
[null,null,null,null,null,null,null,null,null,null,null,null,null,null,null,null,"NORFOLK ISLAND","http://standards.iso.org/iso/17442"]
[null,null,null,null,null,null,null,null,null,null,null,null,null,null,null,null,"NORTHERN MARIANA ISLANDS","http://standards.iso.org/iso/17442"]
[null,null,null,null,null,null,null,null,null,null,null,null,null,null,null,null,"NORWAY","SC"]
[null,null,null,null,null,null,null,null,null,null,null,null,null,null,null,null,"OMAN","http://standards.iso.org/iso/17442"]
[null,null,null,null,null,null,null,null,null,null,null,null,null,null,null,null,"PAKISTAN","http://standards.iso.org/iso/17442"]
[null,null,null,null,null,null,null,null,null,null,null,null,null,null,null,null,"PALAU","http://standards.iso.org/iso/17442"]
[null,null,null,null,null,null,null,null,null,null,null,null,null,null,null,null,"PALESTINIAN TERRITORY, OCCUPIED","http://standards.iso.org/iso/17442"]
[null,null,null,null,null,null,null,null,null,null,null,null,null,null,null,null,"PANAMA","http://standards.iso.org/iso/17442"]
[null,null,null,null,null,null,null,null,null,null,null,null,null,null,null,null,"PAPUA NEW GUINEA","http://standards.iso.org/iso/17442"]
[null,null,null,null,null,null,null,null,null,null,null,null,null,null,null,null,"PARAGUAY","http://standards.iso.org/iso/17442"]
[null,null,null,null,null,null,null,null,null,null,null,null,null,null,null,null,"PERU","http://standards.iso.org/iso/17442"]
[null,null,null,null,null,null,null,null,null,null,null,null,null,null,null,null,"PHILIPPINES","http://standards.iso.org/iso/17442"]
[null,null,null,null,null,null,null,null,null,null,null,null,null,null,null,null,"PITCAIRN","http://standards.iso.org/iso/17442"]
[null,null,null,null,null,null,null,null,null,null,null,null,null,null,null,null,"POLAND","http://standards.iso.org/iso/17442"]
[null,null,null,null,null,null,null,null,null,null,null,null,null,null,null,null,"PORTUGAL","http://standards.iso.org/iso/17442"]
[null,null,null,null,null,null,null,null,null,null,null,null,null,null,null,null,"PUERTO RICO","http://standards.iso.org/iso/17442"]
[null,null,null,null,null,null,null,null,null,null,null,null,null,null,null,null,"QATAR","http://standards.iso.org/iso/17442"]
[null,null,null,null,null,null,null,null,null,null,null,null,null,null,null,null,"RÉUNION","http://standards.iso.org/iso/17442"]
[null,null,null,null,null,null,null,null,null,null,null,null,null,null,null,null,"ROMANIA","http://standards.iso.org/iso/17442"]
[null,null,null,null,null,null,null,null,null,null,null,null,null,null,null,null,"RUSSIAN FEDERATION","http://standards.iso.org/iso/17442"]
[null,null,null,null,null,null,null,null,null,null,null,null,null,null,null,null,"RWANDA","http://standards.iso.org/iso/17442"]
[null,null,null,null,null,null,null,null,null,null,null,null,null,null,null,null,"SAINT BARTHÉLEMY","http://standards.iso.org/iso/17442"]
[null,null,null,null,null,null,null,null,null,null,null,null,null,null,null,null,"SAINT HELENA, ASCENSION AND TRISTAN DA CUNHA","http://standards.iso.org/iso/17442"]
[null,null,null,null,null,null,null,null,null,null,null,null,null,null,null,null,"SAINT KITTS AND NEVIS","http://standards.iso.org/iso/17442"]
[null,null,null,null,null,null,null,null,null,null,null,null,null,null,null,null,"SAINT LUCIA","http://standards.iso.org/iso/17442"]
[null,null,null,null,null,null,null,null,null,null,null,null,null,null,null,null,"SAINT MARTIN (FRENCH PART)","http://standards.iso.org/iso/17442"]
[null,null,null,null,null,null,null,null,null,null,null,null,null,null,null,null,"SAINT PIERRE AND MIQUELON","http://standards.iso.org/iso/17442"]
[null,null,null,null,null,null,null,null,null,null,null,null,null,null,null,null,"SAINT VINCENT AND THE GRENADINES","http://standards.iso.org/iso/17442"]
[null,null,null,null,null,null,null,null,null,null,null,null,null,null,null,null,"SAMOA","http://standards.iso.org/iso/17442"]
[null,null,null,null,null,null,null,null,null,null,null,null,null,null,null,null,"SAN MARINO","http://standards.iso.org/iso/17442"]
[null,null,null,null,null,null,null,null,null,null,null,null,null,null,null,null,"SAO TOME AND PRINCIPE","http://standards.iso.org/iso/17442"]
[null,null,null,null,null,null,null,null,null,null,null,null,null,null,null,null,"SAUDI ARABIA","http://standards.iso.org/iso/17442"]
[null,null,null,null,null,null,null,null,null,null,null,null,null,null,null,null,"SENEGAL","http://standards.iso.org/iso/17442"]
[null,null,null,null,null,null,null,null,null,null,null,null,null,null,null,null,"SERBIA","http://standards.iso.org/iso/17442"]
[null,null,null,null,null,null,null,null,null,null,null,null,null,null,null,null,"SEYCHELLES","http://standards.iso.org/iso/17442"]
[null,null,null,null,null,null,null,null,null,null,null,null,null,null,null,null,"SIERRA LEONE","http://standards.iso.org/iso/17442"]
[null,null,null,null,null,null,null,null,null,null,null,null,null,null,null,null,"SINGAPORE","http://standards.iso.org/iso/17442"]
[null,null,null,null,null,null,null,null,null,null,null,null,null,null,null,null,"SINT MAARTEN (DUTCH PART)","http://standards.iso.org/iso/17442"]
[null,null,null,null,null,null,null,null,null,null,null,null,null,null,null,null,"SLOVAKIA","http://standards.iso.org/iso/17442"]
[null,null,null,null,null,null,null,null,null,null,null,null,null,null,null,null,"SLOVENIA","http://standards.iso.org/iso/17442"]
[null,null,null,null,null,null,null,null,null,null,null,null,null,null,null,null,"SOLOMON ISLANDS","http://standards.iso.org/iso/17442"]
[null,null,null,null,null,null,null,null,null,null,null,null,null,null,null,null,"SOMALIA","http://standards.iso.org/iso/17442"]
[null,null,null,null,null,null,null,null,null,null,null,null,null,null,null,null,"SOUTH AFRICA","http://standards.iso.org/iso/17442"]
[null,null,null,null,null,null,null,null,null,null,null,null,null,null,null,null,"SOUTH GEORGIA AND THE SOUTH SANDWICH ISLANDS","http://standards.iso.org/iso/17442"]
[null,null,null,null,null,null,null,null,null,null,null,null,null,null,null,null,"SOUTH SUDAN","http://standards.iso.org/iso/17442"]
[null,null,null,null,null,null,null,null,null,null,null,null,null,null,null,null,"SPAIN","http://standards.iso.org/iso/17442"]
[null,null,null,null,null,null,null,null,null,null,null,null,null,null,null,null,"SRI LANKA","http://standards.iso.org/iso/17442"]
[null,null,null,null,null,null,null,null,null,null,null,null,null,null,null,null,"SUDAN","http://standards.iso.org/iso/17442"]
[null,null,null,null,null,null,null,null,null,null,null,null,null,null,null,null,"SURINAME","http://standards.iso.org/iso/17442"]
[null,null,null,null,null,null,null,null,null,null,null,null,null,null,null,null,"SVALBARD AND JAN MAYEN","http://standards.iso.org/iso/17442"]
[null,null,null,null,null,null,null,null,null,null,null,null,null,null,null,null,"SWAZILAND","http://standards.iso.org/iso/17442"]
[null,null,null,null,null,null,null,null,null,null,null,null,null,null,null,null,"SWEDEN","http://www.fi.se/instnr"]
[null,null,null,null,null,null,null,null,null,null,null,null,null,null,null,null,"SWITZERLAND","http://standards.iso.org/iso/17442"]
[null,null,null,null,null,null,null,null,null,null,null,null,null,null,null,null,"SYRIAN ARAB REPUBLIC","http://standards.iso.org/iso/17442"]
[null,null,null,null,null,null,null,null,null,null,null,null,null,null,null,null,"TAIWAN, PROVINCE OF CHINA","http://standards.iso.org/iso/17442"]
[null,null,null,null,null,null,null,null,null,null,null,null,null,null,null,null,"TAJIKISTAN","http://standards.iso.org/iso/17442"]
[null,null,null,null,null,null,null,null,null,null,null,null,null,null,null,null,"TANZANIA, UNITED REPUBLIC OF","http://standards.iso.org/iso/17442"]
[null,null,null,null,null,null,null,null,null,null,null,null,null,null,null,null,"THAILAND","http://standards.iso.org/iso/17442"]
[null,null,null,null,null,null,null,null,null,null,null,null,null,null,null,null,"TIMOR-LESTE","http://standards.iso.org/iso/17442"]
[null,null,null,null,null,null,null,null,null,null,null,null,null,null,null,null,"TOGO","http://standards.iso.org/iso/17442"]
[null,null,null,null,null,null,null,null,null,null,null,null,null,null,null,null,"TOKELAU","http://standards.iso.org/iso/17442"]
[null,null,null,null,null,null,null,null,null,null,null,null,null,null,null,null,"TONGA","http://standards.iso.org/iso/17442"]
[null,null,null,null,null,null,null,null,null,null,null,null,null,null,null,null,"TRINIDAD AND TOBAGO","http://standards.iso.org/iso/17442"]
[null,null,null,null,null,null,null,null,null,null,null,null,null,null,null,null,"TUNISIA","http://standards.iso.org/iso/17442"]
[null,null,null,null,null,null,null,null,null,null,null,null,null,null,null,null,"TURKEY","http://standards.iso.org/iso/17442"]
[null,null,null,null,null,null,null,null,null,null,null,null,null,null,null,null,"TURKMENISTAN","http://standards.iso.org/iso/17442"]
[null,null,null,null,null,null,null,null,null,null,null,null,null,null,null,null,"TURKS AND CAICOS ISLANDS","http://standards.iso.org/iso/17442"]
[null,null,null,null,null,null,null,null,null,null,null,null,null,null,null,null,"TUVALU","http://standards.iso.org/iso/17442"]
[null,null,null,null,null,null,null,null,null,null,null,null,null,null,null,null,"UGANDA","http://standards.iso.org/iso/17442"]
[null,null,null,null,null,null,null,null,null,null,null,null,null,null,null,null,"UKRAINE","http://standards.iso.org/iso/17442"]
[null,null,null,null,null,null,null,null,null,null,null,null,null,null,null,null,"UNITED ARAB EMIRATES","http://standards.iso.org/iso/17442"]
[null,null,null,null,null,null,null,null,null,null,null,null,null,null,null,null,"UNITED KINGDOM","http://standards.iso.org/iso/17442"]
[null,null,null,null,null,null,null,null,null,null,null,null,null,null,null,null,"UNITED STATES","http://standards.iso.org/iso/17442"]
[null,null,null,null,null,null,null,null,null,null,null,null,null,null,null,null,"UNITED STATES MINOR OUTLYING ISLANDS","http://standards.iso.org/iso/17442"]
[null,null,null,null,null,null,null,null,null,null,null,null,null,null,null,null,"URUGUAY","http://standards.iso.org/iso/17442"]
[null,null,null,null,null,null,null,null,null,null,null,null,null,null,null,null,"UZBEKISTAN","http://standards.iso.org/iso/17442"]
[null,null,null,null,null,null,null,null,null,null,null,null,null,null,null,null,"VANUATU","http://standards.iso.org/iso/17442"]
[null,null,null,null,null,null,null,null,null,null,null,null,null,null,null,null,"VENEZUELA, BOLIVARIAN REPUBLIC OF","http://standards.iso.org/iso/17442"]
[null,null,null,null,null,null,null,null,null,null,null,null,null,null,null,null,"VIET NAM","http://standards.iso.org/iso/17442"]
[null,null,null,null,null,null,null,null,null,null,null,null,null,null,null,null,"VIRGIN ISLANDS, BRITISH","http://standards.iso.org/iso/17442"]
[null,null,null,null,null,null,null,null,null,null,null,null,null,null,null,null,"VIRGIN ISLANDS, U.S.","http://standards.iso.org/iso/17442"]
[null,null,null,null,null,null,null,null,null,null,null,null,null,null,null,null,"WALLIS AND FUTUNA","http://standards.iso.org/iso/17442"]
[null,null,null,null,null,null,null,null,null,null,null,null,null,null,null,null,"WESTERN SAHARA","http://standards.iso.org/iso/17442"]
[null,null,null,null,null,null,null,null,null,null,null,null,null,null,null,null,"YEMEN","http://standards.iso.org/iso/17442"]
[null,null,null,null,null,null,null,null,null,null,null,null,null,null,null,null,"ZAMBIA","http://standards.iso.org/iso/17442"]
[null,null,null,null,null,null,null,null,null,null,null,null,null,null,null,null,"ZIMBABWE","http://standards.iso.org/iso/17442"]
[null,null,null,null,null,null,null,null,null,null,null,null,null,null,null,null,"ÅLAND ISLANDS","http://standards.iso.org/iso/17442"]
[null,null,null,null,null,null,null,null,null,null,null,null,null,null,null,null,"Other Countries","http://standards.iso.org/iso/17442"]

{"sheet":"XBRL Errors","index":1,"n_rows":19,"n_cols":2,"rows_kept":19,"cut":false,"hidden":false,"merged":[]}
["Timestamp","Error"]
["2024-01-05T18:36:27","FILING RULE ERROR S 2.8.(c): inappropriateSchemeOrIdentifier: If scheme 'http://standards.iso.org/iso/17442' or scheme 'LEI' has been used, the identifier must be a valid LEI-code. Please use the national identifierScheme when reporting with a national Identifier."]
[]
["2024-01-05T18:35:32","FILING RULE ERROR S 2.8.(c): inappropriateSchemeOrIdentifier: If scheme 'http://standards.iso.org/iso/17442' or scheme 'LEI' has been used, the identifier must be a valid LEI-code. Please use the national identifierScheme when reporting with a national Identifier."]
[]
["2024-01-04T14:35:54","FILING RULE ERROR S 2.8.(c): inappropriateSchemeOrIdentifier: If scheme 'http://standards.iso.org/iso/17442' or scheme 'LEI' has been used, the identifier must be a valid LEI-code. Please use the national identifierScheme when reporting with a national Identifier."]
[]
["2024-01-04T13:58:18","FILING RULE ERROR S 2.8.(c): inappropriateSchemeOrIdentifier: If scheme 'http://standards.iso.org/iso/17442' or scheme 'LEI' has been used, the identifier must be a valid LEI-code. Please use the national identifierScheme when reporting with a national Identifier."]
["2024-01-04T13:58:18","In context 'xbrli:context id=\"ctx-1\"', primary item 'dnb_met:ii003' contains invalid hypercubes in all base sets."]
["2024-01-04T13:58:18","In context 'xbrli:context id=\"ctx-1\"', values 'dnb_dom030:mem014' and 'dnb_dom030:mem034' are reported for the same dimension 'dnb_dim:dim044'."]
["2024-01-04T13:58:18","In context 'xbrli:context id=\"ctx-2\"', primary item 'dnb_met:ii003' contains invalid hypercubes in all base sets."]
["2024-01-04T13:58:18","In context 'xbrli:context id=\"ctx-2\"', primary item 'dnb_met:mi004' contains invalid hypercubes in all base sets."]
["2024-01-04T13:58:18","In context 'xbrli:context id=\"ctx-2\"', values 'dnb_dom030:mem014' and 'dnb_dom030:mem034' are reported for the same dimension 'dnb_dim:dim044'."]
["2024-01-04T13:58:18","In context 'xbrli:context id=\"ctx-3\"', primary item 'dnb_met:ii003' contains invalid hypercubes in all base sets."]
["2024-01-04T13:58:18","In context 'xbrli:context id=\"ctx-3\"', values 'dnb_dom030:mem014' and 'dnb_dom030:mem034' are reported for the same dimension 'dnb_dim:dim044'."]
["2024-01-04T13:58:18","In context 'xbrli:context id=\"ctx-4\"', primary item 'dnb_met:ii003' contains invalid hypercubes in all base sets."]
["2024-01-04T13:58:18","In context 'xbrli:context id=\"ctx-4\"', values 'dnb_dom030:mem014' and 'dnb_dom030:mem034' are reported for the same dimension 'dnb_dim:dim044'."]
["2024-01-04T13:58:18","In context 'xbrli:context id=\"ctx-6\"', primary item 'dnb_met:mi004' contains invalid hypercubes in all base sets."]
["2024-01-04T13:58:18","In context 'xbrli:context id=\"ctx-6\"', values 'dnb_dom030:mem014' and 'dnb_dom030:mem034' are reported for the same dimension 'dnb_dim:dim044'."]

{"sheet":"Index","index":2,"n_rows":28,"n_cols":5,"rows_kept":28,"cut":false,"hidden":false,"merged":[[2,1,2,14]]}
[]
[]
[null,"Index"]
[]
[null,"Template Code","Template Name","Reporting Status"]
[null,"T01.01","T01.01 Payment transactions involving non-MFIs, sent; card-based transactions",null,{"$f":"IF($D$6=\"Reported\",\"@ForceFilingCode:true\",IF($D$6=\"Not Reported\",\"@ForceFilingCode:false\",\"\"))","v":""}]
[null,"T01.02","T01.02 Payment transactions involving non-MFIs, sent; other transactions",null,{"$f":"IF($D$7=\"Reported\",\"@ForceFilingCode:true\",IF($D$7=\"Not Reported\",\"@ForceFilingCode:false\",\"\"))","v":""}]
[null,"T01.03","T01.03 Payment transactions involving non-MFIs, received; card-based transactions",null,{"$f":"IF($D$8=\"Reported\",\"@ForceFilingCode:true\",IF($D$8=\"Not Reported\",\"@ForceFilingCode:false\",\"\"))","v":""}]
[null,"T01.04","T01.04 Payment transactions involving non-MFIs, received; other transactions",null,{"$f":"IF($D$9=\"Reported\",\"@ForceFilingCode:true\",IF($D$9=\"Not Reported\",\"@ForceFilingCode:false\",\"\"))","v":""}]
[null,"T02.01","T02.01 Payment transactions involving non-MFIs, sent; card-based transactions - Derogation",null,{"$f":"IF($D$10=\"Reported\",\"@ForceFilingCode:true\",IF($D$10=\"Not Reported\",\"@ForceFilingCode:false\",\"\"))","v":""}]
[null,"T02.02","T02.02 Payment transactions involving non-MFIs, sent; other transactions - Derogation",null,{"$f":"IF($D$11=\"Reported\",\"@ForceFilingCode:true\",IF($D$11=\"Not Reported\",\"@ForceFilingCode:false\",\"\"))","v":""}]
[null,"T02.03","T02.03 Payment transactions involving non-MFIs, received; card-based transactions - Derogation",null,{"$f":"IF($D$12=\"Reported\",\"@ForceFilingCode:true\",IF($D$12=\"Not Reported\",\"@ForceFilingCode:false\",\"\"))","v":""}]
[null,"T03.01","T03.01 Losses due to fraud per liability bearer",null,{"$f":"IF($D$13=\"Reported\",\"@ForceFilingCode:true\",IF($D$13=\"Not Reported\",\"@ForceFilingCode:false\",\"\"))","v":""}]
[null,"T04.01","T04.01 Other payment service provider related information; A",null,{"$f":"IF($D$14=\"Reported\",\"@ForceFilingCode:true\",IF($D$14=\"Not Reported\",\"@ForceFilingCode:false\",\"\"))","v":""}]
[null,"T04.02","T04.02 Other payment service provider related information; B",null,{"$f":"IF($D$15=\"Reported\",\"@ForceFilingCode:true\",IF($D$15=\"Not Reported\",\"@ForceFilingCode:false\",\"\"))","v":""}]
[null,"T05.01","T05.01 Payment transactions per type of terminal involving non-MFIs",null,{"$f":"IF($D$16=\"Reported\",\"@ForceFilingCode:true\",IF($D$16=\"Not Reported\",\"@ForceFilingCode:false\",\"\"))","v":""}]
[null,"T05.02","T05.02 Card functions",null,{"$f":"IF($D$17=\"Reported\",\"@ForceFilingCode:true\",IF($D$17=\"Not Reported\",\"@ForceFilingCode:false\",\"\"))","v":""}]
[null,"T05.03","T05.03 Card accepting devices",null,{"$f":"IF($D$18=\"Reported\",\"@ForceFilingCode:true\",IF($D$18=\"Not Reported\",\"@ForceFilingCode:false\",\"\"))","v":""}]
[null,"T06.01","T06.01 Payment transactions involving non-MFIs, quarterly reporting; sent; card-based transactions",null,{"$f":"IF($D$19=\"Reported\",\"@ForceFilingCode:true\",IF($D$19=\"Not Reported\",\"@ForceFilingCode:false\",\"\"))","v":""}]
[null,"T06.02","T06.02 Payment transactions involving non-MFIs, quarterly reporting; sent; card-based transactions, MCC breakdown",null,{"$f":"IF($D$20=\"Reported\",\"@ForceFilingCode:true\",IF($D$20=\"Not Reported\",\"@ForceFilingCode:false\",\"\"))","v":""}]
[null,"T06.03","T06.03 Payment transactions involving non-MFIs, quarterly reporting; sent; other transactions",null,{"$f":"IF($D$21=\"Reported\",\"@ForceFilingCode:true\",IF($D$21=\"Not Reported\",\"@ForceFilingCode:false\",\"\"))","v":""}]
[null,"T07.01","T07.01 Participation in large value payment system",null,{"$f":"IF($D$22=\"Reported\",\"@ForceFilingCode:true\",IF($D$22=\"Not Reported\",\"@ForceFilingCode:false\",\"\"))","v":""}]
[null,"T07.02","T07.02 Payments processed by large value payment system",null,{"$f":"IF($D$23=\"Reported\",\"@ForceFilingCode:true\",IF($D$23=\"Not Reported\",\"@ForceFilingCode:false\",\"\"))","v":""}]
[null,"T08.01","T08.01 Participation in payment system",null,{"$f":"IF($D$24=\"Reported\",\"@ForceFilingCode:true\",IF($D$24=\"Not Reported\",\"@ForceFilingCode:false\",\"\"))","v":""}]
[null,"T08.02","T08.02 Payments processed by retail payments systems",null,{"$f":"IF($D$25=\"Reported\",\"@ForceFilingCode:true\",IF($D$25=\"Not Reported\",\"@ForceFilingCode:false\",\"\"))","v":""}]
[null,"T09.01","T09.01 Participation in TARGET2 component system",null,{"$f":"IF($D$26=\"Reported\",\"@ForceFilingCode:true\",IF($D$26=\"Not Reported\",\"@ForceFilingCode:false\",\"\"))","v":""}]
[null,"T09.02","T09.02 Payments processed by TARGET2 component system",null,{"$f":"IF($D$27=\"Reported\",\"@ForceFilingCode:true\",IF($D$27=\"Not Reported\",\"@ForceFilingCode:false\",\"\"))","v":""}]
[null,"T09.03","T09.03 Other payment service provider related information: National Central Bank",null,{"$f":"IF($D$28=\"Reported\",\"@ForceFilingCode:true\",IF($D$28=\"Not Reported\",\"@ForceFilingCode:false\",\"\"))","v":""}]

{"sheet":"Show","index":3,"n_rows":48,"n_cols":9,"rows_kept":48,"cut":false,"hidden":true,"merged":[]}
["Sheet","Prefix","PAY-ALL","PAY-CH","PAY-CQ","PAY-D","PAY-PSO-L","PAY-PSO-R","PAY-T2-NCB"]
["T01.01",{"$f":"IF(AND(HLOOKUP('General data'!$E$22,$C$1:$J$2,2,FALSE)=\"X\",Index!D6=\"Reported\"),\"/\",\"!\")","v":"!"},"X","X"]
["T01.02",{"$f":"IF(AND(HLOOKUP('General data'!$E$22,$C$1:$J$3,3,FALSE)=\"X\",Index!D7=\"Reported\"),\"/\",\"!\")","v":"!"},"X","X"]
["T01.03",{"$f":"IF(AND(HLOOKUP('General data'!$E$22,$C$1:$J$4,4,FALSE)=\"X\",Index!D8=\"Reported\"),\"/\",\"!\")","v":"!"},"X","X"]
["T01.04",{"$f":"IF(AND(HLOOKUP('General data'!$E$22,$C$1:$J$5,5,FALSE)=\"X\",Index!D9=\"Reported\"),\"/\",\"!\")","v":"!"},"X","X"]
["T02.01",{"$f":"IF(AND(HLOOKUP('General data'!$E$22,$C$1:$J$6,6,FALSE)=\"X\",Index!D10=\"Reported\"),\"/\",\"!\")","v":"!"},"X",null,null,"X"]
["T02.02",{"$f":"IF(AND(HLOOKUP('General data'!$E$22,$C$1:$J$7,7,FALSE)=\"X\",Index!D11=\"Reported\"),\"/\",\"!\")","v":"!"},"X",null,null,"X"]
["T02.03",{"$f":"IF(AND(HLOOKUP('General data'!$E$22,$C$1:$J$8,8,FALSE)=\"X\",Index!D12=\"Reported\"),\"/\",\"!\")","v":"!"},"X",null,null,"X"]
["T03.01",{"$f":"IF(AND(HLOOKUP('General data'!$E$22,$C$1:$J$9,9,FALSE)=\"X\",Index!D13=\"Reported\"),\"/\",\"!\")","v":"!"},"X","X",null,"X"]
["T04.01",{"$f":"IF(AND(HLOOKUP('General data'!$E$22,$C$1:$J$10,10,FALSE)=\"X\",Index!D14=\"Reported\"),\"/\",\"!\")","v":"!"},"X","X",null,"X"]
["T04.02",{"$f":"IF(AND(HLOOKUP('General data'!$E$22,$C$1:$J$11,11,FALSE)=\"X\",Index!D15=\"Reported\"),\"/\",\"!\")","v":"!"},"X","X",null,"X"]
["T05.01",{"$f":"IF(AND(HLOOKUP('General data'!$E$22,$C$1:$J$12,12,FALSE)=\"X\",Index!D16=\"Reported\"),\"/\",\"!\")","v":"!"},"X","X"]
["T05.02",{"$f":"IF(AND(HLOOKUP('General data'!$E$22,$C$1:$J$13,13,FALSE)=\"X\",Index!D17=\"Reported\"),\"/\",\"!\")","v":"!"},"X","X"]
["T05.03",{"$f":"IF(AND(HLOOKUP('General data'!$E$22,$C$1:$J$14,14,FALSE)=\"X\",Index!D18=\"Reported\"),\"/\",\"!\")","v":"!"},"X","X"]
["T06.01",{"$f":"IF(AND(HLOOKUP('General data'!$E$22,$C$1:$J$15,15,FALSE)=\"X\",Index!D19=\"Reported\"),\"/\",\"!\")","v":"!"},"X",null,"X"]
["T06.02",{"$f":"IF(AND(HLOOKUP('General data'!$E$22,$C$1:$J$16,16,FALSE)=\"X\",Index!D20=\"Reported\"),\"/\",\"!\")","v":"!"},"X",null,"X"]
["T06.03",{"$f":"IF(AND(HLOOKUP('General data'!$E$22,$C$1:$J$17,17,FALSE)=\"X\",Index!D21=\"Reported\"),\"/\",\"!\")","v":"!"},"X",null,"X"]
["T07.01",{"$f":"IF(AND(HLOOKUP('General data'!$E$22,$C$1:$J$18,18,FALSE)=\"X\",Index!D22=\"Reported\"),\"/\",\"!\")","v":"!"},"X",null,null,null,"X"]
["T07.02",{"$f":"IF(AND(HLOOKUP('General data'!$E$22,$C$1:$J$19,19,FALSE)=\"X\",Index!D23=\"Reported\"),\"/\",\"!\")","v":"!"},"X",null,null,null,"X"]
["T08.01",{"$f":"IF(AND(HLOOKUP('General data'!$E$22,$C$1:$J$20,20,FALSE)=\"X\",Index!D24=\"Reported\"),\"/\",\"!\")","v":"!"},"X",null,null,null,null,"X"]
["T08.02",{"$f":"IF(AND(HLOOKUP('General data'!$E$22,$C$1:$J$21,21,FALSE)=\"X\",Index!D25=\"Reported\"),\"/\",\"!\")","v":"!"},"X",null,null,null,null,"X"]
["T09.01",{"$f":"IF(AND(HLOOKUP('General data'!$E$22,$C$1:$J$22,22,FALSE)=\"X\",Index!D26=\"Reported\"),\"/\",\"!\")","v":"!"},"X",null,null,null,null,null,"X"]
["T09.02",{"$f":"IF(AND(HLOOKUP('General data'!$E$22,$C$1:$J$23,23,FALSE)=\"X\",Index!D27=\"Reported\"),\"/\",\"!\")","v":"!"},"X",null,null,null,null,null,"X"]
["T09.03",{"$f":"IF(AND(HLOOKUP('General data'!$E$22,$C$1:$J$24,24,FALSE)=\"X\",Index!D28=\"Reported\"),\"/\",\"!\")","v":"!"},"X",null,null,null,null,null,"X"]
[]
[{"$f":"IF(Index!D6=\"Not Reported\",\"/T01.01 Rows{Z}@ForceFilingCode:false\",\"\")","v":""},{"$f":"IF(Index!D6=\"Not Reported\",\"//T01.01 Rows{Z}@ForceFilingCode:false\",\"\")","v":""}]
[{"$f":"IF(Index!D7=\"Not Reported\",\"/T01.02 Rows{Z}@ForceFilingCode:false\",\"\")","v":""},{"$f":"IF(Index!D7=\"Not Reported\",\"//T01.02 Rows{Z}@ForceFilingCode:false\",\"\")","v":""}]
[{"$f":"IF(Index!D8=\"Not Reported\",\"/T01.03 Rows{Z}@ForceFilingCode:false\",\"\")","v":""},{"$f":"IF(Index!D8=\"Not Reported\",\"//T01.03 Rows{Z}@ForceFilingCode:false\",\"\")","v":""}]
[{"$f":"IF(Index!D9=\"Not Reported\",\"/T01.04 Rows{Z}@ForceFilingCode:false\",\"\")","v":""},{"$f":"IF(Index!D9=\"Not Reported\",\"//T01.04 Rows{Z}@ForceFilingCode:false\",\"\")","v":""}]
[{"$f":"IF(Index!D10=\"Not Reported\",\"/T02.01 Rows{Z}@ForceFilingCode:false\",\"\")","v":""},{"$f":"IF(Index!D10=\"Not Reported\",\"//T02.01 Rows{Z}@ForceFilingCode:false\",\"\")","v":""}]
[{"$f":"IF(Index!D11=\"Not Reported\",\"/T02.02 Rows{Z}@ForceFilingCode:false\",\"\")","v":""},{"$f":"IF(Index!D11=\"Not Reported\",\"//T02.02 Rows{Z}@ForceFilingCode:false\",\"\")","v":""}]
[{"$f":"IF(Index!D12=\"Not Reported\",\"/T02.03 Rows{Z}@ForceFilingCode:false\",\"\")","v":""},{"$f":"IF(Index!D12=\"Not Reported\",\"//T02.03 Rows{Z}@ForceFilingCode:false\",\"\")","v":""}]
[{"$f":"IF(Index!D13=\"Not Reported\",\"/T03.01 Rows{Z}@ForceFilingCode:false\",\"\")","v":""},{"$f":"IF(Index!D13=\"Not Reported\",\"//T03.01 Rows{Z}@ForceFilingCode:false\",\"\")","v":""}]
[{"$f":"IF(Index!D14=\"Not Reported\",\"/T04.01 Rows{Z}@ForceFilingCode:false\",\"\")","v":""},{"$f":"IF(Index!D14=\"Not Reported\",\"//T04.01 Rows{Z}@ForceFilingCode:false\",\"\")","v":""}]
[{"$f":"IF(Index!D15=\"Not Reported\",\"/T04.02 Rows{Z}@ForceFilingCode:false\",\"\")","v":""},{"$f":"IF(Index!D15=\"Not Reported\",\"//T04.02 Rows{Z}@ForceFilingCode:false\",\"\")","v":""}]
[{"$f":"IF(Index!D16=\"Not Reported\",\"/T05.01 Rows{Z}@ForceFilingCode:false\",\"\")","v":""},{"$f":"IF(Index!D16=\"Not Reported\",\"//T05.01 Rows{Z}@ForceFilingCode:false\",\"\")","v":""}]
[{"$f":"IF(Index!D17=\"Not Reported\",\"/T05.02 Rows{Z}@ForceFilingCode:false\",\"\")","v":""},{"$f":"IF(Index!D17=\"Not Reported\",\"//T05.02 Rows{Z}@ForceFilingCode:false\",\"\")","v":""}]
[{"$f":"IF(Index!D18=\"Not Reported\",\"/T05.03 Rows{Z}@ForceFilingCode:false\",\"\")","v":""},{"$f":"IF(Index!D18=\"Not Reported\",\"//T05.03 Rows{Z}@ForceFilingCode:false\",\"\")","v":""}]
[{"$f":"IF(Index!D19=\"Not Reported\",\"/T06.01 Rows{Z}@ForceFilingCode:false\",\"\")","v":""},{"$f":"IF(Index!D19=\"Not Reported\",\"//T06.01 Rows{Z}@ForceFilingCode:false\",\"\")","v":""}]
[{"$f":"IF(Index!D20=\"Not Reported\",\"/T06.02 Rows{Z}@ForceFilingCode:false\",\"\")","v":""},{"$f":"IF(Index!D20=\"Not Reported\",\"//T06.02 Rows{Z}@ForceFilingCode:false\",\"\")","v":""}]
[{"$f":"IF(Index!D21=\"Not Reported\",\"/T06.03 Rows{Z}@ForceFilingCode:false\",\"\")","v":""},{"$f":"IF(Index!D21=\"Not Reported\",\"//T06.03 Rows{Z}@ForceFilingCode:false\",\"\")","v":""}]
[{"$f":"IF(Index!D22=\"Not Reported\",\"/T07.01 Rows{Z}@ForceFilingCode:false\",\"\")","v":""},{"$f":"IF(Index!D22=\"Not Reported\",\"//T07.01 Rows{Z}@ForceFilingCode:false\",\"\")","v":""}]
[{"$f":"IF(Index!D23=\"Not Reported\",\"/T07.02 Rows{Z}@ForceFilingCode:false\",\"\")","v":""},{"$f":"IF(Index!D23=\"Not Reported\",\"//T07.02 Rows{Z}@ForceFilingCode:false\",\"\")","v":""}]
[{"$f":"IF(Index!D24=\"Not Reported\",\"/T08.01 Rows{Z}@ForceFilingCode:false\",\"\")","v":""},{"$f":"IF(Index!D24=\"Not Reported\",\"//T08.01 Rows{Z}@ForceFilingCode:false\",\"\")","v":""}]
[{"$f":"IF(Index!D25=\"Not Reported\",\"/T08.02 Rows{Z}@ForceFilingCode:false\",\"\")","v":""},{"$f":"IF(Index!D25=\"Not Reported\",\"//T08.02 Rows{Z}@ForceFilingCode:false\",\"\")","v":""}]
[{"$f":"IF(Index!D26=\"Not Reported\",\"/T09.01 Rows{Z}@ForceFilingCode:false\",\"\")","v":""},{"$f":"IF(Index!D26=\"Not Reported\",\"//T09.01 Rows{Z}@ForceFilingCode:false\",\"\")","v":""}]
[{"$f":"IF(Index!D27=\"Not Reported\",\"/T09.02 Rows{Z}@ForceFilingCode:false\",\"\")","v":""},{"$f":"IF(Index!D27=\"Not Reported\",\"//T09.02 Rows{Z}@ForceFilingCode:false\",\"\")","v":""}]
[{"$f":"IF(Index!D28=\"Not Reported\",\"/T09.03 Rows{Z}@ForceFilingCode:false\",\"\")","v":""},{"$f":"IF(Index!D28=\"Not Reported\",\"//T09.03 Rows{Z}@ForceFilingCode:false\",\"\")","v":""}]

{"sheet":"Hierarchies","index":4,"n_rows":339,"n_cols":8,"rows_kept":339,"cut":false,"hidden":true,"merged":[]}
["hier_dom030_099","hier_dom030_022","hier_dom030_027","hier_dom030_027","hier_dom121_002","hier_dom121_002","hier_0","hier_0"]
["2 - Not applicable / All or Total","Not applicable / All or Total","Not applicable / All or Total","Not applicable / All or Total","Not applicable / All or Total","Not applicable / All or Total"]
["2 - Austria","Austria","Afghanistan","Afghanistan","Missing","Missing"]
["2 - Belgium","Belgium","Albania","Albania","742 - Veterinary services","742 - Veterinary services"]
["2 - Bulgaria","Bulgaria","Algeria","Algeria","743 - Wine producers","743 - Wine producers"]
["2 - Croatia","Croatia","American Samoa (East)","American Samoa (East)","744 - Champagne producers","744 - Champagne producers"]
["2 - Cyprus","Cyprus","Andorra","Andorra","763 - Agricultural Cooperatives","763 - Agricultural Cooperatives"]
["2 - Czech Republic","Czech Republic","Angola","Angola","780 - Landscaping and horticultural services","780 - Landscaping and horticultural services"]
["2 - Denmark","Denmark","Anguilla","Anguilla","1353 - Dia (Spain)-Hypermarkets of Food","1353 - Dia (Spain)-Hypermarkets of Food"]
["2 - Estonia","Estonia","Antarctica","Antarctica","1406 - H&M Moda (Spain)-Retail Merchants","1406 - H&M Moda (Spain)-Retail Merchants"]
["2 - Finland","Finland","Antigua and Barbuda","Antigua and Barbuda","1520 - General contractors — residential and commercial","1520 - General contractors — residential and commercial"]
["2 - France","France","Argentina","Argentina","1711 - Heating, plumbing and air-conditioning contractors","1711 - Heating, plumbing and air-conditioning contractors"]
["2 - Germany","Germany","Armenia","Armenia","1731 - Electrical contractors","1731 - Electrical contractors"]
["2 - Greece","Greece","Aruba","Aruba","1740 - Masonry, stonework, tile setting, plastering and insulation contractors","1740 - Masonry, stonework, tile setting, plastering and insulation contractors"]
["2 - Hungary","Hungary","Australia","Australia","1750 - Carpentry contractors","1750 - Carpentry contractors"]
["2 - Iceland","Iceland","Austria","Austria","1761 - Roofing, siding and sheet metal work contractors","1761 - Roofing, siding and sheet metal work contractors"]
["2 - Ireland","Ireland","Azerbaijan","Azerbaijan","1771 - Concrete work contractors","1771 - Concrete work contractors"]
["2 - Italy","Italy","Bahamas","Bahamas","1799 - Special trade contractors — not elsewhere classified","1799 - Special trade contractors — not elsewhere classified"]
["2 - Latvia","Latvia","Bahrain","Bahrain","2741 - Miscellaneous publishing and printing services","2741 - Miscellaneous publishing and printing services"]
["2 - Liechtenstein","Liechtenstein","Bangladesh","Bangladesh","2791 - Typesetting, platemaking and related services","2791 - Typesetting, platemaking and related services"]
["2 - Lithuania","Lithuania","Barbados","Barbados","2842 - Speciality cleaning, polishing and sanitation preparations","2842 - Speciality cleaning, polishing and sanitation preparations"]
["2 - Luxembourg","Luxembourg","Belarus","Belarus","G300 - Airlines (codes between 3000 and 3350)","G300 - Airlines (codes between 3000 and 3350)"]
["2 - Malta","Malta","Belgium","Belgium","G335 - Car rentals (codes between 3351 and 3500)","G335 - Car rentals (codes between 3351 and 3500)"]
["2 - Norway","Norway","Belize","Belize","G350 - Hotels (codes between 3501 and 3999)","G350 - Hotels (codes between 3501 and 3999)"]
["2 - Poland","Poland","Benin","Benin","4011 - Railroads","4011 - Railroads"]
["2 - Portugal","Portugal","Bermuda","Bermuda","4111 - Local and suburban commuter passenger transportation, including ferries","4111 - Local and suburban commuter passenger transportation, including ferries"]
["2 - Romania","Romania","Bhutan","Bhutan","4112 - Passenger railways","4112 - Passenger railways"]
["2 - Slovakia","Slovakia","Bolivia","Bolivia","4119 - Ambulance Services","4119 - Ambulance Services"]
["2 - Slovenia","Slovenia","BES-islands","BES-islands","4121 - Taxi-cabs and limousines","4121 - Taxi-cabs and limousines"]
["2 - Spain","Spain","Bosnia Herzegovina","Bosnia Herzegovina","4131 - Bus Lines","4131 - Bus Lines"]
["2 - Sweden","Sweden","Botswana","Botswana","4214 - Motor freight carriers and trucking — local and long distance, moving and storage companies and local delivery","4214 - Motor freight carriers and trucking — local and long distance, moving and storage companies and local delivery"]
["2 - Domestic (home or reference area)","Domestic (home or reference area)","Bouvet Island (Bouvetoya)","Bouvet Island (Bouvetoya)","4215 - Courier services — air and ground and freight forwarders","4215 - Courier services — air and ground and freight forwarders"]
["2 - Extra EEA","Extra EEA","Brazil","Brazil","4225 - Public warehousing and storage — farm products, refrigerated goods and household goods","4225 - Public warehousing and storage — farm products, refrigerated goods and household goods"]
[null,null,"British Indian Ocean territory","British Indian Ocean territory","4411 - Steamships and cruise lines","4411 - Steamships and cruise lines"]
[null,null,"Brunei","Brunei","4457 - Boat Rentals and Leasing","4457 - Boat Rentals and Leasing"]
[null,null,"Bulgaria","Bulgaria","4468 - Marinas, marine service and supplies","4468 - Marinas, marine service and supplies"]
[null,null,"Burkina Faso (formerly Upper Volta)","Burkina Faso (formerly Upper Volta)","4511 - Airlines and Air Carriers (Not Elsewhere Classified)","4511 - Airlines and Air Carriers (Not Elsewhere Classified)"]
[null,null,"Burundi","Burundi","4582 - Airports, Flying Fields, and Airport Terminals","4582 - Airports, Flying Fields, and Airport Terminals"]
[null,null,"Cape Verde","Cape Verde","4722 - Travel agencies and tour operators","4722 - Travel agencies and tour operators"]
[null,null,"Cambodia","Cambodia","4723 - Package Tour Operators – Germany Only","4723 - Package Tour Operators – Germany Only"]
[null,null,"Cameroon","Cameroon","4784 - Tolls and bridge fees","4784 - Tolls and bridge fees"]
[null,null,"Canada","Canada","4789 - Transportation services — not elsewhere classified","4789 - Transportation services — not elsewhere classified"]
[null,null,"Cayman Islands","Cayman Islands","4812 - Telecommunication equipment and telephone sales","4812 - Telecommunication equipment and telephone sales"]
[null,null,"Central African Republic","Central African Republic","4813 - Key-entry Telecom Merchant providing single local and long-distance phone calls using a central access number in a non–face-to-face environment using key entry","4813 - Key-entry Telecom Merchant providing single local and long-distance phone calls using a central access number in a non–face-to-face environment using key entry"]
[null,null,"Chad","Chad","4814 - Telecommunication services, including local and long distance calls, credit card calls, calls through use of magnetic stripe reading telephones and faxes","4814 - Telecommunication services, including local and long distance calls, credit card calls, calls through use of magnetic stripe reading telephones and faxes"]
[null,null,"Chile","Chile","4815 - Monthly summary telephone charges","4815 - Monthly summary telephone charges"]
[null,null,"China","China","4816 - Computer network/information services","4816 - Computer network/information services"]
[null,null,"Christmas Island (Australian)","Christmas Island (Australian)","4821 - Telegraph services","4821 - Telegraph services"]
[null,null,"Cocos (Keeling) Islands","Cocos (Keeling) Islands","4829 - Wire transfers and money orders","4829 - Wire transfers and money orders"]
[null,null,"Colombia","Colombia","4899 - Cable and other pay television services","4899 - Cable and other pay television services"]
[null,null,"Comoros","Comoros","4900 - Utilities — electric, gas, water and sanitary","4900 - Utilities — electric, gas, water and sanitary"]
[null,null,"Congo, The Democratic Republic of","Congo, The Democratic Republic of","5013 - Motor vehicle supplies and new parts","5013 - Motor vehicle supplies and new parts"]
[null,null,"Congo-Brazzaville","Congo-Brazzaville","5021 - Office and commercial furniture","5021 - Office and commercial furniture"]
[null,null,"Cook Islands","Cook Islands","5039 - Construction materials — not elsewhere classified","5039 - Construction materials — not elsewhere classified"]
[null,null,"Costa Rica","Costa Rica","5044 - Office, photographic, photocopy and microfilm equipment","5044 - Office, photographic, photocopy and microfilm equipment"]
[null,null,"Croatia","Croatia","5045 - Computers, computer peripheral equipment — not elsewhere classified","5045 - Computers, computer peripheral equipment — not elsewhere classified"]
[null,null,"Cuba","Cuba","5046 - Commercial equipment — not elsewhere classified","5046 - Commercial equipment — not elsewhere classified"]
[null,null,"Curaçao","Curaçao","5047 - Dental/laboratory/medical/ophthalmic hospital equipment and supplies","5047 - Dental/laboratory/medical/ophthalmic hospital equipment and supplies"]
[null,null,"Cyprus","Cyprus","5051 - Metal service centres and offices","5051 - Metal service centres and offices"]
[null,null,"Czech Republic","Czech Republic","5065 - Electrical parts and equipment","5065 - Electrical parts and equipment"]
[null,null,"Cote d'Ivoire","Cote d'Ivoire","5072 - Hardware equipment and supplies","5072 - Hardware equipment and supplies"]
[null,null,"Denmark","Denmark","5074 - Plumbing and heating equipment and supplies","5074 - Plumbing and heating equipment and supplies"]
[null,null,"Djibouti","Djibouti","5085 - Industrial supplies — not elsewhere classified","5085 - Industrial supplies — not elsewhere classified"]
[null,null,"Dominica","Dominica","5094 - Precious stones and metals, watches and jewellery","5094 - Precious stones and metals, watches and jewellery"]
[null,null,"Dominican Republic","Dominican Republic","5099 - Durable goods — not elsewhere classified","5099 - Durable goods — not elsewhere classified"]
[null,null,"Ecuador","Ecuador","5111 - Stationery, office supplies and printing and writing paper","5111 - Stationery, office supplies and printing and writing paper"]
[null,null,"Egypt","Egypt","5122 - Drugs, drug proprietors","5122 - Drugs, drug proprietors"]
[null,null,"El Salvador","El Salvador","5131 - Piece goods, notions and other dry goods","5131 - Piece goods, notions and other dry goods"]
[null,null,"Equatorial Guinea","Equatorial Guinea","5137 - Men’s, women’s and children’s uniforms and commercial clothing","5137 - Men’s, women’s and children’s uniforms and commercial clothing"]
[null,null,"Eritrea","Eritrea","5139 - Commercial footwear","5139 - Commercial footwear"]
[null,null,"Estonia","Estonia","5169 - Chemicals and allied products — not elsewhere classified","5169 - Chemicals and allied products — not elsewhere classified"]
[null,null,"Swaziland","Swaziland","5172 - Petroleum and petroleum products","5172 - Petroleum and petroleum products"]
[null,null,"Ethiopia","Ethiopia","5192 - Books, Periodicals and Newspapers","5192 - Books, Periodicals and Newspapers"]
[null,null,"Falkland Islands (Malvinas)","Falkland Islands (Malvinas)","5193 - Florists’ supplies, nursery stock and flowers","5193 - Florists’ supplies, nursery stock and flowers"]
[null,null,"Faroe Islands","Faroe Islands","5198 - Paints, varnishes and supplies","5198 - Paints, varnishes and supplies"]
[null,null,"Fiji","Fiji","5199 - Non-durable goods — not elsewhere classified","5199 - Non-durable goods — not elsewhere classified"]
[null,null,"Finland","Finland","5200 - Home supply warehouse outlets","5200 - Home supply warehouse outlets"]
[null,null,"France","France","5211 - Lumber and building materials outlets","5211 - Lumber and building materials outlets"]
[null,null,"French Polynesia","French Polynesia","5231 - Glass, paint and wallpaper shops","5231 - Glass, paint and wallpaper shops"]
[null,null,"French Southern Territories","French Southern Territories","5251 - Hardware shops","5251 - Hardware shops"]
[null,null,"Gabon","Gabon","5261 - Lawn and garden supply outlets, including nurseries","5261 - Lawn and garden supply outlets, including nurseries"]
[null,null,"Gambia","Gambia","5262 - Marketplaces (online Marketplaces)","5262 - Marketplaces (online Marketplaces)"]
[null,null,"Georgia","Georgia","5271 - Mobile home dealers","5271 - Mobile home dealers"]
[null,null,"Germany","Germany","5299 - Warehouse Club Gas","5299 - Warehouse Club Gas"]
[null,null,"Ghana","Ghana","5300 - Wholesale clubs","5300 - Wholesale clubs"]
[null,null,"Gibraltar","Gibraltar","5309 - Duty-free shops","5309 - Duty-free shops"]
[null,null,"Greece","Greece","5310 - Discount shops","5310 - Discount shops"]
[null,null,"Greenland","Greenland","5311 - Department stores","5311 - Department stores"]
[null,null,"Grenada","Grenada","5331 - Variety stores","5331 - Variety stores"]
[null,null,"Guam","Guam","5333 - Hypermarkets of food","5333 - Hypermarkets of food"]
[null,null,"Guatemala","Guatemala","5399 - Miscellaneous general merchandise","5399 - Miscellaneous general merchandise"]
[null,null,"Guernsey, CI","Guernsey, CI","5411 - Groceries and supermarkets","5411 - Groceries and supermarkets"]
[null,null,"Guinea","Guinea","5422 - Freezer and locker meat provisioners","5422 - Freezer and locker meat provisioners"]
[null,null,"Guinea-Bissau","Guinea-Bissau","5441 - Candy, nut and confectionery shops","5441 - Candy, nut and confectionery shops"]
[null,null,"Guyana","Guyana","5451 - Dairies","5451 - Dairies"]
[null,null,"Haiti","Haiti","5462 - Bakeries","5462 - Bakeries"]
[null,null,"Heard Island and McDonald Islands","Heard Island and McDonald Islands","5499 - Miscellaneous food shops — convenience and speciality retail outlets","5499 - Miscellaneous food shops — convenience and speciality retail outlets"]
[null,null,"Holy See (Vatican City State)","Holy See (Vatican City State)","5511 - Car and truck dealers (new and used) sales, services, repairs, parts and leasing","5511 - Car and truck dealers (new and used) sales, services, repairs, parts and leasing"]
[null,null,"Honduras","Honduras","5521 - Car and truck dealers (used only) sales, service, repairs, parts and leasing","5521 - Car and truck dealers (used only) sales, service, repairs, parts and leasing"]
[null,null,"Hong Kong","Hong Kong","5531 - Auto Store","5531 - Auto Store"]
[null,null,"Hungary","Hungary","5532 - Automotive Tire Stores","5532 - Automotive Tire Stores"]
[null,null,"Iceland","Iceland","5533 - Automotive Parts and Accessories Stores","5533 - Automotive Parts and Accessories Stores"]
[null,null,"India","India","5541 - Service stations (with or without ancillary services)","5541 - Service stations (with or without ancillary services)"]
[null,null,"Indonesia","Indonesia","5542 - Automated Fuel Dispensers","5542 - Automated Fuel Dispensers"]
[null,null,"Iran","Iran","5551 - Boat Dealers","5551 - Boat Dealers"]
[null,null,"Iraq","Iraq","5552 - Electric Vehicle Charging","5552 - Electric Vehicle Charging"]
[null,null,"Ireland","Ireland","5561 - Camper, recreational and utility trailer dealers","5561 - Camper, recreational and utility trailer dealers"]
[null,null,"Man, Isle of","Man, Isle of","5571 - Motorcycle shops and dealers","5571 - Motorcycle shops and dealers"]
[null,null,"Israel","Israel","5592 - Motor home dealers","5592 - Motor home dealers"]
[null,null,"Italy","Italy","5598 - Snowmobile dealers","5598 - Snowmobile dealers"]
[null,null,"Jamaica","Jamaica","5599 - Miscellaneous automotive, aircraft and farm equipment dealers — not elsewhere classified","5599 - Miscellaneous automotive, aircraft and farm equipment dealers — not elsewhere classified"]
[null,null,"Japan","Japan","5611 - Men’s and boys’ clothing and accessory shops","5611 - Men’s and boys’ clothing and accessory shops"]
[null,null,"Jersey, CI","Jersey, CI","5621 - Women’s ready-to-wear shops","5621 - Women’s ready-to-wear shops"]
[null,null,"Jordan","Jordan","5631 - Women’s accessory and speciality shops","5631 - Women’s accessory and speciality shops"]
[null,null,"Kazakhstan","Kazakhstan","5641 - Children’s and infants’ wear shops","5641 - Children’s and infants’ wear shops"]
[null,null,"Kenya","Kenya","5651 - Family clothing shops","5651 - Family clothing shops"]
[null,null,"Kiribati","Kiribati","5655 - Sports and riding apparel shops","5655 - Sports and riding apparel shops"]
[null,null,"Korea North","Korea North","5661 - Shoe shops","5661 - Shoe shops"]
[null,null,"Korea South","Korea South","5681 - Furriers and fur shops","5681 - Furriers and fur shops"]
[null,null,"Kuwait","Kuwait","5691 - Men’s and women’s clothing shops","5691 - Men’s and women’s clothing shops"]
[null,null,"Kyrgyzstan","Kyrgyzstan","5697 - Tailors, seamstresses, mending and alterations","5697 - Tailors, seamstresses, mending and alterations"]
[null,null,"Laos","Laos","5698 - Wig and toupee shops","5698 - Wig and toupee shops"]
[null,null,"Latvia","Latvia","5699 - Miscellaneous apparel and accessory shops","5699 - Miscellaneous apparel and accessory shops"]
[null,null,"Lebanon","Lebanon","5712 - Furniture, home furnishings and equipment shops and manufacturers, except appliances","5712 - Furniture, home furnishings and equipment shops and manufacturers, except appliances"]
[null,null,"Lesotho","Lesotho","5713 - Floor covering services","5713 - Floor covering services"]
[null,null,"Liberia","Liberia","5714 - Drapery, window covering and upholstery shops","5714 - Drapery, window covering and upholstery shops"]
[null,null,"Libya","Libya","5715 - Alcoholic beverage wholesalers","5715 - Alcoholic beverage wholesalers"]
[null,null,"Liechtenstein","Liechtenstein","5718 - Fireplaces, fireplace screens and accessories shops","5718 - Fireplaces, fireplace screens and accessories shops"]
[null,null,"Lithuania","Lithuania","5719 - Miscellaneous home furnishing speciality shops","5719 - Miscellaneous home furnishing speciality shops"]
[null,null,"Luxembourg","Luxembourg","5722 - Household appliance shops","5722 - Household appliance shops"]
[null,null,"Macau","Macau","5732 - Electronics shops","5732 - Electronics shops"]
[null,null,"Madagascar","Madagascar","5733 - Music shops — musical instruments, pianos and sheet music","5733 - Music shops — musical instruments, pianos and sheet music"]
[null,null,"Malawi","Malawi","5734 - Computer software outlets","5734 - Computer software outlets"]
[null,null,"Malaysia","Malaysia","5735 - Record shops","5735 - Record shops"]
[null,null,"Maldives","Maldives","5811 - Caterers","5811 - Caterers"]
[null,null,"Mali","Mali","5812 - Eating places and restaurants","5812 - Eating places and restaurants"]
[null,null,"Malta","Malta","5813 - Drinking places (alcoholic beverages) — bars, taverns, night-clubs, cocktail lounges and discothèques","5813 - Drinking places (alcoholic beverages) — bars, taverns, night-clubs, cocktail lounges and discothèques"]
[null,null,"Marshall Islands","Marshall Islands","5814 - Fast food restaurants","5814 - Fast food restaurants"]
[null,null,"Mauritania","Mauritania","5815 - Digital Goods Media – Books, Movies, Music","5815 - Digital Goods Media – Books, Movies, Music"]
[null,null,"Mauritius","Mauritius","5816 - Digital Goods – Games","5816 - Digital Goods – Games"]
[null,null,"Mexico","Mexico","5817 - Digital Goods – Applications (Excludes Games)","5817 - Digital Goods – Applications (Excludes Games)"]
[null,null,"Micronesia (Federated States of)","Micronesia (Federated States of)","5818 - Digital Goods – Large Digital Goods Merchant","5818 - Digital Goods – Large Digital Goods Merchant"]
[null,null,"Moldova","Moldova","5912 - Drug stores and pharmacies","5912 - Drug stores and pharmacies"]
[null,null,"Mongolia","Mongolia","5921 - Package shops — beer, wine and liquor","5921 - Package shops — beer, wine and liquor"]
[null,null,"Montenegro","Montenegro","5931 - Used merchandise and second-hand shops","5931 - Used merchandise and second-hand shops"]
[null,null,"Montserrat","Montserrat","5932 - Antique Shops – Sales, Repairs, and Restoration Services","5932 - Antique Shops – Sales, Repairs, and Restoration Services"]
[null,null,"Morocco","Morocco","5933 - Pawn shops","5933 - Pawn shops"]
[null,null,"Mozambique","Mozambique","5935 - Wrecking and salvage yards","5935 - Wrecking and salvage yards"]
[null,null,"Myanmar (formerly Burma)","Myanmar (formerly Burma)","5937 - Antique Reproductions","5937 - Antique Reproductions"]
[null,null,"Namibia","Namibia","5940 - Bicycle Shops – Sales and Service","5940 - Bicycle Shops – Sales and Service"]
[null,null,"Nauru","Nauru","5941 - Sporting goods shops","5941 - Sporting goods shops"]
[null,null,"Nepal","Nepal","5942 - Book Stores","5942 - Book Stores"]
[null,null,"New Caledonia","New Caledonia","5943 - Stationery, office and school supply shops","5943 - Stationery, office and school supply shops"]
[null,null,"New Zealand","New Zealand","5944 - Jewellery, watch, clock and silverware shops","5944 - Jewellery, watch, clock and silverware shops"]
[null,null,"Nicaragua","Nicaragua","5945 - Hobby, toy and game shops","5945 - Hobby, toy and game shops"]
[null,null,"Niger","Niger","5946 - Camera and photographic supply shops","5946 - Camera and photographic supply shops"]
[null,null,"Nigeria","Nigeria","5947 - Gift, card, novelty and souvenir shops","5947 - Gift, card, novelty and souvenir shops"]
[null,null,"Niue","Niue","5948 - Luggage and leather goods shops","5948 - Luggage and leather goods shops"]
[null,null,"Norfolk Island","Norfolk Island","5949 - Sewing, needlework, fabric and piece goods shops","5949 - Sewing, needlework, fabric and piece goods shops"]
[null,null,"Macedonia","Macedonia","5950 - Glassware and crystal shops","5950 - Glassware and crystal shops"]
[null,null,"Northern Mariana Islands","Northern Mariana Islands","5960 - Direct marketing — insurance services","5960 - Direct marketing — insurance services"]
[null,null,"Norway","Norway","5961 - Mail Order Houses Including Catalog Order Stores","5961 - Mail Order Houses Including Catalog Order Stores"]
[null,null,"Oman","Oman","5962 - Telemarketing — travel-related arrangement services","5962 - Telemarketing — travel-related arrangement services"]
[null,null,"Pakistan","Pakistan","5963 - Door-to-door sales","5963 - Door-to-door sales"]
[null,null,"Palau","Palau","5964 - Direct marketing — catalogue merchants","5964 - Direct marketing — catalogue merchants"]
[null,null,"Palestinian Territory (Gaza and Jericho)","Palestinian Territory (Gaza and Jericho)","5965 - Direct marketing — combination catalogue and retail merchants","5965 - Direct marketing — combination catalogue and retail merchants"]
[null,null,"Panama","Panama","5966 - Direct marketing — outbound telemarketing merchants","5966 - Direct marketing — outbound telemarketing merchants"]
[null,null,"Papua New Guinea","Papua New Guinea","5967 - Direct marketing — inbound telemarketing merchants","5967 - Direct marketing — inbound telemarketing merchants"]
[null,null,"Paraguay","Paraguay","5968 - Direct marketing — continuity/subscription merchants","5968 - Direct marketing — continuity/subscription merchants"]
[null,null,"Peru","Peru","5969 - Direct marketing/direct marketers — not elsewhere classified","5969 - Direct marketing/direct marketers — not elsewhere classified"]
[null,null,"Philippines","Philippines","5970 - Artist’s Supply and Craft Shops","5970 - Artist’s Supply and Craft Shops"]
[null,null,"Pitcairn","Pitcairn","5971 - Art Dealers and Galleries","5971 - Art Dealers and Galleries"]
[null,null,"Poland","Poland","5972 - Stamp and coin shops","5972 - Stamp and coin shops"]
[null,null,"Portugal","Portugal","5973 - Religious goods and shops","5973 - Religious goods and shops"]
[null,null,"Qatar","Qatar","5974 - Rubber Stamp Store","5974 - Rubber Stamp Store"]
[null,null,"Romania","Romania","5975 - Hearing aids — sales, service and supplies","5975 - Hearing aids — sales, service and supplies"]
[null,null,"Russia","Russia","5976 - Orthopaedic goods and prosthetic devices","5976 - Orthopaedic goods and prosthetic devices"]
[null,null,"Rwanda","Rwanda","5977 - Cosmetic Stores","5977 - Cosmetic Stores"]
[null,null,"Saint Helena","Saint Helena","5978 - Typewriter outlets — sales, service and rentals","5978 - Typewriter outlets — sales, service and rentals"]
[null,null,"Saint Kitts and Nevis","Saint Kitts and Nevis","5983 - Fuel dealers — fuel oil, wood, coal and liquefied petroleum","5983 - Fuel dealers — fuel oil, wood, coal and liquefied petroleum"]
[null,null,"Saint Lucia","Saint Lucia","5992 - Florists","5992 - Florists"]
[null,null,"Saint Vincent and the Grenadines","Saint Vincent and the Grenadines","5993 - Cigar shops and stands","5993 - Cigar shops and stands"]
[null,null,"Samoa","Samoa","5994 - Newsagents and news-stands","5994 - Newsagents and news-stands"]
[null,null,"San Marino","San Marino","5995 - Pet shops, pet food and supplies","5995 - Pet shops, pet food and supplies"]
[null,null,"Sao Tome and Principe","Sao Tome and Principe","5996 - Swimming pools — sales, supplies and services","5996 - Swimming pools — sales, supplies and services"]
[null,null,"Saudi Arabia","Saudi Arabia","5997 - Electric razor outlets — sales and service","5997 - Electric razor outlets — sales and service"]
[null,null,"Senegal","Senegal","5998 - Tent and awning shops","5998 - Tent and awning shops"]
[null,null,"Serbia","Serbia","5999 - Miscellaneous and speciality retail outlets","5999 - Miscellaneous and speciality retail outlets"]
[null,null,"Seychelles","Seychelles","6010 - Financial institutions — manual cash disbursements","6010 - Financial institutions — manual cash disbursements"]
[null,null,"Sierra Leone","Sierra Leone","6011 - Financial institutions — automated cash disbursements","6011 - Financial institutions — automated cash disbursements"]
[null,null,"Singapore","Singapore","6012 - Financial institutions — merchandise and services","6012 - Financial institutions — merchandise and services"]
[null,null,"Saint Maarten (Dutch part)","Saint Maarten (Dutch part)","6050 - Quasi Cash—Customer Financial Institution","6050 - Quasi Cash—Customer Financial Institution"]
[null,null,"Slovakia","Slovakia","6051 - Non-financial institutions — foreign currency, money orders (not wire transfer), scrip and travellers’ checks","6051 - Non-financial institutions — foreign currency, money orders (not wire transfer), scrip and travellers’ checks"]
[null,null,"Slovenia","Slovenia","6211 - Securities — brokers and dealers","6211 - Securities — brokers and dealers"]
[null,null,"Solomon Islands","Solomon Islands","6300 - Insurance sales, underwriting and premiums","6300 - Insurance sales, underwriting and premiums"]
[null,null,"Somalia","Somalia","6381 - Insurance–Premiums","6381 - Insurance–Premiums"]
[null,null,"South Africa","South Africa","6399 - Insurance, Not Elsewhere Classified ( no longer valid for first presentment work)","6399 - Insurance, Not Elsewhere Classified ( no longer valid for first presentment work)"]
[null,null,"South Georgia and South Sandwich Islands","South Georgia and South Sandwich Islands","6513 - Real Estate Agents and Managers","6513 - Real Estate Agents and Managers"]
[null,null,"South Sudan","South Sudan","6529 - Remote Stored Value Load — Member Financial Institution","6529 - Remote Stored Value Load — Member Financial Institution"]
[null,null,"Spain","Spain","6530 - Remove Stored Value Load — Merchant","6530 - Remove Stored Value Load — Merchant"]
[null,null,"Sri Lanka","Sri Lanka","6532 - Payment Transaction—Customer Financial Institution","6532 - Payment Transaction—Customer Financial Institution"]
[null,null,"Sudan","Sudan","6533 - Payment Transaction—Merchant","6533 - Payment Transaction—Merchant"]
[null,null,"Suriname","Suriname","6535 - Value Purchase–Member Financial Institution","6535 - Value Purchase–Member Financial Institution"]
[null,null,"Svalbard and Jan Mayen Islands","Svalbard and Jan Mayen Islands","6536 - MoneySend Intracountry","6536 - MoneySend Intracountry"]
[null,null,"Sweden","Sweden","6537 - MoneySend Intercountry","6537 - MoneySend Intercountry"]
[null,null,"Switzerland","Switzerland","6538 - MoneySend Funding","6538 - MoneySend Funding"]
[null,null,"Syria","Syria","6539 - Funding Transaction (Excluding MoneySend)","6539 - Funding Transaction (Excluding MoneySend)"]
[null,null,"Taiwan","Taiwan","6540 - Non-Financial Institutions – Stored Value Card Purchase/Load","6540 - Non-Financial Institutions – Stored Value Card Purchase/Load"]
[null,null,"Tajikistan","Tajikistan","6611 - Overpayments","6611 - Overpayments"]
[null,null,"Tanzania","Tanzania","6760 - Savings Bonds","6760 - Savings Bonds"]
[null,null,"Thailand","Thailand","7011 - Lodging — hotels, motels and resorts","7011 - Lodging — hotels, motels and resorts"]
[null,null,"East Timor","East Timor","7012 - Timeshares","7012 - Timeshares"]
[null,null,"Togo","Togo","7032 - Sporting and recreational camps","7032 - Sporting and recreational camps"]
[null,null,"Tokelau","Tokelau","7033 - Trailer parks and camp-sites","7033 - Trailer parks and camp-sites"]
[null,null,"Tonga","Tonga","7210 - Laundry, cleaning and garment services","7210 - Laundry, cleaning and garment services"]
[null,null,"Trinidad and Tobago","Trinidad and Tobago","7211 - Laundry services — family and commercial","7211 - Laundry services — family and commercial"]
[null,null,"Tunisia","Tunisia","7216 - Dry cleaners","7216 - Dry cleaners"]
[null,null,"Turkey","Turkey","7217 - Carpet and upholstery cleaning","7217 - Carpet and upholstery cleaning"]
[null,null,"Turkmenistan","Turkmenistan","7221 - Photographic studios","7221 - Photographic studios"]
[null,null,"Turks and Caicos Islands","Turks and Caicos Islands","7230 - Barber and Beauty Shops","7230 - Barber and Beauty Shops"]
[null,null,"Tuvalu (formerly Ellice Islands)","Tuvalu (formerly Ellice Islands)","7251 - Shoe repair shops, shoe shine parlours and hat cleaning shops","7251 - Shoe repair shops, shoe shine parlours and hat cleaning shops"]
[null,null,"Uganda","Uganda","7261 - Funeral services and crematoriums","7261 - Funeral services and crematoriums"]
[null,null,"Ukraine","Ukraine","7273 - Dating and escort services","7273 - Dating and escort services"]
[null,null,"United Arab Emirates","United Arab Emirates","7276 - Tax preparation services","7276 - Tax preparation services"]
[null,null,"United Kingdom","United Kingdom","7277 - Counselling services — debt, marriage and personal","7277 - Counselling services — debt, marriage and personal"]
[null,null,"United States Minor Outlying Islands","United States Minor Outlying Islands","7278 - Buying and shopping services and clubs","7278 - Buying and shopping services and clubs"]
[null,null,"United States of America","United States of America","7280 - Hospital Patient-Personal Funds Withdrawal","7280 - Hospital Patient-Personal Funds Withdrawal"]
[null,null,"Uruguay","Uruguay","7295 - Babysitting Services","7295 - Babysitting Services"]
[null,null,"Uzbekistan","Uzbekistan","7296 - Clothing rentals — costumes, uniforms and formal wear","7296 - Clothing rentals — costumes, uniforms and formal wear"]
[null,null,"Vanuatu","Vanuatu","7297 - Massage parlours","7297 - Massage parlours"]
[null,null,"Venezuela","Venezuela","7298 - Health and beauty spas","7298 - Health and beauty spas"]
[null,null,"Vietnam","Vietnam","7299 - Miscellaneous personal services — not elsewhere classified","7299 - Miscellaneous personal services — not elsewhere classified"]
[null,null,"Virgin Islands (British)","Virgin Islands (British)","7311 - Advertising Services","7311 - Advertising Services"]
[null,null,"Virgin Islands of the US","Virgin Islands of the US","7321 - Consumer credit reporting agencies","7321 - Consumer credit reporting agencies"]
[null,null,"Wallis and Futuna Islands","Wallis and Futuna Islands","7322 - Debt collection agencies","7322 - Debt collection agencies"]
[null,null,"Western Sahara","Western Sahara","7332 - Blueprinting and Photocopying Services","7332 - Blueprinting and Photocopying Services"]
[null,null,"Yemen (North)","Yemen (North)","7333 - Commercial photography, art and graphics","7333 - Commercial photography, art and graphics"]
[null,null,"Zambia","Zambia","7338 - Quick copy, reproduction and blueprinting services","7338 - Quick copy, reproduction and blueprinting services"]
[null,null,"Zimbabwe","Zimbabwe","7339 - Stenographic and secretarial support services","7339 - Stenographic and secretarial support services"]
[null,null,"Domestic (home or reference area)","Domestic (home or reference area)","7342 - Exterminating and disinfecting services","7342 - Exterminating and disinfecting services"]
[null,null,"Extra-EU, not allocated","Extra-EU, not allocated","7349 - Cleaning, maintenance and janitorial services","7349 - Cleaning, maintenance and janitorial services"]
[null,null,null,null,"7361 - Employment agencies and temporary help services","7361 - Employment agencies and temporary help services"]
[null,null,null,null,"7372 - Computer programming, data processing and integrated systems design services","7372 - Computer programming, data processing and integrated systems design services"]
[null,null,null,null,"7375 - Information retrieval services","7375 - Information retrieval services"]
[null,null,null,null,"7379 - Computer maintenance and repair services — not elsewhere classified","7379 - Computer maintenance and repair services — not elsewhere classified"]
[null,null,null,null,"7392 - Management, consulting and public relations services","7392 - Management, consulting and public relations services"]
[null,null,null,null,"7393 - Detective  agencies,  protective  agencies  and  security  services,  including  armoured  cars  and guard dogs","7393 - Detective  agencies,  protective  agencies  and  security  services,  including  armoured  cars  and guard dogs"]
[null,null,null,null,"7394 - Equipment, tool, furniture and appliance rentals and leasing","7394 - Equipment, tool, furniture and appliance rentals and leasing"]
[null,null,null,null,"7395 - Photofinishing laboratories and photo developing","7395 - Photofinishing laboratories and photo developing"]
[null,null,null,null,"7399 - Business services — not elsewhere classified","7399 - Business services — not elsewhere classified"]
[null,null,null,null,"7511 - Truck Stop","7511 - Truck Stop"]
[null,null,null,null,"7512 - Automobile Rental Agency—not elsewhere classified","7512 - Automobile Rental Agency—not elsewhere classified"]
[null,null,null,null,"7513 - Truck and utility trailer rentals","7513 - Truck and utility trailer rentals"]
[null,null,null,null,"7519 - Motor home and recreational vehicle rentals","7519 - Motor home and recreational vehicle rentals"]
[null,null,null,null,"7523 - Parking lots and garages","7523 - Parking lots and garages"]
[null,null,null,null,"7524 - Express Payment Service Merchants–Parking Lots and Garages","7524 - Express Payment Service Merchants–Parking Lots and Garages"]
[null,null,null,null,"7531 - Automotive Body Repair Shops","7531 - Automotive Body Repair Shops"]
[null,null,null,null,"7534 - Tyre retreading and repair shops","7534 - Tyre retreading and repair shops"]
[null,null,null,null,"7535 - Automotive Paint Shops","7535 - Automotive Paint Shops"]
[null,null,null,null,"7538 - Automotive Service Shops (Non-Dealer)","7538 - Automotive Service Shops (Non-Dealer)"]
[null,null,null,null,"7539 - Automotive Service Shops (Spain) - Other Merchant Categories","7539 - Automotive Service Shops (Spain) - Other Merchant Categories"]
[null,null,null,null,"7542 - Car washes","7542 - Car washes"]
[null,null,null,null,"7549 - Towing services","7549 - Towing services"]
[null,null,null,null,"7622 - Electronics repair shops","7622 - Electronics repair shops"]
[null,null,null,null,"7623 - Air Conditioning and Refrigeration Repair Shops","7623 - Air Conditioning and Refrigeration Repair Shops"]
[null,null,null,null,"7629 - Electrical and small appliance repair shops","7629 - Electrical and small appliance repair shops"]
[null,null,null,null,"7631 - Watch, clock and jewellery repair shops","7631 - Watch, clock and jewellery repair shops"]
[null,null,null,null,"7641 - Furniture reupholstery, repair and refinishing","7641 - Furniture reupholstery, repair and refinishing"]
[null,null,null,null,"7692 - Welding services","7692 - Welding services"]
[null,null,null,null,"7699 - Miscellaneous repair shops and related services","7699 - Miscellaneous repair shops and related services"]
[null,null,null,null,"7800 - Government-Owned Lotteries (US Region only)","7800 - Government-Owned Lotteries (US Region only)"]
[null,null,null,null,"7801 - Government Licensed On-Line Casinos (On-Line Gambling) (US Region only)","7801 - Government Licensed On-Line Casinos (On-Line Gambling) (US Region only)"]
[null,null,null,null,"7802 - Government-Licensed Horse/Dog Racing (US Region only)","7802 - Government-Licensed Horse/Dog Racing (US Region only)"]
[null,null,null,null,"7829 - Motion picture and video tape production and distribution","7829 - Motion picture and video tape production and distribution"]
[null,null,null,null,"7832 - Motion picture theatres","7832 - Motion picture theatres"]
[null,null,null,null,"7833 - Express Payment Service — Motion Picture Theater","7833 - Express Payment Service — Motion Picture Theater"]
[null,null,null,null,"7841 - Video tape rentals","7841 - Video tape rentals"]
[null,null,null,null,"7911 - Dance halls, studios and schools","7911 - Dance halls, studios and schools"]
[null,null,null,null,"7922 - Theatrical producers (except motion pictures) and ticket agencies","7922 - Theatrical producers (except motion pictures) and ticket agencies"]
[null,null,null,null,"7929 - Bands, Orchestras, and Miscellaneous Entertainers (Not Elsewhere Classified)","7929 - Bands, Orchestras, and Miscellaneous Entertainers (Not Elsewhere Classified)"]
[null,null,null,null,"7932 - Billiard and Pool Establishments","7932 - Billiard and Pool Establishments"]
[null,null,null,null,"7933 - Bowling Alleys","7933 - Bowling Alleys"]
[null,null,null,null,"7941 - Commercial sports, professional sports clubs, athletic fields and sports promoters","7941 - Commercial sports, professional sports clubs, athletic fields and sports promoters"]
[null,null,null,null,"7991 - Tourist attractions and exhibits","7991 - Tourist attractions and exhibits"]
[null,null,null,null,"7992 - Public golf courses","7992 - Public golf courses"]
[null,null,null,null,"7993 - Video amusement game supplies","7993 - Video amusement game supplies"]
[null,null,null,null,"7994 - Video game arcades and establishments","7994 - Video game arcades and establishments"]
[null,null,null,null,"7995 - Betting, including Lottery Tickets, Casino Gaming Chips, Off-Track Betting, and Wagers at Race Tracks","7995 - Betting, including Lottery Tickets, Casino Gaming Chips, Off-Track Betting, and Wagers at Race Tracks"]
[null,null,null,null,"7996 - Amusement Parks, Circuses, Carnivals, and Fortune Tellers","7996 - Amusement Parks, Circuses, Carnivals, and Fortune Tellers"]
[null,null,null,null,"7997 - Membership clubs (sports, recreation, athletic), country clubs and private golf courses","7997 - Membership clubs (sports, recreation, athletic), country clubs and private golf courses"]
[null,null,null,null,"7998 - Aquariums, Seaquariums, Dolphinariums, and Zoos","7998 - Aquariums, Seaquariums, Dolphinariums, and Zoos"]
[null,null,null,null,"7999 - Recreation services — not elsewhere classified","7999 - Recreation services — not elsewhere classified"]
[null,null,null,null,"8011 - Doctors and physicians — not elsewhere classified","8011 - Doctors and physicians — not elsewhere classified"]
[null,null,null,null,"8021 - Dentists and orthodontists","8021 - Dentists and orthodontists"]
[null,null,null,null,"8031 - Osteopaths","8031 - Osteopaths"]
[null,null,null,null,"8041 - Chiropractors","8041 - Chiropractors"]
[null,null,null,null,"8042 - Optometrists and ophthalmologists","8042 - Optometrists and ophthalmologists"]
[null,null,null,null,"8043 - Opticians, optical goods and eyeglasses","8043 - Opticians, optical goods and eyeglasses"]
[null,null,null,null,"8044 - Optical Goods and Eyeglasses","8044 - Optical Goods and Eyeglasses"]
[null,null,null,null,"8049 - Podiatrists and chiropodists","8049 - Podiatrists and chiropodists"]
[null,null,null,null,"8050 - Nursing and personal care facilities","8050 - Nursing and personal care facilities"]
[null,null,null,null,"8062 - Hospitals","8062 - Hospitals"]
[null,null,null,null,"8071 - Medical and dental laboratories","8071 - Medical and dental laboratories"]
[null,null,null,null,"8099 - Medical services and health practitioners — not elsewhere classified","8099 - Medical services and health practitioners — not elsewhere classified"]
[null,null,null,null,"8111 - Legal services and attorneys","8111 - Legal services and attorneys"]
[null,null,null,null,"8211 - Elementary and secondary schools","8211 - Elementary and secondary schools"]
[null,null,null,null,"8220 - Colleges, universities, professional schools and junior colleges","8220 - Colleges, universities, professional schools and junior colleges"]
[null,null,null,null,"8241 - Correspondence schools","8241 - Correspondence schools"]
[null,null,null,null,"8244 - Business and secretarial schools","8244 - Business and secretarial schools"]
[null,null,null,null,"8249 - Trade and vocational schools","8249 - Trade and vocational schools"]
[null,null,null,null,"8299 - Schools and educational services — not elsewhere classified","8299 - Schools and educational services — not elsewhere classified"]
[null,null,null,null,"8351 - Child care services","8351 - Child care services"]
[null,null,null,null,"8398 - Charitable and social service organizations","8398 - Charitable and social service organizations"]
[null,null,null,null,"8641 - Civic, social and fraternal associations","8641 - Civic, social and fraternal associations"]
[null,null,null,null,"8651 - Political organizations","8651 - Political organizations"]
[null,null,null,null,"8661 - Religious organizations","8661 - Religious organizations"]
[null,null,null,null,"8675 - Automobile Associations","8675 - Automobile Associations"]
[null,null,null,null,"8699 - Membership organization — not elsewhere classified","8699 - Membership organization — not elsewhere classified"]
[null,null,null,null,"8734 - Testing laboratories (non-medical)","8734 - Testing laboratories (non-medical)"]
[null,null,null,null,"8911 - Architectural, Engineering, and Surveying Services","8911 - Architectural, Engineering, and Surveying Services"]
[null,null,null,null,"8931 - Accounting, Auditing, and Bookkeeping Services","8931 - Accounting, Auditing, and Bookkeeping Services"]
[null,null,null,null,"8999 - Professional services — not elsewhere classified","8999 - Professional services — not elsewhere classified"]
[null,null,null,null,"9034 - I-Purchasing Pilot","9034 - I-Purchasing Pilot"]
[null,null,null,null,"9211 - Court costs, including alimony and child support","9211 - Court costs, including alimony and child support"]
[null,null,null,null,"9222 - Fines","9222 - Fines"]
[null,null,null,null,"9223 - Bail and Bond Payments","9223 - Bail and Bond Payments"]
[null,null,null,null,"9311 - Tax payments","9311 - Tax payments"]
[null,null,null,null,"9399 - Government services — not elsewhere classified","9399 - Government services — not elsewhere classified"]
[null,null,null,null,"9402 - Postal services — government only","9402 - Postal services — government only"]
[null,null,null,null,"9405 - U.S. Federal Government Agencies or Departments","9405 - U.S. Federal Government Agencies or Departments"]
[null,null,null,null,"9406 - Government-Owned Lotteries (Non-U.S. region)","9406 - Government-Owned Lotteries (Non-U.S. region)"]
[null,null,null,null,"9700 - Automated Referral Service","9700 - Automated Referral Service"]
[null,null,null,null,"9701 - Visa Credential Server","9701 - Visa Credential Server"]
[null,null,null,null,"9702 - Emergency Services (GCAS) (Visa use only)","9702 - Emergency Services (GCAS) (Visa use only)"]
[null,null,null,null,"9751 - UK Supermarkets, Electronic Hot File","9751 - UK Supermarkets, Electronic Hot File"]
[null,null,null,null,"9752 - UK Petrol Stations, Electronic Hot File","9752 - UK Petrol Stations, Electronic Hot File"]
[null,null,null,null,"9754 - Gambling-Horse, Dog Racing, State Lottery","9754 - Gambling-Horse, Dog Racing, State Lottery"]
[null,null,null,null,"9950 - Intra-Company Purchases","9950 - Intra-Company Purchases"]
[null,null,null,null,"Non-listed Merchant Category Code (MCC)","Non-listed Merchant Category Code (MCC)"]

{"sheet":"T01.01","index":5,"n_rows":336,"n_cols":20,"rows_kept":336,"cut":false,"hidden":true,"merged":[[13,3,13,5],[13,6,13,8],[13,9,13,11],[13,12,13,14],[1,1,1,14],[4,1,4,11],[10,3,11,14],[12,3,12,8],[12,9,12,14],[14,14,17,14],[14,3,17,3],[14,4,17,4],[14,5,17,5],[14,6,17,6],[14,7,17,7],[14,8,17,8],[14,9,17,9],[14,10,17,10],[14,11,17,11],[14,12,17,12],[14,13,17,13]]}
["Back to Index"]
[null,"Table group: Payment transactions involving non-MFIs - full"]
[]
[]
[null,"T01.01 Payment transactions involving non-MFIs, sent; card-based transactions"]
[]
[null,"Counterparty country/group","Z001",null,null,null,{"$f":"Show!$B$2&\"T01.01 Table label {\"&COLUMN($C$1)&\"}\"","v":"!T01.01 Table label {3}"},{"$f":"Show!$B$2&\"T01.01 Table value {\"&COLUMN($D$1)&\"}\"","v":"!T01.01 Table value {4}"}]
[null,"Terminal location","Z002"]
[null,null,null,null,null,null,{"$f":"Show!$B$2&Show!$B$2&\"T01.01 Table label {\"&COLUMN($C$1)&\"}\"","v":"!!T01.01 Table label {3}"},{"$f":"Show!$B$2&Show!$B$2&\"T01.01 Table value {\"&COLUMN($D$1)&\"}\"","v":"!!T01.01 Table value {4}"}]
[]
[null,null,null,"x-axis"]
[]
[null,null,null,"Payment transactions",null,null,null,null,null,"Fraudulent payment transactions"]
[null,null,null,"Number of transactions",null,null,"Value of transactions",null,null,"Number of transactions",null,null,"Value of transactions"]
[null,null,null,"Total","Remote","Non-remote","Total","Remote","Non-remote","Total","Remote","Non-remote","Total","Remote","Non-remote"]
[]
[]
[]
[null,null,null,"010","020","030","040","050","060","070","080","090","100","110","120",null,null,null,{"$f":"Show!$B$2&\"T01.01 Rows {\"&COLUMN($C$1)&\"}\"&Index!$E$6","v":"!T01.01 Rows {3}"},{"$f":"Show!$B$2&\"T01.01 Columns {\"&COLUMN($D$1)&\"}\"","v":"!T01.01 Columns {4}"}]
[null,"y-axis",""]
[null,"Card-based payment transactions with card-based payment instruments issued by resident PSPs (except cards with an e-money function only)","0010"]
[null,"Initiated non-electronically","0020"]
[null,"Initiated electronically","0030"]
[null,"Mobile payment solution","0040"]
[null,"of which: P2P mobile payment solution","0050"]
[null,"Initiated at a physical EFTPOS","0060"]
[null,"of which: contactless payments","0070"]
[null,"of which: Near Field Communication (NFC) payments","0080"]
[null,"Initiated at an ATM","0090"]
[null,"Others","0100"]
[null,"Initiated electronically, of which broken down by payment card scheme:",""]
[null,"card-based payment instrument issued under PCS VISA","0110"]
[null,"card-based payment instrument issued under PCS MASTERCARD","0120"]
[null,"card-based payment instrument issued under PCS Diners","0130"]
[null,"card-based payment instrument issued under PCS American Express","0140"]
[null,"card-based payment instrument issued under PCS China Union Pay","0150"]
[null,"card-based payment instrument issued under PCS JCB","0160"]
[null,"card-based payment instrument issued under PCS Discover","0170"]
[null,"card-based payment instrument issued under PCS Other","0180"]
[null,"Initiated electronically, of which broken down by card function:",""]
[null,"with a debit card","0190"]
[null,"card-based payment instrument issued under PCS VISA","0200"]
[null,"card-based payment instrument issued under PCS MASTERCARD","0210"]
[null,"card-based payment instrument issued under PCS Diners","0220"]
[null,"card-based payment instrument issued under PCS American Express","0230"]
[null,"card-based payment instrument issued under PCS China Union Pay","0240"]
[null,"card-based payment instrument issued under PCS JCB","0250"]
[null,"card-based payment instrument issued under PCS Discover","0260"]
[null,"card-based payment instrument issued under PCS Other","0270"]
[null,"with a delayed debit card","0280"]
[null,"card-based payment instrument issued under PCS VISA","0290"]
[null,"card-based payment instrument issued under PCS MASTERCARD","0300"]
[null,"card-based payment instrument issued under PCS Diners","0310"]
[null,"card-based payment instrument issued under PCS American Express","0320"]
[null,"card-based payment instrument issued under PCS China Union Pay","0330"]
[null,"card-based payment instrument issued under PCS JCB","0340"]
[null,"card-based payment instrument issued under PCS Discover","0350"]
[null,"card-based payment instrument issued under PCS Other","0360"]
[null,"with a credit card","0370"]
[null,"card-based payment instrument issued under PCS VISA","0380"]
[null,"card-based payment instrument issued under PCS MASTERCARD","0390"]
[null,"card-based payment instrument issued under PCS Diners","0400"]
[null,"card-based payment instrument issued under PCS American Express","0410"]
[null,"card-based payment instrument issued under PCS China Union Pay","0420"]
[null,"card-based payment instrument issued under PCS JCB","0430"]
[null,"card-based payment instrument issued under PCS Discover","0440"]
[null,"card-based payment instrument issued under PCS Other","0450"]
[null,"Initiated electronically, of which broken down by authentication channel:",""]
[null,"Authenticated via Strong Customer Authentication (SCA)","0460"]
[null,"card-based payment instrument issued under PCS VISA","0470"]
[null,"card-based payment instrument issued under PCS MASTERCARD","0480"]
[null,"card-based payment instrument issued under PCS Diners","0490"]
[null,"card-based payment instrument issued under PCS American Express","0500"]
[null,"card-based payment instrument issued under PCS China Union Pay","0510"]
[null,"card-based payment instrument issued under PCS JCB","0520"]
[null,"card-based payment instrument issued under PCS Discover","0530"]
[null,"card-based payment instrument issued under PCS Other","0540"]
[null,"Authenticated via Strong Customer Authentication (SCA), of which fraudulent card payments by origin:",""]
[null,"Issuance of a payment order by the fraudster","0550"]
[null,"card-based payment instrument issued under PCS VISA","0560"]
[null,"card-based payment instrument issued under PCS MASTERCARD","0570"]
[null,"card-based payment instrument issued under PCS Diners","0580"]
[null,"card-based payment instrument issued under PCS American Express","0590"]
[null,"card-based payment instrument issued under PCS China Union Pay","0600"]
[null,"card-based payment instrument issued under PCS JCB","0610"]
[null,"card-based payment instrument issued under PCS Discover","0620"]
[null,"card-based payment instrument issued under PCS Other","0630"]
[null,"Lost or Stolen card","0640"]
[null,"card-based payment instrument issued under PCS VISA","0650"]
[null,"card-based payment instrument issued under PCS MASTERCARD","0660"]
[null,"card-based payment instrument issued under PCS Diners","0670"]
[null,"card-based payment instrument issued under PCS American Express","0680"]
[null,"card-based payment instrument issued under PCS China Union Pay","0690"]
[null,"card-based payment instrument issued under PCS JCB","0700"]
[null,"card-based payment instrument issued under PCS Discover","0710"]
[null,"card-based payment instrument issued under PCS Other","0720"]
[null,"Card Not Received","0730"]
[null,"card-based payment instrument issued under PCS VISA","0740"]
[null,"card-based payment instrument issued under PCS MASTERCARD","0750"]
[null,"card-based payment instrument issued under PCS Diners","0760"]
[null,"card-based payment instrument issued under PCS American Express","0770"]
[null,"card-based payment instrument issued under PCS China Union Pay","0780"]
[null,"card-based payment instrument issued under PCS JCB","0790"]
[null,"card-based payment instrument issued under PCS Discover","0800"]
[null,"card-based payment instrument issued under PCS Other","0810"]
[null,"Counterfeit card","0820"]
[null,"card-based payment instrument issued under PCS VISA","0830"]
[null,"card-based payment instrument issued under PCS MASTERCARD","0840"]
[null,"card-based payment instrument issued under PCS Diners","0850"]
[null,"card-based payment instrument issued under PCS American Express","0860"]
[null,"card-based payment instrument issued under PCS China Union Pay","0870"]
[null,"card-based payment instrument issued under PCS JCB","0880"]
[null,"card-based payment instrument issued under PCS Discover","0890"]
[null,"card-based payment instrument issued under PCS Other","0900"]
[null,"Card details theft","0910"]
[null,"card-based payment instrument issued under PCS VISA","0920"]
[null,"card-based payment instrument issued under PCS MASTERCARD","0930"]
[null,"card-based payment instrument issued under PCS Diners","0940"]
[null,"card-based payment instrument issued under PCS American Express","0950"]
[null,"card-based payment instrument issued under PCS China Union Pay","0960"]
[null,"card-based payment instrument issued under PCS JCB","0970"]
[null,"card-based payment instrument issued under PCS Discover","0980"]
[null,"card-based payment instrument issued under PCS Other","0990"]
[null,"Others","1000"]
[null,"card-based payment instrument issued under PCS VISA","1010"]
[null,"card-based payment instrument issued under PCS MASTERCARD","1020"]
[null,"card-based payment instrument issued under PCS Diners","1030"]
[null,"card-based payment instrument issued under PCS American Express","1040"]
[null,"card-based payment instrument issued under PCS China Union Pay","1050"]
[null,"card-based payment instrument issued under PCS JCB","1060"]
[null,"card-based payment instrument issued under PCS Discover","1070"]
[null,"card-based payment instrument issued under PCS Other","1080"]
[null,"Modification of a payment order by the fraudster","1090"]
[null,"card-based payment instrument issued under PCS VISA","1100"]
[null,"card-based payment instrument issued under PCS MASTERCARD","1110"]
[null,"card-based payment instrument issued under PCS Diners","1120"]
[null,"card-based payment instrument issued under PCS American Express","1130"]
[null,"card-based payment instrument issued under PCS China Union Pay","1140"]
[null,"card-based payment instrument issued under PCS JCB","1150"]
[null,"card-based payment instrument issued under PCS Discover","1160"]
[null,"card-based payment instrument issued under PCS Other","1170"]
[null,"Manipulation of the payer to make a card payment","1180"]
[null,"card-based payment instrument issued under PCS VISA","1190"]
[null,"card-based payment instrument issued under PCS MASTERCARD","1200"]
[null,"card-based payment instrument issued under PCS Diners","1210"]
[null,"card-based payment instrument issued under PCS American Express","1220"]
[null,"card-based payment instrument issued under PCS China Union Pay","1230"]
[null,"card-based payment instrument issued under PCS JCB","1240"]
[null,"card-based payment instrument issued under PCS Discover","1250"]
[null,"card-based payment instrument issued under PCS Other","1260"]
[null,"Authenticated via non-Strong Customer Authentication (non-SCA)","1270"]
[null,"card-based payment instrument issued under PCS VISA","1280"]
[null,"card-based payment instrument issued under PCS MASTERCARD","1290"]
[null,"card-based payment instrument issued under PCS Diners","1300"]
[null,"card-based payment instrument issued under PCS American Express","1310"]
[null,"card-based payment instrument issued under PCS China Union Pay","1320"]
[null,"card-based payment instrument issued under PCS JCB","1330"]
[null,"card-based payment instrument issued under PCS Discover","1340"]
[null,"card-based payment instrument issued under PCS Other","1350"]
[null,"Authenticated via non-Strong Customer Authentication (non-SCA), of which fraudulent card payments by origin:",""]
[null,"Issuance of a payment order by the fraudster","1360"]
[null,"card-based payment instrument issued under PCS VISA","1370"]
[null,"card-based payment instrument issued under PCS MASTERCARD","1380"]
[null,"card-based payment instrument issued under PCS Diners","1390"]
[null,"card-based payment instrument issued under PCS American Express","1400"]
[null,"card-based payment instrument issued under PCS China Union Pay","1410"]
[null,"card-based payment instrument issued under PCS JCB","1420"]
[null,"card-based payment instrument issued under PCS Discover","1430"]
[null,"card-based payment instrument issued under PCS Other","1440"]
[null,"Lost or Stolen card","1450"]
[null,"card-based payment instrument issued under PCS VISA","1460"]
[null,"card-based payment instrument issued under PCS MASTERCARD","1470"]
[null,"card-based payment instrument issued under PCS Diners","1480"]
[null,"card-based payment instrument issued under PCS American Express","1490"]
[null,"card-based payment instrument issued under PCS China Union Pay","1500"]
[null,"card-based payment instrument issued under PCS JCB","1510"]
[null,"card-based payment instrument issued under PCS Discover","1520"]
[null,"card-based payment instrument issued under PCS Other","1530"]
[null,"Card Not Received","1540"]
[null,"card-based payment instrument issued under PCS VISA","1550"]
[null,"card-based payment instrument issued under PCS MASTERCARD","1560"]
[null,"card-based payment instrument issued under PCS Diners","1570"]
[null,"card-based payment instrument issued under PCS American Express","1580"]
[null,"card-based payment instrument issued under PCS China Union Pay","1590"]
[null,"card-based payment instrument issued under PCS JCB","1600"]
[null,"card-based payment instrument issued under PCS Discover","1610"]
[null,"card-based payment instrument issued under PCS Other","1620"]
[null,"Counterfeit card","1630"]
[null,"card-based payment instrument issued under PCS VISA","1640"]
[null,"card-based payment instrument issued under PCS MASTERCARD","1650"]
[null,"card-based payment instrument issued under PCS Diners","1660"]
[null,"card-based payment instrument issued under PCS American Express","1670"]
[null,"card-based payment instrument issued under PCS China Union Pay","1680"]
[null,"card-based payment instrument issued under PCS JCB","1690"]
[null,"card-based payment instrument issued under PCS Discover","1700"]
[null,"card-based payment instrument issued under PCS Other","1710"]
[null,"Card details theft","1720"]
[null,"card-based payment instrument issued under PCS VISA","1730"]
[null,"card-based payment instrument issued under PCS MASTERCARD","1740"]
[null,"card-based payment instrument issued under PCS Diners","1750"]
[null,"card-based payment instrument issued under PCS American Express","1760"]
[null,"card-based payment instrument issued under PCS China Union Pay","1770"]
[null,"card-based payment instrument issued under PCS JCB","1780"]
[null,"card-based payment instrument issued under PCS Discover","1790"]
[null,"card-based payment instrument issued under PCS Other","1800"]
[null,"Others","1810"]
[null,"card-based payment instrument issued under PCS VISA","1820"]
[null,"card-based payment instrument issued under PCS MASTERCARD","1830"]
[null,"card-based payment instrument issued under PCS Diners","1840"]
[null,"card-based payment instrument issued under PCS American Express","1850"]
[null,"card-based payment instrument issued under PCS China Union Pay","1860"]
[null,"card-based payment instrument issued under PCS JCB","1870"]
[null,"card-based payment instrument issued under PCS Discover","1880"]
[null,"card-based payment instrument issued under PCS Other","1890"]
[null,"Modification of a payment order by the fraudster","1900"]
[null,"card-based payment instrument issued under PCS VISA","1910"]
[null,"card-based payment instrument issued under PCS MASTERCARD","1920"]
[null,"card-based payment instrument issued under PCS Diners","1930"]
[null,"card-based payment instrument issued under PCS American Express","1940"]
[null,"card-based payment instrument issued under PCS China Union Pay","1950"]
[null,"card-based payment instrument issued under PCS JCB","1960"]
[null,"card-based payment instrument issued under PCS Discover","1970"]
[null,"card-based payment instrument issued under PCS Other","1980"]
[null,"Manipulation of the payer to make a card payment","1990"]
[null,"card-based payment instrument issued under PCS VISA","2000"]
[null,"card-based payment instrument issued under PCS MASTERCARD","2010"]
[null,"card-based payment instrument issued under PCS Diners","2020"]
[null,"card-based payment instrument issued under PCS American Express","2030"]
[null,"card-based payment instrument issued under PCS China Union Pay","2040"]
[null,"card-based payment instrument issued under PCS JCB","2050"]
[null,"card-based payment instrument issued under PCS Discover","2060"]
[null,"card-based payment instrument issued under PCS Other","2070"]
[null,"Authenticated via non-Strong Customer Authentication (non-SCA), of which broken down by reason:",""]
[null,"Low value","2080"]
[null,"Trusted beneficiaries","2090"]
[null,"Recurring transaction","2100"]
[null,"Secure corporate payment processes and protocols","2110"]
[null,"Transaction Risk Analysis","2120"]
[null,"Contactless low value","2130"]
[null,"Unattended terminal for transport fares or parking fees","2140"]
[null,"Merchant initiated transaction (MIT)","2150"]
[null,"Other","2160"]
[null,"Cash withdrawals using card-based payment instruments (except e-money transactions)","2170"]
[null,"of which broken down by payment card scheme:",""]
[null,"card-based payment instrument issued under PCS VISA","2180"]
[null,"card-based payment instrument issued under PCS MASTERCARD","2190"]
[null,"card-based payment instrument issued under PCS Diners","2200"]
[null,"card-based payment instrument issued under PCS American Express","2210"]
[null,"card-based payment instrument issued under PCS China Union Pay","2220"]
[null,"card-based payment instrument issued under PCS JCB","2230"]
[null,"card-based payment instrument issued under PCS Discover","2240"]
[null,"card-based payment instrument issued under PCS Other","2250"]
[null,"of which broken down by card function:",""]
[null,"with a debit card","2260"]
[null,"card-based payment instrument issued under PCS VISA","2270"]
[null,"card-based payment instrument issued under PCS MASTERCARD","2280"]
[null,"card-based payment instrument issued under PCS Diners","2290"]
[null,"card-based payment instrument issued under PCS American Express","2300"]
[null,"card-based payment instrument issued under PCS China Union Pay","2310"]
[null,"card-based payment instrument issued under PCS JCB","2320"]
[null,"card-based payment instrument issued under PCS Discover","2330"]
[null,"card-based payment instrument issued under PCS Other","2340"]
[null,"with a delayed debit card","2350"]
[null,"card-based payment instrument issued under PCS VISA","2360"]
[null,"card-based payment instrument issued under PCS MASTERCARD","2370"]
[null,"card-based payment instrument issued under PCS Diners","2380"]
[null,"card-based payment instrument issued under PCS American Express","2390"]
[null,"card-based payment instrument issued under PCS China Union Pay","2400"]
[null,"card-based payment instrument issued under PCS JCB","2410"]
[null,"card-based payment instrument issued under PCS Discover","2420"]
[null,"card-based payment instrument issued under PCS Other","2430"]
[null,"with a credit card","2440"]
[null,"card-based payment instrument issued under PCS VISA","2450"]
[null,"card-based payment instrument issued under PCS MASTERCARD","2460"]
[null,"card-based payment instrument issued under PCS Diners","2470"]
[null,"card-based payment instrument issued under PCS American Express","2480"]
[null,"card-based payment instrument issued under PCS China Union Pay","2490"]
[null,"card-based payment instrument issued under PCS JCB","2500"]
[null,"card-based payment instrument issued under PCS Discover","2510"]
[null,"card-based payment instrument issued under PCS Other","2520"]
[null,"of which fraudulent cash withdrawal by origin:",""]
[null,"Issuance of a payment order (cash withdrawal) by the fraudster","2530"]
[null,"card-based payment instrument issued under PCS VISA","2540"]
[null,"card-based payment instrument issued under PCS MASTERCARD","2550"]
[null,"card-based payment instrument issued under PCS Diners","2560"]
[null,"card-based payment instrument issued under PCS American Express","2570"]
[null,"card-based payment instrument issued under PCS China Union Pay","2580"]
[null,"card-based payment instrument issued under PCS JCB","2590"]
[null,"card-based payment instrument issued under PCS Discover","2600"]
[null,"card-based payment instrument issued under PCS Other","2610"]
[null,"Lost or Stolen card","2620"]
[null,"card-based payment instrument issued under PCS VISA","2630"]
[null,"card-based payment instrument issued under PCS MASTERCARD","2640"]
[null,"card-based payment instrument issued under PCS Diners","2650"]
[null,"card-based payment instrument issued under PCS American Express","2660"]
[null,"card-based payment instrument issued under PCS China Union Pay","2670"]
[null,"card-based payment instrument issued under PCS JCB","2680"]
[null,"card-based payment instrument issued under PCS Discover","2690"]
[null,"card-based payment instrument issued under PCS Other","2700"]
[null,"Card Not Received","2710"]
[null,"card-based payment instrument issued under PCS VISA","2720"]
[null,"card-based payment instrument issued under PCS MASTERCARD","2730"]
[null,"card-based payment instrument issued under PCS Diners","2740"]
[null,"card-based payment instrument issued under PCS American Express","2750"]
[null,"card-based payment instrument issued under PCS China Union Pay","2760"]
[null,"card-based payment instrument issued under PCS JCB","2770"]
[null,"card-based payment instrument issued under PCS Discover","2780"]
[null,"card-based payment instrument issued under PCS Other","2790"]
[null,"Counterfeit card","2800"]
[null,"card-based payment instrument issued under PCS VISA","2810"]
[null,"card-based payment instrument issued under PCS MASTERCARD","2820"]
[null,"card-based payment instrument issued under PCS Diners","2830"]
[null,"card-based payment instrument issued under PCS American Express","2840"]
[null,"card-based payment instrument issued under PCS China Union Pay","2850"]
[null,"card-based payment instrument issued under PCS JCB","2860"]
[null,"card-based payment instrument issued under PCS Discover","2870"]
[null,"card-based payment instrument issued under PCS Other","2880"]
[null,"Other","2890"]
[null,"card-based payment instrument issued under PCS VISA","2900"]
[null,"card-based payment instrument issued under PCS MASTERCARD","2910"]
[null,"card-based payment instrument issued under PCS Diners","2920"]
[null,"card-based payment instrument issued under PCS American Express","2930"]
[null,"card-based payment instrument issued under PCS China Union Pay","2940"]
[null,"card-based payment instrument issued under PCS JCB","2950"]
[null,"card-based payment instrument issued under PCS Discover","2960"]
[null,"card-based payment instrument issued under PCS Other","2970"]
[null,"Manipulation of the payer to make a cash withdrawal","2980"]
[null,"card-based payment instrument issued under PCS VISA","2990"]
[null,"card-based payment instrument issued under PCS MASTERCARD","3000"]
[null,"card-based payment instrument issued under PCS Diners","3010"]
[null,"card-based payment instrument issued under PCS American Express","3020"]
[null,"card-based payment instrument issued under PCS China Union Pay","3030"]
[null,"card-based payment instrument issued under PCS JCB","3040"]
[null,"card-based payment instrument issued under PCS Discover","3050"]
[null,"card-based payment instrument issued under PCS Other","3060"]
[null,null,null,null,null,null,null,null,null,null,null,null,null,null,null,null,null,null,{"$f":"Show!$B$2&Show!$B$2&\"T01.01 Rows {\"&COLUMN($C$1)&\"}\"","v":"!!T01.01 Rows {3}"},{"$f":"Show!$B$2&Show!$B$2&\"T01.01 Columns {\"&COLUMN($O$1)&\"}\"","v":"!!T01.01 Columns {15}"}]

{"sheet":"T01.02","index":6,"n_rows":166,"n_cols":20,"rows_kept":166,"cut":false,"hidden":true,"merged":[[12,3,12,5],[12,6,12,8],[12,9,12,11],[12,12,12,14],[1,1,1,14],[4,1,4,11],[9,3,10,14],[11,3,11,8],[11,9,11,14],[13,14,15,14],[13,3,15,3],[13,4,15,4],[13,5,15,5],[13,6,15,6],[13,7,15,7],[13,8,15,8],[13,9,15,9],[13,10,15,10],[13,11,15,11],[13,12,15,12],[13,13,15,13]]}
["Back to Index"]
[null,"Table group: Payment transactions involving non-MFIs - full"]
[]
[]
[null,"T01.02 Payment transactions involving non-MFIs, sent; other transactions"]
[]
[null,"Counterparty country/group","Z001",null,null,null,{"$f":"Show!$B$3&\"T01.02 Table label {\"&COLUMN($C$1)&\"}\"","v":"!T01.02 Table label {3}"},{"$f":"Show!$B$3&\"T01.02 Table value {\"&COLUMN($D$1)&\"}\"","v":"!T01.02 Table value {4}"}]
[null,null,null,null,null,null,{"$f":"Show!$B$3&Show!$B$3&\"T01.02 Table label {\"&COLUMN($C$1)&\"}\"","v":"!!T01.02 Table label {3}"},{"$f":"Show!$B$3&Show!$B$3&\"T01.02 Table value {\"&COLUMN($D$1)&\"}\"","v":"!!T01.02 Table value {4}"}]
[]
[null,null,null,"x-axis"]
[]
[null,null,null,"Payment transactions",null,null,null,null,null,"Fraudulent payment transactions"]
[null,null,null,"Number of transactions",null,null,"Value of transactions",null,null,"Number of transactions",null,null,"Value of transactions"]
[null,null,null,"Total","Remote","Non-remote","Total","Remote","Non-remote","Total","Remote","Non-remote","Total","Remote","Non-remote"]
[]
[]
[null,null,null,"010","020","030","040","050","060","070","080","090","100","110","120",null,null,null,{"$f":"Show!$B$3&\"T01.02 Rows {\"&COLUMN($C$1)&\"}\"&Index!$E$7","v":"!T01.02 Rows {3}"},{"$f":"Show!$B$3&\"T01.02 Columns {\"&COLUMN($D$1)&\"}\"","v":"!T01.02 Columns {4}"}]
[null,"y-axis",""]
[null,"Credit transfers","0010"]
[null,"Initiated in paper-based form","0020"]
[null,"Initiated electronically","0030"]
[null,"Initiated in a file/batch","0040"]
[null,"Initiated on a single payment basis","0050"]
[null,"Online banking based credit transfers","0060"]
[null,"of which: E-commerce payments","0070"]
[null,"ATM or other PSP terminal","0080"]
[null,"Mobile payment solution","0090"]
[null,"of which: P2P mobile payment solution","0100"]
[null,"Other","0110"]
[null,"of which: Initiated by Payment Initiation Service Provider (PISP)","0120"]
[null,"Initiated electronically, of which: broken down by payment scheme:",""]
[null,"via SEPA Credit Transfer scheme","0130"]
[null,"via SEPA Instant Credit Transfer scheme","0140"]
[null,"on-us intrabank transactions","0150"]
[null,"not applicable","0160"]
[null,"Initiated electronically, of which broken down by authentication channel:",""]
[null,"Authenticated via Strong Customer Authentication (SCA)","0170"]
[null,"via SEPA Credit Transfer scheme","0180"]
[null,"via SEPA Instant Credit Transfer scheme","0190"]
[null,"on-us intrabank transactions","0200"]
[null,"not applicable","0210"]
[null,"Authenticated via Strong Customer Authentication (SCA), of which fraudulent credit transfer by origin:",""]
[null,"Issuance of a payment order by the fraudster","0220"]
[null,"via SEPA Credit Transfer scheme","0230"]
[null,"via SEPA Instant Credit Transfer scheme","0240"]
[null,"on-us intrabank transactions","0250"]
[null,"not applicable","0260"]
[null,"Modification of a payment order by the fraudster","0270"]
[null,"via SEPA Credit Transfer scheme","0280"]
[null,"via SEPA Instant Credit Transfer scheme","0290"]
[null,"on-us intrabank transactions","0300"]
[null,"not applicable","0310"]
[null,"Manipulation of the payer by the fraudster to issue a payment order","0320"]
[null,"via SEPA Credit Transfer scheme","0330"]
[null,"via SEPA Instant Credit Transfer scheme","0340"]
[null,"on-us intrabank transactions","0350"]
[null,"not applicable","0360"]
[null,"Authenticated via non-Strong Customer Authentication (non-SCA)","0370"]
[null,"via SEPA Credit Transfer scheme","0380"]
[null,"via SEPA Instant Credit Transfer scheme","0390"]
[null,"on-us intrabank transactions","0400"]
[null,"not applicable","0410"]
[null,"Authenticated via non-Strong Customer Authentication (non-SCA), of which fraudulent credit transfer by origin:",""]
[null,"Issuance of a payment order by the fraudster","0420"]
[null,"via SEPA Credit Transfer scheme","0430"]
[null,"via SEPA Instant Credit Transfer scheme","0440"]
[null,"on-us intrabank transactions","0450"]
[null,"not applicable","0460"]
[null,"Modification of a payment order by the fraudster","0470"]
[null,"via SEPA Credit Transfer scheme","0480"]
[null,"via SEPA Instant Credit Transfer scheme","0490"]
[null,"on-us intrabank transactions","0500"]
[null,"not applicable","0510"]
[null,"Manipulation of the payer by the fraudster to issue a payment order","0520"]
[null,"via SEPA Credit Transfer scheme","0530"]
[null,"via SEPA Instant Credit Transfer scheme","0540"]
[null,"on-us intrabank transactions","0550"]
[null,"not applicable","0560"]
[null,"Authenticated via non-Strong Customer Authentication (non-SCA), of which broken down by reason:",""]
[null,"Low value","0570"]
[null,"Payment to self","0580"]
[null,"Trusted beneficiaries","0590"]
[null,"Recurring transaction","0600"]
[null,"Secure corporate payment processes and protocols","0610"]
[null,"Transaction Risk Analysis","0620"]
[null,"Contactless low value","0630"]
[null,"Unattended terminal for transport fares or parking fees","0640"]
[null,"Direct debits","0650"]
[null,"Initiated in a file/batch","0660"]
[null,"Initiated on a single payment basis","0670"]
[null,"Consent given via an electronic mandate","0680"]
[null,"Consent given via an electronic mandate, of which broken down by payment scheme:",""]
[null,"via SEPA Direct Debit Core scheme","0690"]
[null,"via SEPA Direct Debit B2B scheme","0700"]
[null,"not applicable","0710"]
[null,"Consent given via an electronic mandate, of which fraudulent direct debits by origin:",""]
[null,"Unauthorised payment transaction","0720"]
[null,"via SEPA Direct Debit Core scheme","0730"]
[null,"via SEPA Direct Debit B2B scheme","0740"]
[null,"not applicable","0750"]
[null,"Manipulation of the payer","0760"]
[null,"via SEPA Direct Debit Core scheme","0770"]
[null,"via SEPA Direct Debit B2B scheme","0780"]
[null,"not applicable","0790"]
[null,"Consent given in other forms","0800"]
[null,"Consent given in other forms, of which broken down by payment scheme:",""]
[null,"via SEPA Direct Debit Core scheme","0810"]
[null,"via SEPA Direct Debit B2B scheme","0820"]
[null,"not applicable","0830"]
[null,"Consent given in other forms, of which fraudulent direct debits by origin:",""]
[null,"Unauthorised payment transaction","0840"]
[null,"via SEPA Direct Debit Core scheme","0850"]
[null,"via SEPA Direct Debit B2B scheme","0860"]
[null,"not applicable","0870"]
[null,"Manipulation of the payer","0880"]
[null,"via SEPA Direct Debit Core scheme","0890"]
[null,"via SEPA Direct Debit B2B scheme","0900"]
[null,"not applicable","0910"]
[null,"E-money payment transactions with e-money issued by resident PSPs","0920"]
[null,"With cards on which e-money can be stored directly","0930"]
[null,"With e-money accounts","0940"]
[null,"Accessed through a card","0950"]
[null,"Mobile payment solution","0960"]
[null,"of which: P2P payment solution","0970"]
[null,"Others","0980"]
[null,"Authenticated via Strong Customer Authentication (SCA)","0990"]
[null,"Authenticated via Strong Customer Authentication (SCA), of which fraudulent e-money payments by origin:",""]
[null,"Issuance of a payment order by the fraudster","1000"]
[null,"Lost or Stolen e-money card","1010"]
[null,"E-money card not received","1020"]
[null,"Counterfeit e-money card","1030"]
[null,"Card details theft","1040"]
[null,"Unauthorised e-money account","1050"]
[null,"Modification of a payment order by the fraudster","1060"]
[null,"Manipulation of the payer to make an e-money payment","1070"]
[null,"Authenticated via non-Strong Customer Authentication (non-SCA)","1080"]
[null,"Authenticated via non-Strong Customer Authentication (non-SCA), of which fraudulent e-money payments by origin:",""]
[null,"Issuance of a payment order by the fraudster","1090"]
[null,"Lost or Stolen e-money card","1100"]
[null,"E-money card not received","1110"]
[null,"Counterfeit e-money card","1120"]
[null,"Card details theft","1130"]
[null,"Unauthorised e-money account transaction","1140"]
[null,"Modification of a payment order by the fraudster","1150"]
[null,"Manipulation of the payer to make an e-money payment","1160"]
[null,"Authenticated via non-Strong Customer Authentication (non-SCA), of which broken down by reason:",""]
[null,"Low value","1170"]
[null,"Trusted beneficiaries","1180"]
[null,"Recurring transaction","1190"]
[null,"Payment to self","1200"]
[null,"Secure corporate payment processes and protocols","1210"]
[null,"Transaction Risk Analysis","1220"]
[null,"Contactless low value","1230"]
[null,"Unattended terminal for transport fares or parking fees","1240"]
[null,"Merchant initiated transaction (MIT)","1250"]
[null,"Other","1260"]
[null,"Cheques","1270"]
[null,"Money remittances","1280"]
[null,"Other payment services","1290"]
[null,"Total payment transactions involving non-MFIs","1300"]
[null,"Payment inititation services","1310"]
[null,"Authenticated via Strong Customer Authentication (SCA)","1320"]
[null,"Authenticated via non-Strong Customer Authentication (non-SCA)","1330"]
[null,"of which: credit transfers","1340"]
[null,"of which: other","1350"]
[null,null,null,null,null,null,null,null,null,null,null,null,null,null,null,null,null,null,{"$f":"Show!$B$3&Show!$B$3&\"T01.02 Rows {\"&COLUMN($C$1)&\"}\"","v":"!!T01.02 Rows {3}"},{"$f":"Show!$B$3&Show!$B$3&\"T01.02 Columns {\"&COLUMN($O$1)&\"}\"","v":"!!T01.02 Columns {15}"}]

{"sheet":"T01.03","index":7,"n_rows":237,"n_cols":20,"rows_kept":237,"cut":false,"hidden":true,"merged":[[13,3,13,5],[13,6,13,8],[13,9,13,11],[13,12,13,14],[1,1,1,14],[4,1,4,11],[10,3,11,14],[12,3,12,8],[12,9,12,14],[14,14,17,14],[14,3,17,3],[14,4,17,4],[14,5,17,5],[14,6,17,6],[14,7,17,7],[14,8,17,8],[14,9,17,9],[14,10,17,10],[14,11,17,11],[14,12,17,12],[14,13,17,13]]}
["Back to Index"]
[null,"Table group: Payment transactions involving non-MFIs - full"]
[]
[]
[null,"T01.03 Payment transactions involving non-MFIs, received; card-based transactions"]
[]
[null,"Counterparty country/group","Z001",null,null,null,{"$f":"Show!$B$4&\"T01.03 Table label {\"&COLUMN($C$1)&\"}\"","v":"!T01.03 Table label {3}"},{"$f":"Show!$B$4&\"T01.03 Table value {\"&COLUMN($D$1)&\"}\"","v":"!T01.03 Table value {4}"}]
[null,"Terminal location","Z002"]
[null,null,null,null,null,null,{"$f":"Show!$B$4&Show!$B$4&\"T01.03 Table label {\"&COLUMN($C$1)&\"}\"","v":"!!T01.03 Table label {3}"},{"$f":"Show!$B$4&Show!$B$4&\"T01.03 Table value {\"&COLUMN($D$1)&\"}\"","v":"!!T01.03 Table value {4}"}]
[]
[null,null,null,"x-axis"]
[]
[null,null,null,"Payment transactions",null,null,null,null,null,"Fraudulent payment transactions"]
[null,null,null,"Number of transactions",null,null,"Value of transactions",null,null,"Number of transactions",null,null,"Value of transactions"]
[null,null,null,"Total","Remote","Non-remote","Total","Remote","Non-remote","Total","Remote","Non-remote","Total","Remote","Non-remote"]
[]
[]
[]
[null,null,null,"010","020","030","040","050","060","070","080","090","100","110","120",null,null,null,{"$f":"Show!$B$4&\"T01.03 Rows {\"&COLUMN($C$1)&\"}\"&Index!$E$8","v":"!T01.03 Rows {3}"},{"$f":"Show!$B$4&\"T01.03 Columns {\"&COLUMN($D$1)&\"}\"","v":"!T01.03 Columns {4}"}]
[null,"y-axis",""]
[null,"Card-based payment transactions with card-based payment instruments acquired by resident PSPs (except cards with an e-money function only)","0010"]
[null,"Initiated non-electronically","0020"]
[null,"Initiated electronically","0030"]
[null,"Initiated at a physical EFTPOS","0060"]
[null,"Initiated at an ATM","0090"]
[null,"Others","0100"]
[null,"Initiated electronically, of which broken down by payment card scheme:",""]
[null,"card-based payment instrument issued under PCS VISA","0110"]
[null,"card-based payment instrument issued under PCS MASTERCARD","0120"]
[null,"card-based payment instrument issued under PCS Diners","0130"]
[null,"card-based payment instrument issued under PCS American Express","0140"]
[null,"card-based payment instrument issued under PCS China Union Pay","0150"]
[null,"card-based payment instrument issued under PCS JCB","0160"]
[null,"card-based payment instrument issued under PCS Discover","0170"]
[null,"card-based payment instrument issued under PCS Other","0180"]
[null,"Initiated electronically, of which broken down by card function:",""]
[null,"with a debit card","0190"]
[null,"card-based payment instrument issued under PCS VISA","0200"]
[null,"card-based payment instrument issued under PCS MASTERCARD","0210"]
[null,"card-based payment instrument issued under PCS Diners","0220"]
[null,"card-based payment instrument issued under PCS American Express","0230"]
[null,"card-based payment instrument issued under PCS China Union Pay","0240"]
[null,"card-based payment instrument issued under PCS JCB","0250"]
[null,"card-based payment instrument issued under PCS Discover","0260"]
[null,"card-based payment instrument issued under PCS Other","0270"]
[null,"with a delayed debit card","0280"]
[null,"card-based payment instrument issued under PCS VISA","0290"]
[null,"card-based payment instrument issued under PCS MASTERCARD","0300"]
[null,"card-based payment instrument issued under PCS Diners","0310"]
[null,"card-based payment instrument issued under PCS American Express","0320"]
[null,"card-based payment instrument issued under PCS China Union Pay","0330"]
[null,"card-based payment instrument issued under PCS JCB","0340"]
[null,"card-based payment instrument issued under PCS Discover","0350"]
[null,"card-based payment instrument issued under PCS Other","0360"]
[null,"with a credit card","0370"]
[null,"card-based payment instrument issued under PCS VISA","0380"]
[null,"card-based payment instrument issued under PCS MASTERCARD","0390"]
[null,"card-based payment instrument issued under PCS Diners","0400"]
[null,"card-based payment instrument issued under PCS American Express","0410"]
[null,"card-based payment instrument issued under PCS China Union Pay","0420"]
[null,"card-based payment instrument issued under PCS JCB","0430"]
[null,"card-based payment instrument issued under PCS Discover","0440"]
[null,"card-based payment instrument issued under PCS Other","0450"]
[null,"Initiated electronically, of which broken down by authentication channel:",""]
[null,"Authenticated via Strong Customer Authentication (SCA)","0460"]
[null,"card-based payment instrument issued under PCS VISA","0470"]
[null,"card-based payment instrument issued under PCS MASTERCARD","0480"]
[null,"card-based payment instrument issued under PCS Diners","0490"]
[null,"card-based payment instrument issued under PCS American Express","0500"]
[null,"card-based payment instrument issued under PCS China Union Pay","0510"]
[null,"card-based payment instrument issued under PCS JCB","0520"]
[null,"card-based payment instrument issued under PCS Discover","0530"]
[null,"card-based payment instrument issued under PCS Other","0540"]
[null,"Authenticated via Strong Customer Authentication (SCA), of which fraudulent card payments by origin:",""]
[null,"Issuance of a payment order by the fraudster","0550"]
[null,"card-based payment instrument issued under PCS VISA","0560"]
[null,"card-based payment instrument issued under PCS MASTERCARD","0570"]
[null,"card-based payment instrument issued under PCS Diners","0580"]
[null,"card-based payment instrument issued under PCS American Express","0590"]
[null,"card-based payment instrument issued under PCS China Union Pay","0600"]
[null,"card-based payment instrument issued under PCS JCB","0610"]
[null,"card-based payment instrument issued under PCS Discover","0620"]
[null,"card-based payment instrument issued under PCS Other","0630"]
[null,"Lost or Stolen card","0640"]
[null,"card-based payment instrument issued under PCS VISA","0650"]
[null,"card-based payment instrument issued under PCS MASTERCARD","0660"]
[null,"card-based payment instrument issued under PCS Diners","0670"]
[null,"card-based payment instrument issued under PCS American Express","0680"]
[null,"card-based payment instrument issued under PCS China Union Pay","0690"]
[null,"card-based payment instrument issued under PCS JCB","0700"]
[null,"card-based payment instrument issued under PCS Discover","0710"]
[null,"card-based payment instrument issued under PCS Other","0720"]
[null,"Card Not Received","0730"]
[null,"card-based payment instrument issued under PCS VISA","0740"]
[null,"card-based payment instrument issued under PCS MASTERCARD","0750"]
[null,"card-based payment instrument issued under PCS Diners","0760"]
[null,"card-based payment instrument issued under PCS American Express","0770"]
[null,"card-based payment instrument issued under PCS China Union Pay","0780"]
[null,"card-based payment instrument issued under PCS JCB","0790"]
[null,"card-based payment instrument issued under PCS Discover","0800"]
[null,"card-based payment instrument issued under PCS Other","0810"]
[null,"Counterfeit card","0820"]
[null,"card-based payment instrument issued under PCS VISA","0830"]
[null,"card-based payment instrument issued under PCS MASTERCARD","0840"]
[null,"card-based payment instrument issued under PCS Diners","0850"]
[null,"card-based payment instrument issued under PCS American Express","0860"]
[null,"card-based payment instrument issued under PCS China Union Pay","0870"]
[null,"card-based payment instrument issued under PCS JCB","0880"]
[null,"card-based payment instrument issued under PCS Discover","0890"]
[null,"card-based payment instrument issued under PCS Other","0900"]
[null,"Card details theft","0910"]
[null,"card-based payment instrument issued under PCS VISA","0920"]
[null,"card-based payment instrument issued under PCS MASTERCARD","0930"]
[null,"card-based payment instrument issued under PCS Diners","0940"]
[null,"card-based payment instrument issued under PCS American Express","0950"]
[null,"card-based payment instrument issued under PCS China Union Pay","0960"]
[null,"card-based payment instrument issued under PCS JCB","0970"]
[null,"card-based payment instrument issued under PCS Discover","0980"]
[null,"card-based payment instrument issued under PCS Other","0990"]
[null,"Others","1000"]
[null,"card-based payment instrument issued under PCS VISA","1010"]
[null,"card-based payment instrument issued under PCS MASTERCARD","1020"]
[null,"card-based payment instrument issued under PCS Diners","1030"]
[null,"card-based payment instrument issued under PCS American Express","1040"]
[null,"card-based payment instrument issued under PCS China Union Pay","1050"]
[null,"card-based payment instrument issued under PCS JCB","1060"]
[null,"card-based payment instrument issued under PCS Discover","1070"]
[null,"card-based payment instrument issued under PCS Other","1080"]
[null,"Modification of a payment order by the fraudster","1090"]
[null,"card-based payment instrument issued under PCS VISA","1100"]
[null,"card-based payment instrument issued under PCS MASTERCARD","1110"]
[null,"card-based payment instrument issued under PCS Diners","1120"]
[null,"card-based payment instrument issued under PCS American Express","1130"]
[null,"card-based payment instrument issued under PCS China Union Pay","1140"]
[null,"card-based payment instrument issued under PCS JCB","1150"]
[null,"card-based payment instrument issued under PCS Discover","1160"]
[null,"card-based payment instrument issued under PCS Other","1170"]
[null,"Manipulation of the payer to make a card payment","1180"]
[null,"card-based payment instrument issued under PCS VISA","1190"]
[null,"card-based payment instrument issued under PCS MASTERCARD","1200"]
[null,"card-based payment instrument issued under PCS Diners","1210"]
[null,"card-based payment instrument issued under PCS American Express","1220"]
[null,"card-based payment instrument issued under PCS China Union Pay","1230"]
[null,"card-based payment instrument issued under PCS JCB","1240"]
[null,"card-based payment instrument issued under PCS Discover","1250"]
[null,"card-based payment instrument issued under PCS Other","1260"]
[null,"Authenticated via non-Strong Customer Authentication (non-SCA)","1270"]
[null,"card-based payment instrument issued under PCS VISA","1280"]
[null,"card-based payment instrument issued under PCS MASTERCARD","1290"]
[null,"card-based payment instrument issued under PCS Diners","1300"]
[null,"card-based payment instrument issued under PCS American Express","1310"]
[null,"card-based payment instrument issued under PCS China Union Pay","1320"]
[null,"card-based payment instrument issued under PCS JCB","1330"]
[null,"card-based payment instrument issued under PCS Discover","1340"]
[null,"card-based payment instrument issued under PCS Other","1350"]
[null,"Authenticated via non-Strong Customer Authentication (non-SCA), of which fraudulent card payments by origin:",""]
[null,"Issuance of a payment order by the fraudster","1360"]
[null,"card-based payment instrument issued under PCS VISA","1370"]
[null,"card-based payment instrument issued under PCS MASTERCARD","1380"]
[null,"card-based payment instrument issued under PCS Diners","1390"]
[null,"card-based payment instrument issued under PCS American Express","1400"]
[null,"card-based payment instrument issued under PCS China Union Pay","1410"]
[null,"card-based payment instrument issued under PCS JCB","1420"]
[null,"card-based payment instrument issued under PCS Discover","1430"]
[null,"card-based payment instrument issued under PCS Other","1440"]
[null,"Lost or Stolen card","1450"]
[null,"card-based payment instrument issued under PCS VISA","1460"]
[null,"card-based payment instrument issued under PCS MASTERCARD","1470"]
[null,"card-based payment instrument issued under PCS Diners","1480"]
[null,"card-based payment instrument issued under PCS American Express","1490"]
[null,"card-based payment instrument issued under PCS China Union Pay","1500"]
[null,"card-based payment instrument issued under PCS JCB","1510"]
[null,"card-based payment instrument issued under PCS Discover","1520"]
[null,"card-based payment instrument issued under PCS Other","1530"]
[null,"Card Not Received","1540"]
[null,"card-based payment instrument issued under PCS VISA","1550"]
[null,"card-based payment instrument issued under PCS MASTERCARD","1560"]
[null,"card-based payment instrument issued under PCS Diners","1570"]
[null,"card-based payment instrument issued under PCS American Express","1580"]
[null,"card-based payment instrument issued under PCS China Union Pay","1590"]
[null,"card-based payment instrument issued under PCS JCB","1600"]
[null,"card-based payment instrument issued under PCS Discover","1610"]
[null,"card-based payment instrument issued under PCS Other","1620"]
[null,"Counterfeit card","1630"]
[null,"card-based payment instrument issued under PCS VISA","1640"]
[null,"card-based payment instrument issued under PCS MASTERCARD","1650"]
[null,"card-based payment instrument issued under PCS Diners","1660"]
[null,"card-based payment instrument issued under PCS American Express","1670"]
[null,"card-based payment instrument issued under PCS China Union Pay","1680"]
[null,"card-based payment instrument issued under PCS JCB","1690"]
[null,"card-based payment instrument issued under PCS Discover","1700"]
[null,"card-based payment instrument issued under PCS Other","1710"]
[null,"Card details theft","1720"]
[null,"card-based payment instrument issued under PCS VISA","1730"]
[null,"card-based payment instrument issued under PCS MASTERCARD","1740"]
[null,"card-based payment instrument issued under PCS Diners","1750"]
[null,"card-based payment instrument issued under PCS American Express","1760"]
[null,"card-based payment instrument issued under PCS China Union Pay","1770"]
[null,"card-based payment instrument issued under PCS JCB","1780"]
[null,"card-based payment instrument issued under PCS Discover","1790"]
[null,"card-based payment instrument issued under PCS Other","1800"]
[null,"Others","1810"]
[null,"card-based payment instrument issued under PCS VISA","1820"]
[null,"card-based payment instrument issued under PCS MASTERCARD","1830"]
[null,"card-based payment instrument issued under PCS Diners","1840"]
[null,"card-based payment instrument issued under PCS American Express","1850"]
[null,"card-based payment instrument issued under PCS China Union Pay","1860"]
[null,"card-based payment instrument issued under PCS JCB","1870"]
[null,"card-based payment instrument issued under PCS Discover","1880"]
[null,"card-based payment instrument issued under PCS Other","1890"]
[null,"Modification of a payment order by the fraudster","1900"]
[null,"card-based payment instrument issued under PCS VISA","1910"]
[null,"card-based payment instrument issued under PCS MASTERCARD","1920"]
[null,"card-based payment instrument issued under PCS Diners","1930"]
[null,"card-based payment instrument issued under PCS American Express","1940"]
[null,"card-based payment instrument issued under PCS China Union Pay","1950"]
[null,"card-based payment instrument issued under PCS JCB","1960"]
[null,"card-based payment instrument issued under PCS Discover","1970"]
[null,"card-based payment instrument issued under PCS Other","1980"]
[null,"Manipulation of the payer to make a card payment","1990"]
[null,"card-based payment instrument issued under PCS VISA","2000"]
[null,"card-based payment instrument issued under PCS MASTERCARD","2010"]
[null,"card-based payment instrument issued under PCS Diners","2020"]
[null,"card-based payment instrument issued under PCS American Express","2030"]
[null,"card-based payment instrument issued under PCS China Union Pay","2040"]
[null,"card-based payment instrument issued under PCS JCB","2050"]
[null,"card-based payment instrument issued under PCS Discover","2060"]
[null,"card-based payment instrument issued under PCS Other","2070"]
[null,"Authenticated via non-Strong Customer Authentication (non-SCA), of which broken down by reason:",""]
[null,"Low value","2080"]
[null,"Recurring transaction","2100"]
[null,"Transaction Risk Analysis","2120"]
[null,"Contactless low value","2130"]
[null,"Unattended terminal for transport fares or parking fees","2140"]
[null,"Merchant initiated transaction (MIT)","2150"]
[null,"Other","2160"]
[null,null,null,null,null,null,null,null,null,null,null,null,null,null,null,null,null,null,{"$f":"Show!$B$4&Show!$B$4&\"T01.03 Rows {\"&COLUMN($C$1)&\"}\"","v":"!!T01.03 Rows {3}"},{"$f":"Show!$B$4&Show!$B$4&\"T01.03 Columns {\"&COLUMN($O$1)&\"}\"","v":"!!T01.03 Columns {15}"}]

{"sheet":"T01.04","index":8,"n_rows":24,"n_cols":10,"rows_kept":24,"cut":false,"hidden":true,"merged":[[1,1,1,14],[4,1,4,11],[9,3,10,4],[11,3,11,4]]}
["Back to Index"]
[null,"Table group: Payment transactions involving non-MFIs - full"]
[]
[]
[null,"T01.04 Payment transactions involving non-MFIs, received; other transactions"]
[]
[null,"Counterparty country/group","Z001",null,null,null,{"$f":"Show!$B$5&\"T01.04 Table label {\"&COLUMN($C$1)&\"}\"","v":"!T01.04 Table label {3}"},{"$f":"Show!$B$5&\"T01.04 Table value {\"&COLUMN($D$1)&\"}\"","v":"!T01.04 Table value {4}"}]
[null,null,null,null,null,null,{"$f":"Show!$B$5&Show!$B$5&\"T01.04 Table label {\"&COLUMN($C$1)&\"}\"","v":"!!T01.04 Table label {3}"},{"$f":"Show!$B$5&Show!$B$5&\"T01.04 Table value {\"&COLUMN($D$1)&\"}\"","v":"!!T01.04 Table value {4}"}]
[]
[null,null,null,"x-axis"]
[]
[null,null,null,"Payment transactions"]
[null,null,null,"Number of transactions","Value of transactions"]
[null,null,null,"Total","Total"]
[null,null,null,"010","020",null,null,null,{"$f":"Show!$B$5&\"T01.04 Rows {\"&COLUMN($C$1)&\"}\"&Index!$E$9","v":"!T01.04 Rows {3}"},{"$f":"Show!$B$5&\"T01.04 Columns {\"&COLUMN($D$1)&\"}\"","v":"!T01.04 Columns {4}"}]
[null,"y-axis",""]
[null,"Credit transfers","0010"]
[null,"Direct debits","0650"]
[null,"E-money payment transactions","0920"]
[null,"Cheques","1270"]
[null,"Money remittances","1280"]
[null,"Other payment services","1290"]
[null,"Total payment transactions involving non-MFIs","1300"]
[null,null,null,null,null,null,null,null,{"$f":"Show!$B$5&Show!$B$5&\"T01.04 Rows {\"&COLUMN($C$1)&\"}\"","v":"!!T01.04 Rows {3}"},{"$f":"Show!$B$5&Show!$B$5&\"T01.04 Columns {\"&COLUMN($E$1)&\"}\"","v":"!!T01.04 Columns {5}"}]

{"sheet":"T02.01","index":9,"n_rows":67,"n_cols":20,"rows_kept":67,"cut":false,"hidden":true,"merged":[[13,3,13,5],[13,6,13,8],[13,9,13,11],[13,12,13,14],[1,1,1,14],[4,1,4,11],[10,3,11,14],[12,3,12,8],[12,9,12,14],[14,14,16,14],[14,3,16,3],[14,4,16,4],[14,5,16,5],[14,6,16,6],[14,7,16,7],[14,8,16,8],[14,9,16,9],[14,10,16,10],[14,11,16,11],[14,12,16,12],[14,13,16,13]]}
["Back to Index"]
[null,"Table group: Payment transactions involving non-MFIs - derogation specific"]
[]
[]
[null,"T02.01 Payment transactions involving non-MFIs, sent; card-based transactions - Derogation"]
[]
[null,"Counterparty country/group","Z001",null,null,null,{"$f":"Show!$B$6&\"T02.01 Table label {\"&COLUMN($C$1)&\"}\"","v":"!T02.01 Table label {3}"},{"$f":"Show!$B$6&\"T02.01 Table value {\"&COLUMN($D$1)&\"}\"","v":"!T02.01 Table value {4}"}]
[null,"Terminal location","Z002"]
[null,null,null,null,null,null,{"$f":"Show!$B$6&Show!$B$6&\"T02.01 Table label {\"&COLUMN($C$1)&\"}\"","v":"!!T02.01 Table label {3}"},{"$f":"Show!$B$6&Show!$B$6&\"T02.01 Table value {\"&COLUMN($D$1)&\"}\"","v":"!!T02.01 Table value {4}"}]
[]
[null,null,null,"x-axis"]
[]
[null,null,null,"Payment transactions",null,null,null,null,null,"Fraudulent payment transactions"]
[null,null,null,"Number of transactions",null,null,"Value of transactions",null,null,"Number of transactions",null,null,"Value of transactions"]
[null,null,null,"Total","Remote","Non-remote","Total","Remote","Non-remote","Total","Remote","Non-remote","Total","Remote","Non-remote"]
[]
[]
[null,null,null,"010","020","030","040","050","060","070","080","090","100","110","120",null,null,null,{"$f":"Show!$B$6&\"T02.01 Rows {\"&COLUMN($C$1)&\"}\"&Index!$E$10","v":"!T02.01 Rows {3}"},{"$f":"Show!$B$6&\"T02.01 Columns {\"&COLUMN($D$1)&\"}\"","v":"!T02.01 Columns {4}"}]
[null,"y-axis",""]
[null,"Card-based payment transactions with card-based payment instruments issued by resident PSPs (except cards with an e-money function only)","0010"]
[null,"Initiated non-electronically","0020"]
[null,"Initiated electronically","0030"]
[null,"with a debit card","0190"]
[null,"with a delayed debit card","0280"]
[null,"with a credit card","0370"]
[null,"Authenticated via Strong Customer Authentication (SCA)","0460"]
[null,"Authenticated via Strong Customer Authentication (SCA), of which fraudulent card payments by origin:",""]
[null,"Issuance of a payment order by the fraudster","0550"]
[null,"Lost or Stolen card","0640"]
[null,"Card Not Received","0730"]
[null,"Counterfeit card","0820"]
[null,"Card details theft","0910"]
[null,"Others","1000"]
[null,"Modification of a payment order by the fraudster","1090"]
[null,"Manipulation of the payer to make a card payment","1180"]
[null,"Authenticated via non-Strong Customer Authentication (non-SCA)","1270"]
[null,"Authenticated via non-Strong Customer Authentication (non-SCA), of which fraudulent card payments by origin:",""]
[null,"Issuance of a payment order by the fraudster","1360"]
[null,"Lost or Stolen card","1450"]
[null,"Card Not Received","1540"]
[null,"Counterfeit card","1630"]
[null,"Card details theft","1720"]
[null,"Others","1810"]
[null,"Modification of a payment order by the fraudster","1900"]
[null,"Manipulation of the payer to make a card payment","1990"]
[null,"Authenticated via non-Strong Customer Authentication (non-SCA), of which broken down by reason:",""]
[null,"Low value","2080"]
[null,"Trusted beneficiaries","2090"]
[null,"Recurring transaction","2100"]
[null,"Secure corporate payment processes and protocols","2110"]
[null,"Transaction Risk Analysis","2120"]
[null,"Contactless low value","2130"]
[null,"Unattended terminal for transport fares or parking fees","2140"]
[null,"Merchant initiated transaction (MIT)","2150"]
[null,"Other","2160"]
[null,"Cash withdrawals using card-based payment instruments (except e-money transactions)","2170"]
[null,"with a debit card","2260"]
[null,"with a delayed debit card","2350"]
[null,"with a credit card","2440"]
[null,"of which fraudulent cash withdrawal by origin:",""]
[null,"Issuance of a payment order (cash withdrawal) by the fraudster","2530"]
[null,"Lost or Stolen card","2620"]
[null,"Card Not Received","2710"]
[null,"Counterfeit card","2800"]
[null,"Other","2890"]
[null,"Manipulation of the payer to make a cash withdrawal","2980"]
[null,null,null,null,null,null,null,null,null,null,null,null,null,null,null,null,null,null,{"$f":"Show!$B$6&Show!$B$6&\"T02.01 Rows {\"&COLUMN($C$1)&\"}\"","v":"!!T02.01 Rows {3}"},{"$f":"Show!$B$6&Show!$B$6&\"T02.01 Columns {\"&COLUMN($O$1)&\"}\"","v":"!!T02.01 Columns {15}"}]

{"sheet":"T02.02","index":10,"n_rows":95,"n_cols":20,"rows_kept":95,"cut":false,"hidden":true,"merged":[[12,3,12,5],[12,6,12,8],[12,9,12,11],[12,12,12,14],[1,1,1,14],[4,1,4,11],[9,3,10,14],[11,3,11,8],[11,9,11,14],[13,14,14,14],[13,3,14,3],[13,4,14,4],[13,5,14,5],[13,6,14,6],[13,7,14,7],[13,8,14,8],[13,9,14,9],[13,10,14,10],[13,11,14,11],[13,12,14,12],[13,13,14,13]]}
["Back to Index"]
[null,"Table group: Payment transactions involving non-MFIs - derogation specific"]
[]
[]
[null,"T02.02 Payment transactions involving non-MFIs, sent; other transactions - Derogation"]
[]
[null,"Counterparty country/group","Z001",null,null,null,{"$f":"Show!$B$7&\"T02.02 Table label {\"&COLUMN($C$1)&\"}\"","v":"!T02.02 Table label {3}"},{"$f":"Show!$B$7&\"T02.02 Table value {\"&COLUMN($D$1)&\"}\"","v":"!T02.02 Table value {4}"}]
[null,null,null,null,null,null,{"$f":"Show!$B$7&Show!$B$7&\"T02.02 Table label {\"&COLUMN($C$1)&\"}\"","v":"!!T02.02 Table label {3}"},{"$f":"Show!$B$7&Show!$B$7&\"T02.02 Table value {\"&COLUMN($D$1)&\"}\"","v":"!!T02.02 Table value {4}"}]
[]
[null,null,null,"x-axis"]
[]
[null,null,null,"Payment transactions",null,null,null,null,null,"Fraudulent payment transactions"]
[null,null,null,"Number of transactions",null,null,"Value of transactions",null,null,"Number of transactions",null,null,"Value of transactions"]
[null,null,null,"Total","Remote","Non-remote","Total","Remote","Non-remote","Total","Remote","Non-remote","Total","Remote","Non-remote"]
[]
[null,null,null,"010","020","030","040","050","060","070","080","090","100","110","120",null,null,null,{"$f":"Show!$B$7&\"T02.02 Rows {\"&COLUMN($C$1)&\"}\"&Index!$E$11","v":"!T02.02 Rows {3}"},{"$f":"Show!$B$7&\"T02.02 Columns {\"&COLUMN($D$1)&\"}\"","v":"!T02.02 Columns {4}"}]
[null,"y-axis",""]
[null,"Credit transfers","0010"]
[null,"Initiated in paper-based form","0020"]
[null,"Initiated electronically","0030"]
[null,"Other","0110"]
[null,"of which: Initiated by Payment Initiation Service Provider (PISP)","0120"]
[null,"Initiated electronically, of which broken down by authentication channel:",""]
[null,"Authenticated via Strong Customer Authentication (SCA)","0170"]
[null,"Authenticated via Strong Customer Authentication (SCA), of which fraudulent credit transfer by origin:",""]
[null,"Issuance of a payment order by the fraudster","0220"]
[null,"Modification of a payment order by the fraudster","0270"]
[null,"Manipulation of the payer by the fraudster to issue a payment order","0320"]
[null,"Authenticated via non-Strong Customer Authentication (non-SCA)","0370"]
[null,"Authenticated via non-Strong Customer Authentication (non-SCA), of which fraudulent credit transfer by origin:",""]
[null,"Issuance of a payment order by the fraudster","0420"]
[null,"Modification of a payment order by the fraudster","0470"]
[null,"Manipulation of the payer by the fraudster to issue a payment order","0520"]
[null,"Authenticated via non-Strong Customer Authentication (non-SCA), of which broken down by reason:",""]
[null,"Low value","0570"]
[null,"Payment to self","0580"]
[null,"Trusted beneficiaries","0590"]
[null,"Recurring transaction","0600"]
[null,"Secure corporate payment processes and protocols","0610"]
[null,"Transaction Risk Analysis","0620"]
[null,"Contactless low value","0630"]
[null,"Unattended terminal for transport fares or parking fees","0640"]
[null,"Direct debits","0650"]
[null,"Consent given via an electronic mandate","0680"]
[null,"Consent given via an electronic mandate, of which fraudulent direct debits by origin:",""]
[null,"Unauthorised payment transaction","0720"]
[null,"Manipulation of the payer","0760"]
[null,"Consent given in other forms","0800"]
[null,"Consent given in other forms, of which fraudulent direct debits by origin:",""]
[null,"Unauthorised payment transaction","0840"]
[null,"Manipulation of the payer","0880"]
[null,"E-money payment transactions with e-money issued by resident PSPs","0920"]
[null,"With cards on which e-money can be stored directly","0930"]
[null,"With e-money accounts","0940"]
[null,"Accessed through a card","0950"]
[null,"Authenticated via Strong Customer Authentication (SCA)","0990"]
[null,"Authenticated via Strong Customer Authentication (SCA), of which fraudulent e-money payments by origin:",""]
[null,"Issuance of a payment order by the fraudster","1000"]
[null,"Lost or Stolen e-money card","1010"]
[null,"E-money card not received","1020"]
[null,"Counterfeit e-money card","1030"]
[null,"Card details theft","1040"]
[null,"Unauthorised e-money account","1050"]
[null,"Modification of a payment order by the fraudster","1060"]
[null,"Manipulation of the payer to make an e-money payment","1070"]
[null,"Authenticated via non-Strong Customer Authentication (non-SCA)","1080"]
[null,"Authenticated via non-Strong Customer Authentication (non-SCA), of which fraudulent e-money payments by origin:",""]
[null,"Issuance of a payment order by the fraudster","1090"]
[null,"Lost or Stolen e-money card","1100"]
[null,"E-money card not received","1110"]
[null,"Counterfeit e-money card","1120"]
[null,"Card details theft","1130"]
[null,"Unauthorised e-money account transaction","1140"]
[null,"Modification of a payment order by the fraudster","1150"]
[null,"Manipulation of the payer to make an e-money payment","1160"]
[null,"Authenticated via non-Strong Customer Authentication (non-SCA), of which broken down by reason:",""]
[null,"Low value","1170"]
[null,"Trusted beneficiaries","1180"]
[null,"Recurring transaction","1190"]
[null,"Payment to self","1200"]
[null,"Secure corporate payment processes and protocols","1210"]
[null,"Transaction Risk Analysis","1220"]
[null,"Contactless low value","1230"]
[null,"Unattended terminal for transport fares or parking fees","1240"]
[null,"Merchant initiated transaction (MIT)","1250"]
[null,"Other","1260"]
[null,"Cheques","1270"]
[null,"Money remittances","1280"]
[null,"Other payment services","1290"]
[null,"Payment inititation services","1310"]
[null,"Authenticated via Strong Customer Authentication (SCA)","1320"]
[null,"Authenticated via non-Strong Customer Authentication (non-SCA)","1330"]
[null,"of which: credit transfers","1340"]
[null,"of which: other","1350"]
[null,null,null,null,null,null,null,null,null,null,null,null,null,null,null,null,null,null,{"$f":"Show!$B$7&Show!$B$7&\"T02.02 Rows {\"&COLUMN($C$1)&\"}\"","v":"!!T02.02 Rows {3}"},{"$f":"Show!$B$7&Show!$B$7&\"T02.02 Columns {\"&COLUMN($O$1)&\"}\"","v":"!!T02.02 Columns {15}"}]

{"sheet":"T02.03","index":11,"n_rows":54,"n_cols":20,"rows_kept":54,"cut":false,"hidden":true,"merged":[[13,3,13,5],[13,6,13,8],[13,9,13,11],[13,12,13,14],[1,1,1,14],[4,1,4,11],[10,3,11,14],[12,3,12,8],[12,9,12,14],[14,14,16,14],[14,3,16,3],[14,4,16,4],[14,5,16,5],[14,6,16,6],[14,7,16,7],[14,8,16,8],[14,9,16,9],[14,10,16,10],[14,11,16,11],[14,12,16,12],[14,13,16,13]]}
["Back to Index"]
[null,"Table group: Payment transactions involving non-MFIs - derogation specific"]
[]
[]
[null,"T02.03 Payment transactions involving non-MFIs, received; card-based transactions - Derogation"]
[]
[null,"Counterparty country/group","Z001",null,null,null,{"$f":"Show!$B$8&\"T02.03 Table label {\"&COLUMN($C$1)&\"}\"","v":"!T02.03 Table label {3}"},{"$f":"Show!$B$8&\"T02.03 Table value {\"&COLUMN($D$1)&\"}\"","v":"!T02.03 Table value {4}"}]
[null,"Terminal location","Z002"]
[null,null,null,null,null,null,{"$f":"Show!$B$8&Show!$B$8&\"T02.03 Table label {\"&COLUMN($C$1)&\"}\"","v":"!!T02.03 Table label {3}"},{"$f":"Show!$B$8&Show!$B$8&\"T02.03 Table value {\"&COLUMN($D$1)&\"}\"","v":"!!T02.03 Table value {4}"}]
[]
[null,null,null,"x-axis"]
[]
[null,null,null,"Payment transactions",null,null,null,null,null,"Fraudulent payment transactions"]
[null,null,null,"Number of transactions",null,null,"Value of transactions",null,null,"Number of transactions",null,null,"Value of transactions"]
[null,null,null,"Total","Remote","Non-remote","Total","Remote","Non-remote","Total","Remote","Non-remote","Total","Remote","Non-remote"]
[]
[]
[null,null,null,"010","020","030","040","050","060","070","080","090","100","110","120",null,null,null,{"$f":"Show!$B$8&\"T02.03 Rows {\"&COLUMN($C$1)&\"}\"&Index!$E$12","v":"!T02.03 Rows {3}"},{"$f":"Show!$B$8&\"T02.03 Columns {\"&COLUMN($D$1)&\"}\"","v":"!T02.03 Columns {4}"}]
[null,"y-axis",""]
[null,"Card-based payment transactions with card-based payment instruments acquired by resident PSPs (except cards with an e-money function only)","0010"]
[null,"Initiated non-electronically","0020"]
[null,"Initiated electronically","0030"]
[null,"with a debit card","0190"]
[null,"with a delayed debit card","0280"]
[null,"with a credit card","0370"]
[null,"Authenticated via Strong Customer Authentication (SCA)","0460"]
[null,"Authenticated via Strong Customer Authentication (SCA), of which fraudulent card payments by origin:",""]
[null,"Issuance of a payment order by the fraudster","0550"]
[null,"Lost or Stolen card","0640"]
[null,"Card Not Received","0730"]
[null,"Counterfeit card","0820"]
[null,"Card details theft","0910"]
[null,"Others","1000"]
[null,"Modification of a payment order by the fraudster","1090"]
[null,"Manipulation of the payer to make a card payment","1180"]
[null,"Authenticated via non-Strong Customer Authentication (non-SCA)","1270"]
[null,"Authenticated via non-Strong Customer Authentication (non-SCA), of which fraudulent card payments by origin:",""]
[null,"Issuance of a payment order by the fraudster","1360"]
[null,"Lost or Stolen card","1450"]
[null,"Card Not Received","1540"]
[null,"Counterfeit card","1630"]
[null,"Card details theft","1720"]
[null,"Others","1810"]
[null,"Modification of a payment order by the fraudster","1900"]
[null,"Manipulation of the payer to make a card payment","1990"]
[null,"Authenticated via non-Strong Customer Authentication (non-SCA), of which broken down by reason:",""]
[null,"Low value","2080"]
[null,"Recurring transaction","2100"]
[null,"Transaction Risk Analysis","2120"]
[null,"Contactless low value","2130"]
[null,"Unattended terminal for transport fares or parking fees","2140"]
[null,"Merchant initiated transaction (MIT)","2150"]
[null,"Other","2160"]
[null,null,null,null,null,null,null,null,null,null,null,null,null,null,null,null,null,null,{"$f":"Show!$B$8&Show!$B$8&\"T02.03 Rows {\"&COLUMN($C$1)&\"}\"","v":"!!T02.03 Rows {3}"},{"$f":"Show!$B$8&Show!$B$8&\"T02.03 Columns {\"&COLUMN($O$1)&\"}\"","v":"!!T02.03 Columns {15}"}]

{"sheet":"T03.01","index":12,"n_rows":46,"n_cols":9,"rows_kept":46,"cut":false,"hidden":true,"merged":[[1,1,1,14],[4,1,4,11],[8,3,9,3],[10,3,12,3]]}
["Back to Index"]
[null,"Table group: Losses due to fraud"]
[]
[]
[null,"T03.01 Losses due to fraud per liability bearer"]
[]
[]
[]
[null,null,null,"x-axis"]
[]
[null,null,null,"Losses due to fraud"]
[]
[]
[null,null,null,"010",null,null,null,{"$f":"Show!$B$9&\"T03.01 Rows {\"&COLUMN($C$1)&\"}\"&Index!$E$13","v":"!T03.01 Rows {3}"},{"$f":"Show!$B$9&\"T03.01 Columns {\"&COLUMN($D$1)&\"}\"","v":"!T03.01 Columns {4}"}]
[null,"y-axis",""]
[null,"Credit transfers",""]
[null,"of which losses due to fraud per liability bearer:",""]
[null,"The reporting PSP","010"]
[null,"The PSU of the reporting PSP","020"]
[null,"Others","030"]
[null,"Direct debits",""]
[null,"of which losses due to fraud per liability bearer:",""]
[null,"The reporting PSP","040"]
[null,"The PSU of the reporting PSP","050"]
[null,"Others","060"]
[null,"Card-based payment transactions with card-based payment instruments issued by resident PSP",""]
[null,"of which losses due to fraud per liability bearer:",""]
[null,"The reporting PSP","070"]
[null,"The PSU of the reporting PSP","080"]
[null,"Others","090"]
[null,"Card-based payment transactions with card-based payment instruments acquired by resident PSP",""]
[null,"of which losses due to fraud per liability bearer:",""]
[null,"The reporting PSP","100"]
[null,"The PSU of the reporting PSP","110"]
[null,"Others","120"]
[null,"Cash withdrawals",""]
[null,"of which losses due to fraud per liability bearer:",""]
[null,"The reporting PSP","130"]
[null,"The PSU of the reporting PSP","140"]
[null,"Others","150"]
[null,"E-money payment transactions",""]
[null,"of which losses due to fraud per liability bearer:",""]
[null,"The reporting PSP","160"]
[null,"The PSU of the reporting PSP","170"]
[null,"Other","180"]
[null,null,null,null,null,null,null,{"$f":"Show!$B$9&Show!$B$9&\"T03.01 Rows {\"&COLUMN($C$1)&\"}\"","v":"!!T03.01 Rows {3}"},{"$f":"Show!$B$9&Show!$B$9&\"T03.01 Columns {\"&COLUMN($D$1)&\"}\"","v":"!!T03.01 Columns {4}"}]

{"sheet":"T04.01","index":13,"n_rows":34,"n_cols":15,"rows_kept":34,"cut":false,"hidden":true,"merged":[[11,8,12,8],[11,9,12,9],[1,1,1,14],[4,1,4,11],[8,3,9,9],[10,3,10,7],[10,8,10,9],[11,3,12,3],[11,4,12,4],[11,5,12,5],[11,6,12,6],[11,7,12,7]]}
["Back to Index"]
[null,"Table group: Other payment service provider related information"]
[]
[]
[null,"T04.01 Other payment service provider related information; A"]
[]
[]
[]
[null,null,null,"x-axis"]
[]
[null,null,null,"Domestic (reference area)",null,null,null,null,"Counterpart area not applicable"]
[null,null,null,"Number","Number","Outstanding Value","Number of transactions","Value of transactions","Number of transactions","Value of transactions"]
[]
[null,null,null,"010","020","030","040","050","060","070",null,null,null,{"$f":"Show!$B$10&\"T04.01 Rows {\"&COLUMN($C$1)&\"}\"&Index!$E$14","v":"!T04.01 Rows {3}"},{"$f":"Show!$B$10&\"T04.01 Columns {\"&COLUMN($D$1)&\"}\"","v":"!T04.01 Columns {4}"}]
[null,"y-axis",""]
[null,"Infrastructure",""]
[null,"Offices","010"]
[null,"Accounts",""]
[null,"Overnight deposits held by non-MFIs","020"]
[null,"of which: internet/PC-linked overnight deposits","030"]
[null,"Overnight transferable deposits held by non-MFIs","050"]
[null,"of which: internet/PC-linked overnight deposits","060"]
[null,"Payment accounts","070"]
[null,"E-money accounts","080"]
[null,"Outstanding value on e-money storages issued","090"]
[null,"Transactions - Other services (not included in Directive (EU) 2015/2366)",""]
[null,"Credits to the account by simple book entry","100"]
[null,"Debits from the accounts by simple book entry","110"]
[null,"Others","120"]
[null,"Transactions - Cash related",""]
[null,"Over-the-Counter cash withdrawals","130"]
[null,"Over-the-Counter cash deposits","140"]
[null,"Cash advances at POS terminals","150"]
[null,null,null,null,null,null,null,null,null,null,null,null,null,{"$f":"Show!$B$10&Show!$B$10&\"T04.01 Rows {\"&COLUMN($C$1)&\"}\"","v":"!!T04.01 Rows {3}"},{"$f":"Show!$B$10&Show!$B$10&\"T04.01 Columns {\"&COLUMN($J$1)&\"}\"","v":"!!T04.01 Columns {10}"}]

{"sheet":"T04.02","index":14,"n_rows":19,"n_cols":9,"rows_kept":19,"cut":false,"hidden":true,"merged":[[1,1,1,14],[4,1,4,11],[9,3,10,3],[11,3,12,3]]}
["Back to Index"]
[null,"Table group: Other payment service provider related information"]
[]
[]
[null,"T04.02 Other payment service provider related information; B"]
[]
[null,"Counterparty country/group","Z001",null,null,null,{"$f":"Show!$B$11&\"T04.02 Table label {\"&COLUMN($C$1)&\"}\"","v":"!T04.02 Table label {3}"},{"$f":"Show!$B$11&\"T04.02 Table value {\"&COLUMN($D$1)&\"}\"","v":"!T04.02 Table value {4}"}]
[null,null,null,null,null,null,{"$f":"Show!$B$11&Show!$B$11&\"T04.02 Table label {\"&COLUMN($C$1)&\"}\"","v":"!!T04.02 Table label {3}"},{"$f":"Show!$B$11&Show!$B$11&\"T04.02 Table value {\"&COLUMN($D$1)&\"}\"","v":"!!T04.02 Table value {4}"}]
[]
[null,null,null,"x-axis"]
[]
[null,null,null,"Number"]
[]
[null,null,null,"010",null,null,null,{"$f":"Show!$B$11&\"T04.02 Rows {\"&COLUMN($C$1)&\"}\"&Index!$E$15","v":"!T04.02 Rows {3}"},{"$f":"Show!$B$11&\"T04.02 Columns {\"&COLUMN($D$1)&\"}\"","v":"!T04.02 Columns {4}"}]
[null,"y-axis",""]
[null,"Other payment service provider related information",""]
[null,"Clients of Account Information Service Providers (AISP)","010"]
[null,"Payments Accounts accessed by Account Information Service Providers (AISP)","020"]
[null,null,null,null,null,null,null,{"$f":"Show!$B$11&Show!$B$11&\"T04.02 Rows {\"&COLUMN($C$1)&\"}\"","v":"!!T04.02 Rows {3}"},{"$f":"Show!$B$11&Show!$B$11&\"T04.02 Columns {\"&COLUMN($D$1)&\"}\"","v":"!!T04.02 Columns {4}"}]

{"sheet":"T05.01","index":15,"n_rows":37,"n_cols":10,"rows_kept":37,"cut":false,"hidden":true,"merged":[[1,1,1,14],[4,1,4,11],[9,3,10,4],[11,3,12,3],[11,4,12,4]]}
["Back to Index"]
[null,"Table group: Card and terminal related information"]
[]
[]
[null,"T05.01 Payment transactions per type of terminal involving non-MFIs"]
[]
[null,"Terminal location","Z001",null,null,null,{"$f":"Show!$B$12&\"T05.01 Table label {\"&COLUMN($C$1)&\"}\"","v":"!T05.01 Table label {3}"},{"$f":"Show!$B$12&\"T05.01 Table value {\"&COLUMN($D$1)&\"}\"","v":"!T05.01 Table value {4}"}]
[null,null,null,null,null,null,{"$f":"Show!$B$12&Show!$B$12&\"T05.01 Table label {\"&COLUMN($C$1)&\"}\"","v":"!!T05.01 Table label {3}"},{"$f":"Show!$B$12&Show!$B$12&\"T05.01 Table value {\"&COLUMN($D$1)&\"}\"","v":"!!T05.01 Table value {4}"}]
[]
[null,null,null,"x-axis"]
[]
[null,null,null,"Number of transactions","Value of transactions"]
[]
[null,null,null,"010","020",null,null,null,{"$f":"Show!$B$12&\"T05.01 Rows {\"&COLUMN($C$1)&\"}\"&Index!$E$16","v":"!T05.01 Rows {3}"},{"$f":"Show!$B$12&\"T05.01 Columns {\"&COLUMN($D$1)&\"}\"","v":"!T05.01 Columns {4}"}]
[null,"y-axis",""]
[null,"a) Transactions at terminals provided by resident PSPs with cards issued by resident PSPs","010"]
[null,"of which: ATM cash withdrawals (except e-money transactions)","020"]
[null,"of which: ATM cash deposits (except e-money transactions)","030"]
[null,"of which: other ATM transactions (except e-money transactions)","040"]
[null,"of which: POS transactions (except e-money transactions)","050"]
[null,"of which: E-money card loading and unloading transactions","060"]
[null,"of which: E-money payment transactions with cards with an e-money function","070"]
[null,"b) Transactions at terminals provided by resident PSPs with cards issued by non-resident PSPs","080"]
[null,"of which: ATM cash withdrawals (except e-money transactions)","090"]
[null,"of which: ATM cash deposits (except e-money transactions)","100"]
[null,"of which: other ATM transactions (except e-money transactions)","110"]
[null,"of which: POS transactions (except e-money transactions)","120"]
[null,"of which: E-money card loading and unloading transactions","130"]
[null,"of which: E-money payment transactions with cards with an e-money function","140"]
[null,"c) Transactions at terminals provided by non-resident PSPs with cards issued by resident PSPs","150"]
[null,"of which: ATM cash withdrawals (except e-money transactions)","160"]
[null,"of which: ATM cash deposits (except e-money transactions)","170"]
[null,"of which: other ATM transactions (except e-money transactions)","180"]
[null,"of which: POS transactions (except e-money transactions)","190"]
[null,"of which: E-money card loading and unloading transactions","200"]
[null,"of which: E-money payment transactions with cards with an e-money function","210"]
[null,null,null,null,null,null,null,null,{"$f":"Show!$B$12&Show!$B$12&\"T05.01 Rows {\"&COLUMN($C$1)&\"}\"","v":"!!T05.01 Rows {3}"},{"$f":"Show!$B$12&Show!$B$12&\"T05.01 Columns {\"&COLUMN($E$1)&\"}\"","v":"!!T05.01 Columns {5}"}]

{"sheet":"T05.02","index":16,"n_rows":54,"n_cols":9,"rows_kept":54,"cut":false,"hidden":true,"merged":[[1,1,1,14],[4,1,4,11],[8,3,9,3],[10,3,13,3]]}
["Back to Index"]
[null,"Table group: Card and terminal related information"]
[]
[]
[null,"T05.02 Card functions"]
[]
[]
[]
[null,null,null,"x-axis"]
[]
[null,null,null,"Number"]
[]
[]
[]
[null,null,null,"010",null,null,null,{"$f":"Show!$B$13&\"T05.02 Rows {\"&COLUMN($C$1)&\"}\"&Index!$E$17","v":"!T05.02 Rows {3}"},{"$f":"Show!$B$13&\"T05.02 Columns {\"&COLUMN($D$1)&\"}\"","v":"!T05.02 Columns {4}"}]
[null,"y-axis",""]
[null,"Cards issued by resident PSPs",""]
[null,"Cards with a cash function","010"]
[null,"Cards with a payment function (except cards with an e-money function only)","020"]
[null,"of which: debit card","030"]
[null,"card-based payment instrument issued under PCS VISA","040"]
[null,"card-based payment instrument issued under PCS MASTERCARD","050"]
[null,"card-based payment instrument issued under PCS Diners","060"]
[null,"card-based payment instrument issued under PCS American Express","070"]
[null,"card-based payment instrument issued under PCS China Union Pay","080"]
[null,"card-based payment instrument issued under PCS JCB","090"]
[null,"card-based payment instrument issued under PCS Discover","100"]
[null,"card-based payment instrument issued under PCS Other","110"]
[null,"of which: delayed debit card","120"]
[null,"card-based payment instrument issued under PCS VISA","130"]
[null,"card-based payment instrument issued under PCS MASTERCARD","140"]
[null,"card-based payment instrument issued under PCS Diners","150"]
[null,"card-based payment instrument issued under PCS American Express","160"]
[null,"card-based payment instrument issued under PCS China Union Pay","170"]
[null,"card-based payment instrument issued under PCS JCB","180"]
[null,"card-based payment instrument issued under PCS Discover","190"]
[null,"card-based payment instrument issued under PCS Other","200"]
[null,"of which: credit card","210"]
[null,"card-based payment instrument issued under PCS VISA","220"]
[null,"card-based payment instrument issued under PCS MASTERCARD","230"]
[null,"card-based payment instrument issued under PCS Diners","240"]
[null,"card-based payment instrument issued under PCS American Express","250"]
[null,"card-based payment instrument issued under PCS China Union Pay","260"]
[null,"card-based payment instrument issued under PCS JCB","270"]
[null,"card-based payment instrument issued under PCS Discover","280"]
[null,"card-based payment instrument issued under PCS Other","290"]
[null,"Cards with an e-money function","300"]
[null,"Cards on which e-money can be stored directly","310"]
[null,"of which: cards with an e-money function that have been loaded at least once","320"]
[null,"Cards which give access to e-money stored on e-money accounts","330"]
[null,"Total number of cards (irrespective of the number of functions on the card)","340"]
[null,"of which: cards with a combined, cash and e-money function","350"]
[null,"of which: cards with a contactless payment function","360"]
[null,null,null,null,null,null,null,{"$f":"Show!$B$13&Show!$B$13&\"T05.02 Rows {\"&COLUMN($C$1)&\"}\"","v":"!!T05.02 Rows {3}"},{"$f":"Show!$B$13&Show!$B$13&\"T05.02 Columns {\"&COLUMN($D$1)&\"}\"","v":"!!T05.02 Columns {4}"}]

{"sheet":"T05.03","index":17,"n_rows":30,"n_cols":9,"rows_kept":30,"cut":false,"hidden":true,"merged":[[1,1,1,14],[4,1,4,11],[9,3,10,3],[11,3,14,3]]}
["Back to Index"]
[null,"Table group: Card and terminal related information"]
[]
[]
[null,"T05.03 Card accepting devices"]
[]
[null,"Terminal location","Z001",null,null,null,{"$f":"Show!$B$14&\"T05.03 Table label {\"&COLUMN($C$1)&\"}\"","v":"!T05.03 Table label {3}"},{"$f":"Show!$B$14&\"T05.03 Table value {\"&COLUMN($D$1)&\"}\"","v":"!T05.03 Table value {4}"}]
[null,null,null,null,null,null,{"$f":"Show!$B$14&Show!$B$14&\"T05.03 Table label {\"&COLUMN($C$1)&\"}\"","v":"!!T05.03 Table label {3}"},{"$f":"Show!$B$14&Show!$B$14&\"T05.03 Table value {\"&COLUMN($D$1)&\"}\"","v":"!!T05.03 Table value {4}"}]
[]
[null,null,null,"x-axis"]
[]
[null,null,null,"Number"]
[]
[]
[]
[null,null,null,"010",null,null,null,{"$f":"Show!$B$14&\"T05.03 Rows {\"&COLUMN($C$1)&\"}\"&Index!$E$18","v":"!T05.03 Rows {3}"},{"$f":"Show!$B$14&\"T05.03 Columns {\"&COLUMN($D$1)&\"}\"","v":"!T05.03 Columns {4}"}]
[null,"y-axis",""]
[null,"Terminals provided by resident PSPs",""]
[null,"ATMs","010"]
[null,"of which: ATMs with a cash withdrawal function","020"]
[null,"of which: ATMs with a credit transfer function","030"]
[null,"of which: ATMs accepting contactless transactions","040"]
[null,"POS terminals","050"]
[null,"EFTPOS terminals","060"]
[null,"of which: accepting contactless transactions","070"]
[null,"of which: accepting e-money card transactions","080"]
[null,"E-money card terminals","090"]
[null,"of which: card loading and unloading terminals","100"]
[null,"of which: card accepting","110"]
[null,null,null,null,null,null,null,{"$f":"Show!$B$14&Show!$B$14&\"T05.03 Rows {\"&COLUMN($C$1)&\"}\"","v":"!!T05.03 Rows {3}"},{"$f":"Show!$B$14&Show!$B$14&\"T05.03 Columns {\"&COLUMN($D$1)&\"}\"","v":"!!T05.03 Columns {4}"}]

{"sheet":"T06.01","index":18,"n_rows":19,"n_cols":14,"rows_kept":19,"cut":false,"hidden":true,"merged":[[1,1,1,14],[4,1,4,11],[9,3,10,8],[11,3,11,8],[12,3,12,5],[12,6,12,8]]}
["Back to Index"]
[null,"Table group: Payment transactions involving non-MFIs, quarterly reporting - full"]
[]
[]
[null,"T06.01 Payment transactions involving non-MFIs, quarterly reporting; sent; card-based transactions"]
[]
[null,"Terminal location","Z001",null,null,null,{"$f":"Show!$B$15&\"T06.01 Table label {\"&COLUMN($C$1)&\"}\"","v":"!T06.01 Table label {3}"},{"$f":"Show!$B$15&\"T06.01 Table value {\"&COLUMN($D$1)&\"}\"","v":"!T06.01 Table value {4}"}]
[null,null,null,null,null,null,{"$f":"Show!$B$15&Show!$B$15&\"T06.01 Table label {\"&COLUMN($C$1)&\"}\"","v":"!!T06.01 Table label {3}"},{"$f":"Show!$B$15&Show!$B$15&\"T06.01 Table value {\"&COLUMN($D$1)&\"}\"","v":"!!T06.01 Table value {4}"}]
[]
[null,null,null,"x-axis"]
[]
[null,null,null,"Payment transactions"]
[null,null,null,"Number of transactions",null,null,"Value of transactions"]
[null,null,null,"Total","Remote","Non-remote","Total","Remote","Non-remote"]
[null,null,null,"010","020","030","040","050","060",null,null,null,{"$f":"Show!$B$15&\"T06.01 Rows {\"&COLUMN($C$1)&\"}\"&Index!$E$19","v":"!T06.01 Rows {3}"},{"$f":"Show!$B$15&\"T06.01 Columns {\"&COLUMN($D$1)&\"}\"","v":"!T06.01 Columns {4}"}]
[null,"y-axis",""]
[null,"Card-based payment transactions with card-based payment instruments issued by resident PSP (except cards with an e-money function only)","0010"]
[null,"Initiated electronically","0030"]
[null,null,null,null,null,null,null,null,null,null,null,null,{"$f":"Show!$B$15&Show!$B$15&\"T06.01 Rows {\"&COLUMN($C$1)&\"}\"","v":"!!T06.01 Rows {3}"},{"$f":"Show!$B$15&Show!$B$15&\"T06.01 Columns {\"&COLUMN($I$1)&\"}\"","v":"!!T06.01 Columns {9}"}]

{"sheet":"T06.02","index":19,"n_rows":17,"n_cols":12,"rows_kept":17,"cut":false,"hidden":true,"merged":[[1,1,1,14],[4,1,4,11],[8,1,13,1],[8,2,13,2],[8,3,9,6],[10,3,10,6],[11,3,11,6],[12,3,12,4],[12,5,12,6]]}
["Back to Index"]
[null,"Table group: Payment transactions involving non-MFIs, quarterly reporting - full"]
[]
[]
[null,"T06.02 Payment transactions involving non-MFIs, quarterly reporting; sent; card-based transactions, MCC breakdown"]
[]
[]
[]
[null,"Terminal location","Merchant category","x-axis"]
[]
[null,null,null,"Card-based payment transactions with card-based payment instruments issued by resident PSP (except cards with an e-money function only): Initiated electronically"]
[null,null,null,"Payment transactions"]
[null,null,null,"Number of transactions",null,"Value of transactions"]
[null,null,null,"Remote","Non-remote","Remote","Non-remote"]
[null,"Y001","Y002","020","030","050","060",null,null,null,{"$f":"Show!$B$16&\"T06.02 Rows {\"&COLUMN($B$1)&\"}\"&Index!$E$20","v":"!T06.02 Rows {2}"},{"$f":"Show!$B$16&\"T06.02 Columns {\"&COLUMN($B$1)&\"}\"","v":"!T06.02 Columns {2}"}]
[]
[null,null,null,null,null,null,null,null,null,null,{"$f":"Show!$B$16&Show!$B$16&\"T06.02 Rows {\"&COLUMN($B$1)&\"}\"","v":"!!T06.02 Rows {2}"},{"$f":"Show!$B$16&Show!$B$16&\"T06.02 Columns {\"&COLUMN($G$1)&\"}\"","v":"!!T06.02 Columns {7}"}]

{"sheet":"T06.03","index":20,"n_rows":23,"n_cols":14,"rows_kept":23,"cut":false,"hidden":true,"merged":[[1,1,1,14],[4,1,4,11],[9,3,10,8],[11,3,11,8],[12,3,12,5],[12,6,12,8]]}
["Back to Index"]
[null,"Table group: Payment transactions involving non-MFIs, quarterly reporting - full"]
[]
[]
[null,"T06.03 Payment transactions involving non-MFIs, quarterly reporting; sent; other transactions"]
[]
[null,"Counterparty country/group","Z001",null,null,null,{"$f":"Show!$B$17&\"T06.03 Table label {\"&COLUMN($C$1)&\"}\"","v":"!T06.03 Table label {3}"},{"$f":"Show!$B$17&\"T06.03 Table value {\"&COLUMN($D$1)&\"}\"","v":"!T06.03 Table value {4}"}]
[null,null,null,null,null,null,{"$f":"Show!$B$17&Show!$B$17&\"T06.03 Table label {\"&COLUMN($C$1)&\"}\"","v":"!!T06.03 Table label {3}"},{"$f":"Show!$B$17&Show!$B$17&\"T06.03 Table value {\"&COLUMN($D$1)&\"}\"","v":"!!T06.03 Table value {4}"}]
[]
[null,null,null,"x-axis"]
[]
[null,null,null,"Payment transactions"]
[null,null,null,"Number of transactions",null,null,"Value of transactions"]
[null,null,null,"Total","Remote","Non-remote","Total","Remote","Non-remote"]
[null,null,null,"010","020","030","040","050","060",null,null,null,{"$f":"Show!$B$17&\"T06.03 Rows {\"&COLUMN($C$1)&\"}\"&Index!$E$21","v":"!T06.03 Rows {3}"},{"$f":"Show!$B$17&\"T06.03 Columns {\"&COLUMN($D$1)&\"}\"","v":"!T06.03 Columns {4}"}]
[null,"y-axis",""]
[null,"Credit transfers","0010"]
[null,"Initiated electronically","0030"]
[null,"Direct debits","0650"]
[null,"E-money payment transactions with e-money issued by resident PSPs","0920"]
[null,"Cheques","1270"]
[]
[null,null,null,null,null,null,null,null,null,null,null,null,{"$f":"Show!$B$17&Show!$B$17&\"T06.03 Rows {\"&COLUMN($C$1)&\"}\"","v":"!!T06.03 Rows {3}"},{"$f":"Show!$B$17&Show!$B$17&\"T06.03 Columns {\"&COLUMN($I$1)&\"}\"","v":"!!T06.03 Columns {9}"}]

{"sheet":"T07.01","index":21,"n_rows":28,"n_cols":9,"rows_kept":28,"cut":false,"hidden":true,"merged":[[1,1,1,14],[4,1,4,11],[8,3,9,3],[10,3,13,3]]}
["Back to Index"]
[null,"Table group: Large Value Payment System specific"]
[]
[]
[null,"T07.01 Participation in large value payment system"]
[]
[]
[]
[null,null,null,"x-axis"]
[]
[null,null,null,"Participants"]
[]
[]
[]
[null,null,null,"010",null,null,null,{"$f":"Show!$B$18&\"T07.01 Rows {\"&COLUMN($C$1)&\"}\"&Index!$E$22","v":"!T07.01 Rows {3}"},{"$f":"Show!$B$18&\"T07.01 Columns {\"&COLUMN($D$1)&\"}\"","v":"!T07.01 Columns {4}"}]
[null,"y-axis",""]
[null,"Number of participants","010"]
[null,"Direct participants","020"]
[null,"Credit institutions","030"]
[null,"Central bank","040"]
[null,"Other direct participants",""]
[null,"General government","050"]
[null,"Clearing and settlement organisations","060"]
[null,"Other financial institutions","070"]
[null,"Others","080"]
[null,"Indirect participants","090"]
[]
[null,null,null,null,null,null,null,{"$f":"Show!$B$18&Show!$B$18&\"T07.01 Rows {\"&COLUMN($C$1)&\"}\"","v":"!!T07.01 Rows {3}"},{"$f":"Show!$B$18&Show!$B$18&\"T07.01 Columns {\"&COLUMN($D$1)&\"}\"","v":"!!T07.01 Columns {4}"}]

{"sheet":"T07.02","index":22,"n_rows":30,"n_cols":17,"rows_kept":30,"cut":false,"hidden":true,"merged":[[1,1,1,14],[4,1,4,11],[8,3,9,11],[10,3,10,4],[10,5,10,6],[10,7,10,8],[10,9,10,11],[11,9,12,9],[11,10,12,10],[11,11,12,11],[11,3,12,3],[11,4,12,4],[11,5,12,5],[11,6,12,6],[11,7,12,7],[11,8,12,8]]}
["Back to Index"]
[null,"Table group: Large Value Payment System specific"]
[]
[]
[null,"T07.02 Payments processed by large value payment system"]
[]
[]
[]
[null,null,null,"x-axis"]
[]
[null,null,null,"Domestic",null,"Cross-border within the EEA",null,"Rest of the world outside the EEA",null,"World"]
[null,null,null,"Number of transactions","Value of transactions","Number of transactions","Value of transactions","Number of transactions","Value of transactions","Number of transactions","Value of transactions","Concentration ratio"]
[]
[null,null,null,"010","020","030","040","050","060","070","080","090",null,null,null,{"$f":"Show!$B$19&\"T07.02 Rows {\"&COLUMN($C$1)&\"}\"&Index!$E$23","v":"!T07.02 Rows {3}"},{"$f":"Show!$B$19&\"T07.02 Columns {\"&COLUMN($D$1)&\"}\"","v":"!T07.02 Columns {4}"}]
[null,"y-axis",""]
[null,"Total Transactions","010"]
[null,"Credit Transfers","020"]
[null,"Initiated in paper-based form","030"]
[null,"Initated electronically","040"]
[null,"Direct debits","050"]
[null,"Card payments","060"]
[null,"Cash withdrawals at ATM","070"]
[null,"Cash deposits at ATM","080"]
[null,"E-money payment transactions","090"]
[null,"Cheques","100"]
[null,"Other payment services","110"]
[null,"Concentration ratio of volume of payments","120"]
[null,"Concentration ratio of value of payments","130"]
[]
[null,null,null,null,null,null,null,null,null,null,null,null,null,null,null,{"$f":"Show!$B$19&Show!$B$19&\"T07.02 Rows {\"&COLUMN($C$1)&\"}\"","v":"!!T07.02 Rows {3}"},{"$f":"Show!$B$19&Show!$B$19&\"T07.02 Columns {\"&COLUMN($L$1)&\"}\"","v":"!!T07.02 Columns {12}"}]

{"sheet":"T08.01","index":23,"n_rows":29,"n_cols":9,"rows_kept":29,"cut":false,"hidden":true,"merged":[[1,1,1,14],[4,1,4,11],[9,3,10,3],[11,3,14,3]]}
["Back to Index"]
[null,"Table group: Retail Payments Systems specific"]
[]
[]
[null,"T08.01 Participation in payment system"]
[]
[null,"Payment system used","Z001",null,null,null,{"$f":"Show!$B$20&\"T08.01 Table label {\"&COLUMN($C$1)&\"}\"","v":"!T08.01 Table label {3}"},{"$f":"Show!$B$20&\"T08.01 Table value {\"&COLUMN($D$1)&\"}\"","v":"!T08.01 Table value {4}"}]
[null,null,null,null,null,null,{"$f":"Show!$B$20&Show!$B$20&\"T08.01 Table label {\"&COLUMN($C$1)&\"}\"","v":"!!T08.01 Table label {3}"},{"$f":"Show!$B$20&Show!$B$20&\"T08.01 Table value {\"&COLUMN($D$1)&\"}\"","v":"!!T08.01 Table value {4}"}]
[]
[null,null,null,"x-axis"]
[]
[null,null,null,"Participants"]
[]
[]
[]
[null,null,null,"010",null,null,null,{"$f":"Show!$B$20&\"T08.01 Rows {\"&COLUMN($C$1)&\"}\"&Index!$E$24","v":"!T08.01 Rows {3}"},{"$f":"Show!$B$20&\"T08.01 Columns {\"&COLUMN($D$1)&\"}\"","v":"!T08.01 Columns {4}"}]
[null,"y-axis",""]
[null,"Number of participants","010"]
[null,"Direct participants","020"]
[null,"Credit institutions","030"]
[null,"Central bank","040"]
[null,"Other direct participants",""]
[null,"General government","050"]
[null,"Clearing and settlement organisations","060"]
[null,"Other financial institutions","070"]
[null,"Others","080"]
[null,"Indirect participants","090"]
[]
[null,null,null,null,null,null,null,{"$f":"Show!$B$20&Show!$B$20&\"T08.01 Rows {\"&COLUMN($C$1)&\"}\"","v":"!!T08.01 Rows {3}"},{"$f":"Show!$B$20&Show!$B$20&\"T08.01 Columns {\"&COLUMN($D$1)&\"}\"","v":"!!T08.01 Columns {4}"}]

{"sheet":"T08.02","index":24,"n_rows":33,"n_cols":17,"rows_kept":33,"cut":false,"hidden":true,"merged":[[1,1,1,14],[4,1,4,11],[9,3,10,11],[11,3,11,4],[11,5,11,6],[11,7,11,8],[11,9,11,11],[12,9,14,9],[12,10,14,10],[12,11,14,11],[12,3,14,3],[12,4,14,4],[12,5,14,5],[12,6,14,6],[12,7,14,7],[12,8,14,8]]}
["Back to Index"]
[null,"Table group: Retail Payments Systems specific"]
[]
[]
[null,"T08.02 Payments processed by retail payments systems"]
[]
[null,"Payment system used","Z001",null,null,null,{"$f":"Show!$B$21&\"T08.02 Table label {\"&COLUMN($C$1)&\"}\"","v":"!T08.02 Table label {3}"},{"$f":"Show!$B$21&\"T08.02 Table value {\"&COLUMN($D$1)&\"}\"","v":"!T08.02 Table value {4}"}]
[null,null,null,null,null,null,{"$f":"Show!$B$21&Show!$B$21&\"T08.02 Table label {\"&COLUMN($C$1)&\"}\"","v":"!!T08.02 Table label {3}"},{"$f":"Show!$B$21&Show!$B$21&\"T08.02 Table value {\"&COLUMN($D$1)&\"}\"","v":"!!T08.02 Table value {4}"}]
[]
[null,null,null,"x-axis"]
[]
[null,null,null,"Domestic",null,"Cross-border within the EEA",null,"Rest of the world outside the EEA",null,"World"]
[null,null,null,"Number of transactions","Value of transactions","Number of transactions","Value of transactions","Number of transactions","Value of transactions","Number of transactions","Value of transactions","Concentration ratio"]
[]
[]
[null,null,null,"010","020","030","040","050","060","070","080","090",null,null,null,{"$f":"Show!$B$21&\"T08.02 Rows {\"&COLUMN($C$1)&\"}\"&Index!$E$25","v":"!T08.02 Rows {3}"},{"$f":"Show!$B$21&\"T08.02 Columns {\"&COLUMN($D$1)&\"}\"","v":"!T08.02 Columns {4}"}]
[null,"y-axis",""]
[null,"Total Transactions","010"]
[null,"Credit Transfers","020"]
[null,"Initiated in paper-based form","030"]
[null,"Initated electronically","040"]
[null,"of which: Instant","050"]
[null,"Direct debits","060"]
[null,"Card payments","070"]
[null,"Cash withdrawals at ATM","080"]
[null,"Cash deposits at ATM","090"]
[null,"E-money payment transactions","100"]
[null,"Cheques","110"]
[null,"Other payment services","120"]
[null,"Concentration ratio of volume of payments","130"]
[null,"Concentration ratio of value of payments","140"]
[]
[null,null,null,null,null,null,null,null,null,null,null,null,null,null,null,{"$f":"Show!$B$21&Show!$B$21&\"T08.02 Rows {\"&COLUMN($C$1)&\"}\"","v":"!!T08.02 Rows {3}"},{"$f":"Show!$B$21&Show!$B$21&\"T08.02 Columns {\"&COLUMN($L$1)&\"}\"","v":"!!T08.02 Columns {12}"}]

{"sheet":"T09.01","index":25,"n_rows":28,"n_cols":9,"rows_kept":28,"cut":false,"hidden":true,"merged":[[1,1,1,14],[4,1,4,11],[8,3,9,3],[10,3,13,3]]}
["Back to Index"]
[null,"Table group: TARGET2 and National Central Bank"]
[]
[]
[null,"T09.01 Participation in TARGET2 component system"]
[]
[]
[]
[null,null,null,"x-axis"]
[]
[null,null,null,"Participants"]
[]
[]
[]
[null,null,null,"010",null,null,null,{"$f":"Show!$B$22&\"T09.01 Rows {\"&COLUMN($C$1)&\"}\"&Index!$E$26","v":"!T09.01 Rows {3}"},{"$f":"Show!$B$22&\"T09.01 Columns {\"&COLUMN($D$1)&\"}\"","v":"!T09.01 Columns {4}"}]
[null,"y-axis",""]
[null,"Number of participants","010"]
[null,"Direct participants","020"]
[null,"Credit institutions","030"]
[null,"Central bank","040"]
[null,"Other direct participants",""]
[null,"General government","050"]
[null,"Clearing and settlement organisations","060"]
[null,"Other financial institutions","070"]
[null,"Others","080"]
[null,"Indirect participants","090"]
[]
[null,null,null,null,null,null,null,{"$f":"Show!$B$22&Show!$B$22&\"T09.01 Rows {\"&COLUMN($C$1)&\"}\"","v":"!!T09.01 Rows {3}"},{"$f":"Show!$B$22&Show!$B$22&\"T09.01 Columns {\"&COLUMN($D$1)&\"}\"","v":"!!T09.01 Columns {4}"}]

{"sheet":"T09.02","index":26,"n_rows":30,"n_cols":11,"rows_kept":30,"cut":false,"hidden":true,"merged":[[1,1,1,14],[4,1,4,11],[8,3,9,5],[10,3,12,3],[10,4,12,4],[10,5,12,5]]}
["Back to Index"]
[null,"Table group: TARGET2 and National Central Bank"]
[]
[]
[null,"T09.02 Payments processed by TARGET2 component system"]
[]
[]
[]
[null,null,null,"x-axis"]
[]
[null,null,null,"Number of transactions","Value of transactions","Concentration ratio"]
[]
[]
[null,null,null,"010","020","030",null,null,null,{"$f":"Show!$B$23&\"T09.02 Rows {\"&COLUMN($C$1)&\"}\"&Index!$E$27","v":"!T09.02 Rows {3}"},{"$f":"Show!$B$23&\"T09.02 Columns {\"&COLUMN($D$1)&\"}\"","v":"!T09.02 Columns {4}"}]
[null,"y-axis",""]
[null,"Domestic and cross-border combined for the EU",""]
[null,"Credit Transfers and Direct Debits Sent","010"]
[null,"of which: TIPS","020"]
[null,"Concentration ratio of volume of payments","030"]
[null,"Concentration ratio of value of payments","040"]
[null,"Domestic",""]
[null,"within the same TARGET2 component system","050"]
[null,"Cross-border within EU, except reference area, all countries",""]
[null,"to another TARGET2 component system","060"]
[null,"Cross-border within EU, except reference area, only euro area countries",""]
[null,"to a euro area TARGET2 component system","070"]
[null,"Cross-border within EU, except reference area, only non-euro area countries",""]
[null,"to a non-euro area TARGET2 component system","080"]
[]
[null,null,null,null,null,null,null,null,null,{"$f":"Show!$B$23&Show!$B$23&\"T09.02 Rows {\"&COLUMN($C$1)&\"}\"","v":"!!T09.02 Rows {3}"},{"$f":"Show!$B$23&Show!$B$23&\"T09.02 Columns {\"&COLUMN($F$1)&\"}\"","v":"!!T09.02 Columns {6}"}]

{"sheet":"T09.03","index":27,"n_rows":22,"n_cols":10,"rows_kept":22,"cut":false,"hidden":true,"merged":[[1,1,1,14],[4,1,4,11],[8,3,9,4],[10,3,10,4]]}
["Back to Index"]
[null,"Table group: TARGET2 and National Central Bank"]
[]
[]
[null,"T09.03 Other payment service provider related information: National Central Bank"]
[]
[]
[]
[null,null,null,"x-axis"]
[]
[null,null,null,"Domestic (reference area)"]
[null,null,null,"Number","Outstanding Value"]
[null,null,null,"010","020",null,null,null,{"$f":"Show!$B$24&\"T09.03 Rows {\"&COLUMN($C$1)&\"}\"&Index!$E$28","v":"!T09.03 Rows {3}"},{"$f":"Show!$B$24&\"T09.03 Columns {\"&COLUMN($D$1)&\"}\"","v":"!T09.03 Columns {4}"}]
[null,"y-axis",""]
[null,"Infrastructure",""]
[null,"Offices","010"]
[null,"Accounts",""]
[null,"Overnight deposits held by non-MFIs","020"]
[null,"Settlement media used by credit institutions, intra-day loans (assets)",""]
[null,"Intraday borrowing in euro from the central bank (average for last reserve maintenance period)","030"]
[]
[null,null,null,null,null,null,null,null,{"$f":"Show!$B$24&Show!$B$24&\"T09.03 Rows {\"&COLUMN($C$1)&\"}\"","v":"!!T09.03 Rows {3}"},{"$f":"Show!$B$24&Show!$B$24&\"T09.03 Columns {\"&COLUMN($E$1)&\"}\"","v":"!!T09.03 Columns {5}"}]